Body,Body Name,Date Paid,Transaction Number,Amount,Supplier Name,Supplier ID,Supplier post code (first 4 digits),Directorate,Service Area,General Ledger code Description,BVACOP class,Revenue/ Capital Spend
http://statistics.data.gov.uk/id/local-authority/00HY,Wiltshire Council,06/12/2012,5106212406,390.56,3663 ,113090,L40 ,Children & Education,PDCMelksham,Catering,Supplies and Services,REVENUE
http://statistics.data.gov.uk/id/local-authority/00HY,Wiltshire Council,21/12/2012,5106223366,370.69,3663 ,113090,L40 ,Children & Education,PDCMelksham,Catering,Supplies and Services,REVENUE
http://statistics.data.gov.uk/id/local-authority/00HY,Wiltshire Council,07/12/2012,1900955426,1235.74,1st Choice Cabs ,101285,SP4 ,Neighbourhood & Planning,DCS CTPLD U65,Transport Contracts,Third Party Payments,REVENUE
http://statistics.data.gov.uk/id/local-authority/00HY,Wiltshire Council,07/12/2012,1900955433,1408.00,1st Choice Cabs ,101285,SP4 ,Neighbourhood & Planning,DCS CTPLD U65,Transport Contracts,Third Party Payments,REVENUE
http://statistics.data.gov.uk/id/local-authority/00HY,Wiltshire Council,07/12/2012,1900955435,813.00,1st Choice Cabs ,101285,SP4 ,Neighbourhood & Planning,Mainstream Primary,Transport Contracts,Third Party Payments,REVENUE
http://statistics.data.gov.uk/id/local-authority/00HY,Wiltshire Council,07/12/2012,1900955438,453.25,1st Choice Cabs ,101285,SP4 ,Neighbourhood & Planning,Mainstream Secondary,Transport Contracts,Third Party Payments,REVENUE
http://statistics.data.gov.uk/id/local-authority/00HY,Wiltshire Council,07/12/2012,1900955438,3021.75,1st Choice Cabs ,101285,SP4 ,Neighbourhood & Planning,SEN Primary,Transport Contracts,Third Party Payments,REVENUE
http://statistics.data.gov.uk/id/local-authority/00HY,Wiltshire Council,04/12/2012,1900953182,1675.00,1st Choice Stairlifts ,113095,SN11,Wiltshire Council,Wiltshire Council,Payments to Contractors - Other,Third Party Payments,CAPITAL
http://statistics.data.gov.uk/id/local-authority/00HY,Wiltshire Council,04/12/2012,1900953761,8716.00,1st Choice Stairlifts ,113095,SN11,Wiltshire Council,Wiltshire Council,Payments to Contractors - Other,Third Party Payments,CAPITAL
http://statistics.data.gov.uk/id/local-authority/00HY,Wiltshire Council,04/12/2012,1900953762,420.00,1st Choice Stairlifts ,113095,SN11,Wiltshire Council,Wiltshire Council,Payments to Contractors - Other,Third Party Payments,CAPITAL
http://statistics.data.gov.uk/id/local-authority/00HY,Wiltshire Council,07/12/2012,1900955288,4725.00,1st Choice Stairlifts ,113095,SN11,Wiltshire Council,Wiltshire Council,Payments to Contractors - Other,Third Party Payments,CAPITAL
http://statistics.data.gov.uk/id/local-authority/00HY,Wiltshire Council,21/12/2012,1900968105,3173.00,1st Choice Stairlifts ,113095,SN11,Wiltshire Council,Wiltshire Council,Payments to Contractors - Other,Third Party Payments,CAPITAL
http://statistics.data.gov.uk/id/local-authority/00HY,Wiltshire Council,19/12/2012,5106230924,2305.60,2 Care UK Ltd ,110002,BH7 ,Community Services,MH AOWA South,Adult Residential Placements - Spot Purchase,Third Party Payments,REVENUE
http://statistics.data.gov.uk/id/local-authority/00HY,Wiltshire Council,19/12/2012,5106231087,1180.00,2 Care UK Ltd ,110002,BH7 ,Community Services,MH OP North Locality,Adult Residential Placements - Spot Purchase,Third Party Payments,REVENUE
http://statistics.data.gov.uk/id/local-authority/00HY,Wiltshire Council,19/12/2012,5106231088,1180.00,2 Care UK Ltd ,110002,BH7 ,Community Services,Section 117-PCT Clnt,Adult Residential Placements - Spot Purchase,Third Party Payments,REVENUE
http://statistics.data.gov.uk/id/local-authority/00HY,Wiltshire Council,19/12/2012,5106228478,4898.00,22 Wingfield ,129621,BA14,Community Services,OP West Locality,Adult Residential Placements - Spot Purchase,Third Party Payments,REVENUE
http://statistics.data.gov.uk/id/local-authority/00HY,Wiltshire Council,19/12/2012,5106228483,7178.92,22 Wingfield ,129621,BA14,Community Services,CTPLD County CIC U65,Adult Residential Placements - Spot Purchase,Third Party Payments,REVENUE
http://statistics.data.gov.uk/id/local-authority/00HY,Wiltshire Council,19/12/2012,5106228485,5497.20,22 Wingfield ,129621,BA14,Community Services,MH AOWA West,Adult Residential Placements - Spot Purchase,Third Party Payments,REVENUE
http://statistics.data.gov.uk/id/local-authority/00HY,Wiltshire Council,19/12/2012,5106228997,6036.32,22 Wingfield ,129621,BA14,Community Services,CTPLD County CIC U65,Adult Residential Placements - Spot Purchase,Third Party Payments,REVENUE
http://statistics.data.gov.uk/id/local-authority/00HY,Wiltshire Council,14/12/2012,1900957512,1400.00,24-7 Taxis ,101087,BA12,Neighbourhood & Planning,SEN Secondary,Transport Contracts,Third Party Payments,REVENUE
http://statistics.data.gov.uk/id/local-authority/00HY,Wiltshire Council,14/12/2012,1900957543,533.33,2get2 Taxi Services Ltd ,101102,SP1 ,Neighbourhood & Planning,Mainstream Secondary,Transport Contracts,Third Party Payments,REVENUE
http://statistics.data.gov.uk/id/local-authority/00HY,Wiltshire Council,14/12/2012,1900957543,1066.67,2get2 Taxi Services Ltd ,101102,SP1 ,Neighbourhood & Planning,SEN Primary,Transport Contracts,Third Party Payments,REVENUE
http://statistics.data.gov.uk/id/local-authority/00HY,Wiltshire Council,11/12/2012,1900955554,563.50,A  and  S Private Hire ,101115,SN15,Neighbourhood & Planning,SEN Secondary,Transport Contracts,Third Party Payments,REVENUE
http://statistics.data.gov.uk/id/local-authority/00HY,Wiltshire Council,19/12/2012,5106230862,603.24,A & T Salisbury (Ltd) ,134373,SP1 ,Community Services,OP South Locality,Adult Domiciliary Care - Spot Contribution,Income,REVENUE
http://statistics.data.gov.uk/id/local-authority/00HY,Wiltshire Council,19/12/2012,5106230863,304.32,A & T Salisbury (Ltd) ,134373,SP1 ,Community Services,OP South Locality,Adult Domiciliary Care - Spot Contribution,Income,REVENUE
http://statistics.data.gov.uk/id/local-authority/00HY,Wiltshire Council,13/12/2012,1900957342,620.35,A B Taxis Ltd ,100945,SN12,Neighbourhood & Planning,Mainstream Secondary,Transport Contracts,Third Party Payments,REVENUE
http://statistics.data.gov.uk/id/local-authority/00HY,Wiltshire Council,13/12/2012,1900957346,510.00,A B Taxis Ltd ,100945,SN12,Neighbourhood & Planning,DCS West CTPLD U65,Transport Contracts,Third Party Payments,REVENUE
http://statistics.data.gov.uk/id/local-authority/00HY,Wiltshire Council,13/12/2012,1900951438,363.00,A C E Supplies ,126284,BA15,Resources,WTP Office,Preventative Property Maintenance,Premises Related,REVENUE
http://statistics.data.gov.uk/id/local-authority/00HY,Wiltshire Council,14/12/2012,1900957503,997.50,A G Minibuses ,100878,BA12,Neighbourhood & Planning,Mainstream Primary,Transport Contracts,Third Party Payments,REVENUE
http://statistics.data.gov.uk/id/local-authority/00HY,Wiltshire Council,14/12/2012,1900957503,1588.52,A G Minibuses ,100878,BA12,Neighbourhood & Planning,Public Transport,Transport Contracts,Third Party Payments,REVENUE
http://statistics.data.gov.uk/id/local-authority/00HY,Wiltshire Council,14/12/2012,1900957503,4273.20,A G Minibuses ,100878,BA12,Neighbourhood & Planning,Connect 2 Wiltshire,Transport Contracts,Third Party Payments,REVENUE
http://statistics.data.gov.uk/id/local-authority/00HY,Wiltshire Council,14/12/2012,1900957511,12897.99,A G Minibuses ,100878,BA12,Neighbourhood & Planning,Connect 2 Wiltshire,Transport Contracts,Third Party Payments,REVENUE
http://statistics.data.gov.uk/id/local-authority/00HY,Wiltshire Council,21/12/2012,1900968062,799.50,A G Minibuses ,100878,BA12,Neighbourhood & Planning,SEN Primary,Transport Contracts,Third Party Payments,REVENUE
http://statistics.data.gov.uk/id/local-authority/00HY,Wiltshire Council,21/12/2012,1900968062,1470.05,A G Minibuses ,100878,BA12,Neighbourhood & Planning,SEN Secondary,Transport Contracts,Third Party Payments,REVENUE
http://statistics.data.gov.uk/id/local-authority/00HY,Wiltshire Council,21/12/2012,1900968063,348.68,A G Minibuses ,100878,BA12,Neighbourhood & Planning,SEN Rechargable Exp,Transport Contracts,Third Party Payments,REVENUE
http://statistics.data.gov.uk/id/local-authority/00HY,Wiltshire Council,21/12/2012,1900968063,348.70,A G Minibuses ,100878,BA12,Neighbourhood & Planning,SEN Primary,Transport Contracts,Third Party Payments,REVENUE
http://statistics.data.gov.uk/id/local-authority/00HY,Wiltshire Council,21/12/2012,1900968063,348.70,A G Minibuses ,100878,BA12,Neighbourhood & Planning,SEN Secondary,Transport Contracts,Third Party Payments,REVENUE
http://statistics.data.gov.uk/id/local-authority/00HY,Wiltshire Council,21/12/2012,1900968063,697.40,A G Minibuses ,100878,BA12,Neighbourhood & Planning,SEN 16+ Secondary,Transport Contracts,Third Party Payments,REVENUE
http://statistics.data.gov.uk/id/local-authority/00HY,Wiltshire Council,21/12/2012,1900968064,446.08,A G Minibuses ,100878,BA12,Neighbourhood & Planning,SEN Primary,Transport Contracts,Third Party Payments,REVENUE
http://statistics.data.gov.uk/id/local-authority/00HY,Wiltshire Council,21/12/2012,1900968064,446.08,A G Minibuses ,100878,BA12,Neighbourhood & Planning,SEN 16+ Secondary,Transport Contracts,Third Party Payments,REVENUE
http://statistics.data.gov.uk/id/local-authority/00HY,Wiltshire Council,21/12/2012,1900968064,1338.24,A G Minibuses ,100878,BA12,Neighbourhood & Planning,SEN Secondary,Transport Contracts,Third Party Payments,REVENUE
http://statistics.data.gov.uk/id/local-authority/00HY,Wiltshire Council,21/12/2012,1900968066,1656.80,A G Minibuses ,100878,BA12,Neighbourhood & Planning,SEN Secondary,Transport Contracts,Third Party Payments,REVENUE
http://statistics.data.gov.uk/id/local-authority/00HY,Wiltshire Council,21/12/2012,1900968072,1760.31,A G Minibuses ,100878,BA12,Neighbourhood & Planning,Mainstream Primary,Transport Contracts,Third Party Payments,REVENUE
http://statistics.data.gov.uk/id/local-authority/00HY,Wiltshire Council,21/12/2012,1900968073,1136.52,A G Minibuses ,100878,BA12,Neighbourhood & Planning,Mainstream Primary,Transport Contracts,Third Party Payments,REVENUE
http://statistics.data.gov.uk/id/local-authority/00HY,Wiltshire Council,21/12/2012,1900968074,738.30,A G Minibuses ,100878,BA12,Neighbourhood & Planning,DCS CTPLD U65,Transport Contracts,Third Party Payments,REVENUE
http://statistics.data.gov.uk/id/local-authority/00HY,Wiltshire Council,21/12/2012,1900968074,765.15,A G Minibuses ,100878,BA12,Neighbourhood & Planning,DCS East Locality PI,Transport Contracts,Third Party Payments,REVENUE
http://statistics.data.gov.uk/id/local-authority/00HY,Wiltshire Council,21/12/2012,1900968075,652.05,A G Minibuses ,100878,BA12,Neighbourhood & Planning,DCS CTPLD U65,Transport Contracts,Third Party Payments,REVENUE
http://statistics.data.gov.uk/id/local-authority/00HY,Wiltshire Council,21/12/2012,1900968076,1801.57,A G Minibuses ,100878,BA12,Neighbourhood & Planning,Mainstream Primary,Transport Contracts,Third Party Payments,REVENUE
http://statistics.data.gov.uk/id/local-authority/00HY,Wiltshire Council,21/12/2012,1900968078,283.23,A G Minibuses ,100878,BA12,Neighbourhood & Planning,DCS CTPLD U65,Transport Contracts,Third Party Payments,REVENUE
http://statistics.data.gov.uk/id/local-authority/00HY,Wiltshire Council,21/12/2012,1900968078,346.17,A G Minibuses ,100878,BA12,Neighbourhood & Planning,DCS East Locality PI,Transport Contracts,Third Party Payments,REVENUE
http://statistics.data.gov.uk/id/local-authority/00HY,Wiltshire Council,21/12/2012,1900968079,929.00,A G Minibuses ,100878,BA12,Neighbourhood & Planning,Mainstream Primary,Transport Contracts,Third Party Payments,REVENUE
http://statistics.data.gov.uk/id/local-authority/00HY,Wiltshire Council,21/12/2012,1900968079,1858.00,A G Minibuses ,100878,BA12,Neighbourhood & Planning,SEN Secondary,Transport Contracts,Third Party Payments,REVENUE
http://statistics.data.gov.uk/id/local-authority/00HY,Wiltshire Council,21/12/2012,1900968080,679.95,A G Minibuses ,100878,BA12,Neighbourhood & Planning,DCS East Locality OP,Transport Contracts,Third Party Payments,REVENUE
http://statistics.data.gov.uk/id/local-authority/00HY,Wiltshire Council,21/12/2012,1900968080,1359.89,A G Minibuses ,100878,BA12,Neighbourhood & Planning,DCS Kennet MenHthO65,Transport Contracts,Third Party Payments,REVENUE
http://statistics.data.gov.uk/id/local-authority/00HY,Wiltshire Council,21/12/2012,1900968081,1184.39,A G Minibuses ,100878,BA12,Neighbourhood & Planning,Mainstream Secondary,Transport Contracts,Third Party Payments,REVENUE
http://statistics.data.gov.uk/id/local-authority/00HY,Wiltshire Council,21/12/2012,1900968082,2137.96,A G Minibuses ,100878,BA12,Neighbourhood & Planning,DCS CTPLD U65,Transport Contracts,Third Party Payments,REVENUE
http://statistics.data.gov.uk/id/local-authority/00HY,Wiltshire Council,21/12/2012,1900968083,1163.50,A G Minibuses ,100878,BA12,Neighbourhood & Planning,SEN Primary,Transport Contracts,Third Party Payments,REVENUE
http://statistics.data.gov.uk/id/local-authority/00HY,Wiltshire Council,04/12/2012,1900954006,451.50,A M S Taxis ,100839,BA14,Neighbourhood & Planning,SEN Primary,Transport Contracts,Third Party Payments,REVENUE
http://statistics.data.gov.uk/id/local-authority/00HY,Wiltshire Council,04/12/2012,1900954006,451.50,A M S Taxis ,100839,BA14,Neighbourhood & Planning,SEN Secondary,Transport Contracts,Third Party Payments,REVENUE
http://statistics.data.gov.uk/id/local-authority/00HY,Wiltshire Council,04/12/2012,1900954006,903.00,A M S Taxis ,100839,BA14,Neighbourhood & Planning,SEN 16+ Secondary,Transport Contracts,Third Party Payments,REVENUE
http://statistics.data.gov.uk/id/local-authority/00HY,Wiltshire Council,06/12/2012,1900955157,1842.40,A M S Taxis ,100839,BA14,Neighbourhood & Planning,SEN Primary,Transport Contracts,Third Party Payments,REVENUE
http://statistics.data.gov.uk/id/local-authority/00HY,Wiltshire Council,06/12/2012,1900955141,300.19,A P Taxis ,100628,SN12,Neighbourhood & Planning,LAC&16+ South&West,Transport Contracts,Third Party Payments,REVENUE
http://statistics.data.gov.uk/id/local-authority/00HY,Wiltshire Council,06/12/2012,1900955143,3182.40,A P Taxis ,100628,SN12,Neighbourhood & Planning,SEN Primary,Transport Contracts,Third Party Payments,REVENUE
http://statistics.data.gov.uk/id/local-authority/00HY,Wiltshire Council,06/12/2012,1900955148,612.20,A P Taxis ,100628,SN12,Neighbourhood & Planning,SEN Primary,Transport Contracts,Third Party Payments,REVENUE
http://statistics.data.gov.uk/id/local-authority/00HY,Wiltshire Council,06/12/2012,1900955151,455.00,A P Taxis ,100628,SN12,Neighbourhood & Planning,LAC&16+ North&East,Transport Contracts,Third Party Payments,REVENUE
http://statistics.data.gov.uk/id/local-authority/00HY,Wiltshire Council,06/12/2012,1900955152,799.84,A P Taxis ,100628,SN12,Neighbourhood & Planning,SEN Rechargable Exp,Transport Contracts,Third Party Payments,REVENUE
http://statistics.data.gov.uk/id/local-authority/00HY,Wiltshire Council,19/12/2012,5106220804,500.00,A S A Awards Scheme ,110020,B98 ,Neighbourhood & Planning,Devizes,Equipment Purchase,Supplies and Services,REVENUE
http://statistics.data.gov.uk/id/local-authority/00HY,Wiltshire Council,07/12/2012,1900955394,650.00,A1 Cab Company ,101233,SP4 ,Neighbourhood & Planning,Community Team East,Transport Contracts,Third Party Payments,REVENUE
http://statistics.data.gov.uk/id/local-authority/00HY,Wiltshire Council,13/12/2012,1900957375,762.00,A1 Cab Company ,101233,SP4 ,Neighbourhood & Planning,Community Team South,Transport Contracts,Third Party Payments,REVENUE
http://statistics.data.gov.uk/id/local-authority/00HY,Wiltshire Council,21/12/2012,1900959963,800.00,A1 Cab Company ,101233,SP4 ,Neighbourhood & Planning,SEN Primary,Transport Contracts,Third Party Payments,REVENUE
http://statistics.data.gov.uk/id/local-authority/00HY,Wiltshire Council,21/12/2012,1900959996,1690.00,A1 Cab Company ,101233,SP4 ,Neighbourhood & Planning,SEN Secondary,Transport Contracts,Third Party Payments,REVENUE
http://statistics.data.gov.uk/id/local-authority/00HY,Wiltshire Council,19/12/2012,1900959460,10916.16,A2 Winchester Ltd ,101167,SO23,Neighbourhood & Planning,HousingStrategy,Payments to Contractors - Other,Third Party Payments,REVENUE
http://statistics.data.gov.uk/id/local-authority/00HY,Wiltshire Council,17/12/2012,5106222414,1700.00,Aareon Uk Ltd ,113252,CV8 ,Wiltshire Council,Wiltshire Council,ICT - Support arrangements,Supplies and Services,CAPITAL
http://statistics.data.gov.uk/id/local-authority/00HY,Wiltshire Council,17/12/2012,5106222416,873.00,Aareon Uk Ltd ,113252,CV8 ,Wiltshire Council,Wiltshire Council,ICT - Support arrangements,Supplies and Services,CAPITAL
http://statistics.data.gov.uk/id/local-authority/00HY,Wiltshire Council,17/12/2012,5106222418,873.00,Aareon Uk Ltd ,113252,CV8 ,Wiltshire Council,Wiltshire Council,ICT - Support arrangements,Supplies and Services,CAPITAL
http://statistics.data.gov.uk/id/local-authority/00HY,Wiltshire Council,17/12/2012,5106222419,873.00,Aareon Uk Ltd ,113252,CV8 ,Wiltshire Council,Wiltshire Council,ICT - Support arrangements,Supplies and Services,CAPITAL
http://statistics.data.gov.uk/id/local-authority/00HY,Wiltshire Council,17/12/2012,5106222420,750.00,Aareon Uk Ltd ,113252,CV8 ,Wiltshire Council,Wiltshire Council,ICT - Support arrangements,Supplies and Services,CAPITAL
http://statistics.data.gov.uk/id/local-authority/00HY,Wiltshire Council,21/12/2012,5106226331,750.00,Aareon Uk Ltd ,113252,CV8 ,Wiltshire Council,Wiltshire Council,ICT - Support arrangements,Supplies and Services,CAPITAL
http://statistics.data.gov.uk/id/local-authority/00HY,Wiltshire Council,14/12/2012,5106226653,950.00,Aareon Uk Ltd ,113252,CV8 ,Wiltshire Council,Wiltshire Council,ICT - Support arrangements,Supplies and Services,CAPITAL
http://statistics.data.gov.uk/id/local-authority/00HY,Wiltshire Council,17/12/2012,5106226654,4740.00,Aareon Uk Ltd ,113252,CV8 ,Wiltshire Council,Wiltshire Council,ICT - Support arrangements,Supplies and Services,CAPITAL
http://statistics.data.gov.uk/id/local-authority/00HY,Wiltshire Council,21/12/2012,5106226710,950.00,Aareon Uk Ltd ,113252,CV8 ,Wiltshire Council,Wiltshire Council,ICT - Support arrangements,Supplies and Services,CAPITAL
http://statistics.data.gov.uk/id/local-authority/00HY,Wiltshire Council,21/12/2012,5106226711,1723.00,Aareon Uk Ltd ,113252,CV8 ,Wiltshire Council,Wiltshire Council,ICT - Support arrangements,Supplies and Services,CAPITAL
http://statistics.data.gov.uk/id/local-authority/00HY,Wiltshire Council,07/12/2012,1900955419,787.03,Abbey Taxis (Swindon) Ltd ,100920,SN2 ,Neighbourhood & Planning,Mainstream Secondary,Transport Contracts,Third Party Payments,REVENUE
http://statistics.data.gov.uk/id/local-authority/00HY,Wiltshire Council,07/12/2012,1900955423,360.00,Abbey Taxis (Swindon) Ltd ,100920,SN2 ,Neighbourhood & Planning,Mainstream 16+ FE,Transport Contracts,Third Party Payments,REVENUE
http://statistics.data.gov.uk/id/local-authority/00HY,Wiltshire Council,11/12/2012,1900955543,269.36,Abbey Taxis (Swindon) Ltd ,100920,SN2 ,Neighbourhood & Planning,Mainstream 16+ Sec,Transport Contracts,Third Party Payments,REVENUE
http://statistics.data.gov.uk/id/local-authority/00HY,Wiltshire Council,11/12/2012,1900955543,1077.44,Abbey Taxis (Swindon) Ltd ,100920,SN2 ,Neighbourhood & Planning,Mainstream Secondary,Transport Contracts,Third Party Payments,REVENUE
http://statistics.data.gov.uk/id/local-authority/00HY,Wiltshire Council,12/12/2012,1900956795,320.00,Abbey Taxis (Swindon) Ltd ,100920,SN2 ,Neighbourhood & Planning,SEN Secondary,Transport Contracts,Third Party Payments,REVENUE
http://statistics.data.gov.uk/id/local-authority/00HY,Wiltshire Council,12/12/2012,1900956808,480.00,Abbey Taxis (Swindon) Ltd ,100920,SN2 ,Neighbourhood & Planning,SEN Secondary,Transport Contracts,Third Party Payments,REVENUE
http://statistics.data.gov.uk/id/local-authority/00HY,Wiltshire Council,12/12/2012,1900956808,480.00,Abbey Taxis (Swindon) Ltd ,100920,SN2 ,Neighbourhood & Planning,SEN 16+ Secondary,Transport Contracts,Third Party Payments,REVENUE
http://statistics.data.gov.uk/id/local-authority/00HY,Wiltshire Council,12/12/2012,1900956808,1440.00,Abbey Taxis (Swindon) Ltd ,100920,SN2 ,Neighbourhood & Planning,SEN Primary,Transport Contracts,Third Party Payments,REVENUE
http://statistics.data.gov.uk/id/local-authority/00HY,Wiltshire Council,12/12/2012,1900956809,910.80,Abbey Taxis (Swindon) Ltd ,100920,SN2 ,Neighbourhood & Planning,Mainstream Primary,Transport Contracts,Third Party Payments,REVENUE
http://statistics.data.gov.uk/id/local-authority/00HY,Wiltshire Council,12/12/2012,1900956810,2460.20,Abbey Taxis (Swindon) Ltd ,100920,SN2 ,Neighbourhood & Planning,SEN Primary,Transport Contracts,Third Party Payments,REVENUE
http://statistics.data.gov.uk/id/local-authority/00HY,Wiltshire Council,12/12/2012,1900956813,586.73,Abbey Taxis (Swindon) Ltd ,100920,SN2 ,Neighbourhood & Planning,SEN Primary,Transport Contracts,Third Party Payments,REVENUE
http://statistics.data.gov.uk/id/local-authority/00HY,Wiltshire Council,12/12/2012,1900956814,403.94,Abbey Taxis (Swindon) Ltd ,100920,SN2 ,Neighbourhood & Planning,SEN Secondary,Transport Contracts,Third Party Payments,REVENUE
http://statistics.data.gov.uk/id/local-authority/00HY,Wiltshire Council,12/12/2012,1900956814,807.88,Abbey Taxis (Swindon) Ltd ,100920,SN2 ,Neighbourhood & Planning,SEN Primary,Transport Contracts,Third Party Payments,REVENUE
http://statistics.data.gov.uk/id/local-authority/00HY,Wiltshire Council,12/12/2012,1900956814,1211.82,Abbey Taxis (Swindon) Ltd ,100920,SN2 ,Neighbourhood & Planning,Mainstream Primary,Transport Contracts,Third Party Payments,REVENUE
http://statistics.data.gov.uk/id/local-authority/00HY,Wiltshire Council,13/12/2012,1900957334,279.45,Abbey Taxis (Swindon) Ltd ,100920,SN2 ,Neighbourhood & Planning,DCS East Locality OP,Transport Contracts,Third Party Payments,REVENUE
http://statistics.data.gov.uk/id/local-authority/00HY,Wiltshire Council,13/12/2012,1900957356,1306.00,Abbey Taxis (Swindon) Ltd ,100920,SN2 ,Neighbourhood & Planning,SEN Secondary,Transport Contracts,Third Party Payments,REVENUE
http://statistics.data.gov.uk/id/local-authority/00HY,Wiltshire Council,14/12/2012,1900957538,520.96,Abbey Taxis (Swindon) Ltd ,100920,SN2 ,Neighbourhood & Planning,SEN Secondary,Transport Contracts,Third Party Payments,REVENUE
http://statistics.data.gov.uk/id/local-authority/00HY,Wiltshire Council,14/12/2012,1900957538,1562.88,Abbey Taxis (Swindon) Ltd ,100920,SN2 ,Neighbourhood & Planning,SEN Primary,Transport Contracts,Third Party Payments,REVENUE
http://statistics.data.gov.uk/id/local-authority/00HY,Wiltshire Council,14/12/2012,1900957540,2234.71,Abbey Taxis (Swindon) Ltd ,100920,SN2 ,Neighbourhood & Planning,SEN Primary,Transport Contracts,Third Party Payments,REVENUE
http://statistics.data.gov.uk/id/local-authority/00HY,Wiltshire Council,13/12/2012,1900957350,570.00,Abbey Taxis Ltd ,101080,BA2 ,Neighbourhood & Planning,Mainstream Secondary,Transport Contracts,Third Party Payments,REVENUE
http://statistics.data.gov.uk/id/local-authority/00HY,Wiltshire Council,13/12/2012,1900957351,310.40,Abbey Taxis Ltd ,101080,BA2 ,Neighbourhood & Planning,DCS CTPLD U65,Transport Contracts,Third Party Payments,REVENUE
http://statistics.data.gov.uk/id/local-authority/00HY,Wiltshire Council,13/12/2012,1900957353,549.92,Abbey Taxis Ltd ,101080,BA2 ,Neighbourhood & Planning,Mainstream Secondary,Transport Contracts,Third Party Payments,REVENUE
http://statistics.data.gov.uk/id/local-authority/00HY,Wiltshire Council,14/12/2012,5106222357,421.00,Abicare Services Ltd Homecare ,110031,SP2 ,Community Services,PI South Locality,Adult Domiciliary Care - Block,Third Party Payments,REVENUE
http://statistics.data.gov.uk/id/local-authority/00HY,Wiltshire Council,14/12/2012,5106222357,6162.14,Abicare Services Ltd Homecare ,110031,SP2 ,Community Services,OP South Locality,Adult Domiciliary Care - Block,Third Party Payments,REVENUE
http://statistics.data.gov.uk/id/local-authority/00HY,Wiltshire Council,21/12/2012,5106224347,1182.74,Abicare Services Ltd Homecare ,110031,SP2 ,Community Services,CTPLD County CIC U65,Adult Domiciliary Care - Spot,Third Party Payments,REVENUE
http://statistics.data.gov.uk/id/local-authority/00HY,Wiltshire Council,14/12/2012,5106224348,2106.42,Abicare Services Ltd Homecare ,110031,SP2 ,Community Services,CTPLD County CIC U65,Adult Domiciliary Care - Spot,Third Party Payments,REVENUE
http://statistics.data.gov.uk/id/local-authority/00HY,Wiltshire Council,14/12/2012,5106226079,1204.19,Abicare Services Ltd Homecare ,110031,SP2 ,Community Services,OP West Locality,Adult Domiciliary Care - Spot,Third Party Payments,REVENUE
http://statistics.data.gov.uk/id/local-authority/00HY,Wiltshire Council,14/12/2012,5106226081,701.76,Abicare Services Ltd Homecare ,110031,SP2 ,Community Services,OP South Locality,Adult Domiciliary Care - Spot,Third Party Payments,REVENUE
http://statistics.data.gov.uk/id/local-authority/00HY,Wiltshire Council,11/12/2012,5106226082,1531.01,Abicare Services Ltd Homecare ,110031,SP2 ,Community Services,MH OP South Locality,Adult Domiciliary Care - Spot,Third Party Payments,REVENUE
http://statistics.data.gov.uk/id/local-authority/00HY,Wiltshire Council,21/12/2012,5106226083,3173.66,Abicare Services Ltd Homecare ,110031,SP2 ,Community Services,OP West Locality,Adult Domiciliary Care - Mileage,Third Party Payments,REVENUE
http://statistics.data.gov.uk/id/local-authority/00HY,Wiltshire Council,14/12/2012,5106226092,1684.37,Abicare Services Ltd Homecare ,110031,SP2 ,Community Services,OP South Locality,Adult Domiciliary Care - Spot Contribution,Income,REVENUE
http://statistics.data.gov.uk/id/local-authority/00HY,Wiltshire Council,21/12/2012,5106226623,526.60,Abicare Services Ltd Homecare ,110031,SP2 ,Community Services,CTPLD County CIC U65,Adult Domiciliary Care - Spot,Third Party Payments,REVENUE
http://statistics.data.gov.uk/id/local-authority/00HY,Wiltshire Council,21/12/2012,5106224343,2893.52,Abicare Services Ltd Live in Care. ,113071,SP2 ,Community Services,CTPLD County CIC U65,Adult Domiciliary Care - Live in Care,Third Party Payments,REVENUE
http://statistics.data.gov.uk/id/local-authority/00HY,Wiltshire Council,21/12/2012,5106226078,2853.20,Abicare Services Ltd Live in Care. ,113071,SP2 ,Community Services,OP South Locality,Adult Domiciliary Care - Live in Care,Third Party Payments,REVENUE
http://statistics.data.gov.uk/id/local-authority/00HY,Wiltshire Council,11/12/2012,5106226088,3084.76,Abicare Services Ltd Live in Care. ,113071,SP2 ,Community Services,MH OP South Locality,Adult Domiciliary Care - Live in Care,Third Party Payments,REVENUE
http://statistics.data.gov.uk/id/local-authority/00HY,Wiltshire Council,11/12/2012,5106226089,2174.04,Abicare Services Ltd Live in Care. ,113071,SP2 ,Community Services,MH OP South Locality,Adult Domiciliary Care - Spot Contribution,Income,REVENUE
http://statistics.data.gov.uk/id/local-authority/00HY,Wiltshire Council,21/12/2012,5106226571,723.38,Abicare Services Ltd Live in Care. ,113071,SP2 ,Community Services,CTPLD County CIC U65,Adult Domiciliary Care - Live in Care,Third Party Payments,REVENUE
http://statistics.data.gov.uk/id/local-authority/00HY,Wiltshire Council,19/12/2012,5106226065,3320.72,Ability Associates Ltd ,110033,SP3 ,Community Services,CTPLD County CIC U65,Supported Living - Without SP payments,Third Party Payments,REVENUE
http://statistics.data.gov.uk/id/local-authority/00HY,Wiltshire Council,19/12/2012,5106226066,3852.04,Ability Associates Ltd ,110033,SP3 ,Community Services,CTPLD County CIC U65,Supported Living - Without SP payments,Third Party Payments,REVENUE
http://statistics.data.gov.uk/id/local-authority/00HY,Wiltshire Council,19/12/2012,5106227073,6383.00,Ability Associates Ltd ,110033,SP3 ,Community Services,CTPLD County CIC U65,Adult Residential Placements - Spot Purchase,Third Party Payments,REVENUE
http://statistics.data.gov.uk/id/local-authority/00HY,Wiltshire Council,19/12/2012,5106227075,6193.00,Ability Associates Ltd ,110033,SP3 ,Community Services,CTPLD County CIC U65,Adult Residential Placements - Spot Purchase,Third Party Payments,REVENUE
http://statistics.data.gov.uk/id/local-authority/00HY,Wiltshire Council,19/12/2012,5106227077,5500.44,Ability Associates Ltd ,110033,SP3 ,Community Services,CTPLD County CIC U65,Adult Residential Placements - Spot Purchase,Third Party Payments,REVENUE
http://statistics.data.gov.uk/id/local-authority/00HY,Wiltshire Council,19/12/2012,1900959500,1687.67,ABLE ,101029,BA14,Community Services,MH Commissioned Cont,Grants Paid to individuals for Tangible Benefits,Supplies and Services,REVENUE
http://statistics.data.gov.uk/id/local-authority/00HY,Wiltshire Council,19/12/2012,1900959501,1227.40,ABLE ,101029,BA14,Community Services,MH Commissioned Cont,Grants Paid to individuals for Tangible Benefits,Supplies and Services,REVENUE
http://statistics.data.gov.uk/id/local-authority/00HY,Wiltshire Council,19/12/2012,5106226068,425.32,ABLE ,101029,BA14,Community Services,MH AOWA North,Supported Living - Without SP payments,Third Party Payments,REVENUE
http://statistics.data.gov.uk/id/local-authority/00HY,Wiltshire Council,19/12/2012,5106226069,425.32,ABLE ,101029,BA14,Community Services,MH PCT Section 256,Adult Domiciliary Care - Spot,Third Party Payments,REVENUE
http://statistics.data.gov.uk/id/local-authority/00HY,Wiltshire Council,19/12/2012,5106227960,2502.00,ABLE ,110034,BA14,Community Services,MH PCT Section 256,Adult Residential Placements - Spot Purchase,Third Party Payments,REVENUE
http://statistics.data.gov.uk/id/local-authority/00HY,Wiltshire Council,19/12/2012,5106227962,2321.04,ABLE ,110034,BA14,Community Services,MH PCT Section 256,Adult Residential Placements - Spot Purchase,Third Party Payments,REVENUE
http://statistics.data.gov.uk/id/local-authority/00HY,Wiltshire Council,19/12/2012,5106227964,2933.80,ABLE ,110034,BA14,Community Services,MH PCT Section 256,Adult Residential Placements - Spot Purchase,Third Party Payments,REVENUE
http://statistics.data.gov.uk/id/local-authority/00HY,Wiltshire Council,19/12/2012,5106227966,2769.92,ABLE ,110034,BA14,Community Services,MH PCT Section 256,Adult Residential Placements - Spot Purchase,Third Party Payments,REVENUE
http://statistics.data.gov.uk/id/local-authority/00HY,Wiltshire Council,19/12/2012,5106228581,2481.88,ABLE ,110034,BA14,Community Services,MH PCT Section 256,Adult Residential Placements - Spot Purchase,Third Party Payments,REVENUE
http://statistics.data.gov.uk/id/local-authority/00HY,Wiltshire Council,19/12/2012,5106230281,2920.00,ABLE ,110034,BA14,Community Services,MH AOWA West,Adult Residential Placements - Spot Purchase,Third Party Payments,REVENUE
http://statistics.data.gov.uk/id/local-authority/00HY,Wiltshire Council,19/12/2012,5106230925,2844.12,ABLE ,110034,BA14,Community Services,MH AOWA West,Adult Residential Placements - Spot Purchase,Third Party Payments,REVENUE
http://statistics.data.gov.uk/id/local-authority/00HY,Wiltshire Council,03/12/2012,5106222371,361.66,Ablemove ,110035,TA6 ,Community Services,OP Central Holding,Premises Related Other Maintenance Costs,Premises Related,REVENUE
http://statistics.data.gov.uk/id/local-authority/00HY,Wiltshire Council,07/12/2012,1900951444,8263.14,AC  and  MS Ltd ,101175,SS6 ,Resources,Fire Extinguishers,Preventative Property Maintenance,Premises Related,REVENUE
http://statistics.data.gov.uk/id/local-authority/00HY,Wiltshire Council,07/12/2012,1900951447,8204.66,AC  and  MS Ltd ,101175,SS6 ,Resources,WTP Office,Preventative Property Maintenance,Premises Related,REVENUE
http://statistics.data.gov.uk/id/local-authority/00HY,Wiltshire Council,17/12/2012,1900951448,712.00,AC  and  MS Ltd ,101175,SS6 ,Resources,Primary Sch Pooling,Preventative Property Maintenance,Premises Related,REVENUE
http://statistics.data.gov.uk/id/local-authority/00HY,Wiltshire Council,10/12/2012,1900951521,1250.00,AC  and  MS Ltd ,101175,SS6 ,Resources,Primary Schools,Preventative Property Maintenance,Premises Related,REVENUE
http://statistics.data.gov.uk/id/local-authority/00HY,Wiltshire Council,21/12/2012,1900958921,794.63,AC  and  MS Ltd ,101175,SS6 ,Wiltshire Council,Wiltshire Council,Buildings Minor Alterations,Premises Related,CAPITAL
http://statistics.data.gov.uk/id/local-authority/00HY,Wiltshire Council,07/12/2012,5106216848,13685.00,AC  and  MS Ltd ,101175,SS6 ,Wiltshire Council,Wiltshire Council,Premises Related Other Maintenance Costs,Premises Related,CAPITAL
http://statistics.data.gov.uk/id/local-authority/00HY,Wiltshire Council,10/12/2012,5106216849,6110.00,AC  and  MS Ltd ,101175,SS6 ,Wiltshire Council,Wiltshire Council,Premises Related Other Maintenance Costs,Premises Related,CAPITAL
http://statistics.data.gov.uk/id/local-authority/00HY,Wiltshire Council,20/12/2012,5106231929,440.00,AC  and  MS Ltd ,101175,SS6 ,Wiltshire Council,Wiltshire Council,Premises Related Other Maintenance Costs,Premises Related,CAPITAL
http://statistics.data.gov.uk/id/local-authority/00HY,Wiltshire Council,21/12/2012,5106225047,2629.52,Access Care Ltd ,110037,SP10,Community Services,PI East Locality,Adult Domiciliary care - Live in contribution,Income,REVENUE
http://statistics.data.gov.uk/id/local-authority/00HY,Wiltshire Council,21/12/2012,5106225048,2207.80,Access Care Ltd ,110037,SP10,Community Services,OP South Locality,Adult Domiciliary care - Live in contribution,Income,REVENUE
http://statistics.data.gov.uk/id/local-authority/00HY,Wiltshire Council,21/12/2012,5106225049,3685.88,Access Care Ltd ,110037,SP10,Community Services,OP West Locality,Adult Domiciliary care - Live in contribution,Income,REVENUE
http://statistics.data.gov.uk/id/local-authority/00HY,Wiltshire Council,07/12/2012,5106222932,350.00,Acer Tree Surgeons Ltd ,113296,BA13,Neighbourhood & Planning,Woodland & Tree Mtc,Grounds Maintenance,Premises Related,REVENUE
http://statistics.data.gov.uk/id/local-authority/00HY,Wiltshire Council,07/12/2012,5106222936,450.00,Acer Tree Surgeons Ltd ,113296,BA13,Neighbourhood & Planning,Woodland & Tree Mtc,Grounds Maintenance,Premises Related,REVENUE
http://statistics.data.gov.uk/id/local-authority/00HY,Wiltshire Council,14/12/2012,5106222937,450.00,Acer Tree Surgeons Ltd ,113296,BA13,Neighbourhood & Planning,Woodland & Tree Mtc,Grounds Maintenance,Premises Related,REVENUE
http://statistics.data.gov.uk/id/local-authority/00HY,Wiltshire Council,13/12/2012,1900956973,3309.90,Achieving Sustainable Change ,135349,CF23,Children & Education,Complex Families Prj,Consultants� Fees,Supplies and Services,REVENUE
http://statistics.data.gov.uk/id/local-authority/00HY,Wiltshire Council,13/12/2012,1900956975,3309.15,Achieving Sustainable Change ,135349,CF23,Children & Education,Complex Families Prj,Consultants� Fees,Supplies and Services,REVENUE
http://statistics.data.gov.uk/id/local-authority/00HY,Wiltshire Council,17/12/2012,5106226374,265.00,Act Now Training Ltd ,113308,WF13,Resources,MonitoringOfficer,Staff Training Course Costs,Employee Related,REVENUE
http://statistics.data.gov.uk/id/local-authority/00HY,Wiltshire Council,07/12/2012,5106224453,3066.00,Action on Addiction ,110046,SP3 ,Community Services,(9)ResPlacementsPCT,Adult Residential Placements - Substance Misuse,Third Party Payments,REVENUE
http://statistics.data.gov.uk/id/local-authority/00HY,Wiltshire Council,07/12/2012,5106224453,3066.00,Action on Addiction ,110046,SP3 ,Community Services,(9)ResPlacementsCIC,Adult Residential Placements - Substance Misuse,Third Party Payments,REVENUE
http://statistics.data.gov.uk/id/local-authority/00HY,Wiltshire Council,17/12/2012,5106227633,1547.70,Action on Addiction ,110046,SP3 ,Community Services,(9)ResPlacementsPCT,Adult Residential Placements - Substance Misuse,Third Party Payments,REVENUE
http://statistics.data.gov.uk/id/local-authority/00HY,Wiltshire Council,17/12/2012,5106227633,1547.70,Action on Addiction ,110046,SP3 ,Community Services,(9)ResPlacementsCIC,Adult Residential Placements - Substance Misuse,Third Party Payments,REVENUE
http://statistics.data.gov.uk/id/local-authority/00HY,Wiltshire Council,17/12/2012,5106227634,2796.60,Action on Addiction ,110046,SP3 ,Community Services,(9)ResPlacementsCIC,Adult Residential Place - Substance Misuse Cont,Income,REVENUE
http://statistics.data.gov.uk/id/local-authority/00HY,Wiltshire Council,17/12/2012,5106227634,3066.00,Action on Addiction ,110046,SP3 ,Community Services,(9)ResPlacementsPCT,Adult Residential Placements - Substance Misuse,Third Party Payments,REVENUE
http://statistics.data.gov.uk/id/local-authority/00HY,Wiltshire Council,17/12/2012,5106227637,1679.10,Action on Addiction ,110046,SP3 ,Community Services,(9)ResPlacementsPCT,Adult Residential Placements - Substance Misuse,Third Party Payments,REVENUE
http://statistics.data.gov.uk/id/local-authority/00HY,Wiltshire Council,17/12/2012,5106227637,1679.40,Action on Addiction ,110046,SP3 ,Community Services,(9)ResPlacementsCIC,Adult Residential Placements - Substance Misuse,Third Party Payments,REVENUE
http://statistics.data.gov.uk/id/local-authority/00HY,Wiltshire Council,19/12/2012,5106226075,1165.96,Action on Hearing Loss ,112215,EC1Y,Community Services,PI West Locality,Adult Domiciliary Care - Spot,Third Party Payments,REVENUE
http://statistics.data.gov.uk/id/local-authority/00HY,Wiltshire Council,19/12/2012,5106228264,5897.96,Action on Hearing Loss ,112215,EC1Y,Community Services,PI South Locality,Adult Residential Placements - Spot Purchase,Third Party Payments,REVENUE
http://statistics.data.gov.uk/id/local-authority/00HY,Wiltshire Council,19/12/2012,5106228886,5009.56,Action on Hearing Loss ,112215,EC1Y,Community Services,OP North Locality,Adult Residential Placements - Spot Purchase,Third Party Payments,REVENUE
http://statistics.data.gov.uk/id/local-authority/00HY,Wiltshire Council,03/12/2012,1900951827,1100.00,Active Assisstance ,131584,TN13,Community Services,DCS Dept Balance Sht,DCS Holding Account,Balance Sheet Accounts,REVENUE
http://statistics.data.gov.uk/id/local-authority/00HY,Wiltshire Council,03/12/2012,1900951830,1100.00,Active Assisstance ,131584,TN13,Community Services,DCS Dept Balance Sht,DCS Holding Account,Balance Sheet Accounts,REVENUE
http://statistics.data.gov.uk/id/local-authority/00HY,Wiltshire Council,05/12/2012,5106216859,302.52,Adams Morey Ltd ,110053,SP2 ,Neighbourhood & Planning,Fleet Operations,Vehicle Parts,Transport Related,REVENUE
http://statistics.data.gov.uk/id/local-authority/00HY,Wiltshire Council,07/12/2012,5106216862,829.59,Adams Morey Ltd ,110053,SP2 ,Neighbourhood & Planning,Fleet Operations,Vehicle Parts,Transport Related,REVENUE
http://statistics.data.gov.uk/id/local-authority/00HY,Wiltshire Council,06/12/2012,5106216863,811.26,Adams Morey Ltd ,110053,SP2 ,Neighbourhood & Planning,Fleet Operations,Vehicle Parts,Transport Related,REVENUE
http://statistics.data.gov.uk/id/local-authority/00HY,Wiltshire Council,11/12/2012,5106216943,507.23,Adams Morey Ltd ,110053,SP2 ,Neighbourhood & Planning,Fleet Operations,Vehicle Parts,Transport Related,REVENUE
http://statistics.data.gov.uk/id/local-authority/00HY,Wiltshire Council,12/12/2012,5106216947,1026.60,Adams Morey Ltd ,110053,SP2 ,Neighbourhood & Planning,Fleet Operations,Vehicle Parts,Transport Related,REVENUE
http://statistics.data.gov.uk/id/local-authority/00HY,Wiltshire Council,18/12/2012,5106220709,265.00,Adams Morey Ltd ,110053,SP2 ,Neighbourhood & Planning,Fleet Operations,Vehicle Oil & Consumables,Transport Related,REVENUE
http://statistics.data.gov.uk/id/local-authority/00HY,Wiltshire Council,18/12/2012,5106224429,872.53,Adams Morey Ltd ,110053,SP2 ,Neighbourhood & Planning,Fleet Operations,Vehicle Parts,Transport Related,REVENUE
http://statistics.data.gov.uk/id/local-authority/00HY,Wiltshire Council,21/12/2012,5106224440,368.49,Adams Morey Ltd ,110053,SP2 ,Neighbourhood & Planning,Fleet Operations,Vehicle Parts,Transport Related,REVENUE
http://statistics.data.gov.uk/id/local-authority/00HY,Wiltshire Council,20/12/2012,5106224443,541.87,Adams Morey Ltd ,110053,SP2 ,Neighbourhood & Planning,Fleet Operations,Vehicle Parts,Transport Related,REVENUE
http://statistics.data.gov.uk/id/local-authority/00HY,Wiltshire Council,21/12/2012,5106224446,985.85,Adams Morey Ltd ,110053,SP2 ,Neighbourhood & Planning,Fleet Operations,Vehicle Parts,Transport Related,REVENUE
http://statistics.data.gov.uk/id/local-authority/00HY,Wiltshire Council,21/12/2012,5106224447,270.02,Adams Morey Ltd ,110053,SP2 ,Neighbourhood & Planning,Fleet Operations,Vehicle Parts,Transport Related,REVENUE
http://statistics.data.gov.uk/id/local-authority/00HY,Wiltshire Council,17/12/2012,5106224461,547.21,Adams Morey Ltd ,110053,SP2 ,Neighbourhood & Planning,Fleet Operations,Vehicle Parts,Transport Related,REVENUE
http://statistics.data.gov.uk/id/local-authority/00HY,Wiltshire Council,07/12/2012,5106224633,392.00,Adams Morey Ltd ,110053,SP2 ,Neighbourhood & Planning,Fleet Operations,Vehicle Oil & Consumables,Transport Related,REVENUE
http://statistics.data.gov.uk/id/local-authority/00HY,Wiltshire Council,07/12/2012,5106224634,286.11,Adams Morey Ltd ,110053,SP2 ,Neighbourhood & Planning,Fleet Operations,Vehicle Parts,Transport Related,REVENUE
http://statistics.data.gov.uk/id/local-authority/00HY,Wiltshire Council,21/12/2012,5106235580,1141.25,Adams Morey Ltd ,110053,SP2 ,Neighbourhood & Planning,Fleet Operations,Vehicle Parts,Transport Related,REVENUE
http://statistics.data.gov.uk/id/local-authority/00HY,Wiltshire Council,21/12/2012,5106235581,368.49,Adams Morey Ltd ,110053,SP2 ,Neighbourhood & Planning,Fleet Operations,Vehicle Parts,Transport Related,REVENUE
http://statistics.data.gov.uk/id/local-authority/00HY,Wiltshire Council,21/12/2012,5106235585,1011.87,Adams Morey Ltd ,110053,SP2 ,Neighbourhood & Planning,Fleet Operations,Vehicle Parts,Transport Related,REVENUE
http://statistics.data.gov.uk/id/local-authority/00HY,Wiltshire Council,21/12/2012,5106235586,1257.07,Adams Morey Ltd ,110053,SP2 ,Neighbourhood & Planning,Fleet Operations,Vehicle Parts,Transport Related,REVENUE
http://statistics.data.gov.uk/id/local-authority/00HY,Wiltshire Council,21/12/2012,5106235588,916.40,Adams Morey Ltd ,110053,SP2 ,Neighbourhood & Planning,Fleet Operations,Vehicle Parts,Transport Related,REVENUE
http://statistics.data.gov.uk/id/local-authority/00HY,Wiltshire Council,20/12/2012,5106231940,450.00,ADASS ,110054,CH7 ,Resources,Corporate Directors,Staff Training Course Costs,Employee Related,REVENUE
http://statistics.data.gov.uk/id/local-authority/00HY,Wiltshire Council,17/12/2012,5106226936,1535.00,ADASS [London] ,125245,SW1P,Resources,Corporate Directors,Professional Subscriptions/Memberships,Employee Related,REVENUE
http://statistics.data.gov.uk/id/local-authority/00HY,Wiltshire Council,18/12/2012,1900958740,5000.20,Adiemus Care Limited - Ravenscroft ,132154,HA1 ,Community Services,FNC,Adult Care Funded Nursing Care - Out of County Cli,Third Party Payments,REVENUE
http://statistics.data.gov.uk/id/local-authority/00HY,Wiltshire Council,21/12/2012,1900960050,4316.94,Adiemus Care Limited - Ravenscroft ,132154,HA1 ,Community Services,FNC,Adult Care Funded Nursing Care - Out of County Cli,Third Party Payments,REVENUE
http://statistics.data.gov.uk/id/local-authority/00HY,Wiltshire Council,19/12/2012,5106227192,2021.52,Adiemus Care Limited - Ravenscroft ,132154,HA1 ,Community Services,MH OP West Locality,Adult Care Nursing Placements- Spot Purchase,Third Party Payments,REVENUE
http://statistics.data.gov.uk/id/local-authority/00HY,Wiltshire Council,19/12/2012,5106227193,434.80,Adiemus Care Limited - Ravenscroft ,132154,HA1 ,Community Services,MH OA West FNC,Adult Care Funded Nursing Care - Loal Auth Clients,Third Party Payments,REVENUE
http://statistics.data.gov.uk/id/local-authority/00HY,Wiltshire Council,19/12/2012,5106228675,1947.32,Adiemus Care Limited - Ravenscroft ,132154,HA1 ,Community Services,OP West Locality,Adult Care Nursing Placements- Spot Purchase,Third Party Payments,REVENUE
http://statistics.data.gov.uk/id/local-authority/00HY,Wiltshire Council,19/12/2012,5106228676,434.80,Adiemus Care Limited - Ravenscroft ,132154,HA1 ,Community Services,OP West FNC,Adult Care Funded Nursing Care - Loal Auth Clients,Third Party Payments,REVENUE
http://statistics.data.gov.uk/id/local-authority/00HY,Wiltshire Council,19/12/2012,5106228678,2085.20,Adiemus Care Limited - Ravenscroft ,132154,HA1 ,Community Services,OP West Locality,Adult Care Nursing Placements- Spot Purchase,Third Party Payments,REVENUE
http://statistics.data.gov.uk/id/local-authority/00HY,Wiltshire Council,19/12/2012,5106228679,434.80,Adiemus Care Limited - Ravenscroft ,132154,HA1 ,Community Services,OP West FNC,Adult Care Funded Nursing Care - Loal Auth Clients,Third Party Payments,REVENUE
http://statistics.data.gov.uk/id/local-authority/00HY,Wiltshire Council,19/12/2012,5106228681,1643.96,Adiemus Care Limited - Ravenscroft ,132154,HA1 ,Community Services,OP West Locality,Adult Care Nursing Placements- Spot Purchase,Third Party Payments,REVENUE
http://statistics.data.gov.uk/id/local-authority/00HY,Wiltshire Council,19/12/2012,5106228682,434.80,Adiemus Care Limited - Ravenscroft ,132154,HA1 ,Community Services,OP West FNC,Adult Care Funded Nursing Care - Loal Auth Clients,Third Party Payments,REVENUE
http://statistics.data.gov.uk/id/local-authority/00HY,Wiltshire Council,19/12/2012,5106228684,1456.88,Adiemus Care Limited - Ravenscroft ,132154,HA1 ,Community Services,MH OP West Locality,Adult Care Nursing Placements- Spot Purchase,Third Party Payments,REVENUE
http://statistics.data.gov.uk/id/local-authority/00HY,Wiltshire Council,19/12/2012,5106228685,434.80,Adiemus Care Limited - Ravenscroft ,132154,HA1 ,Community Services,MH OA West FNC,Adult Care Funded Nursing Care - Loal Auth Clients,Third Party Payments,REVENUE
http://statistics.data.gov.uk/id/local-authority/00HY,Wiltshire Council,19/12/2012,5106228687,2008.40,Adiemus Care Limited - Ravenscroft ,132154,HA1 ,Community Services,OP West Locality,Adult Care Nursing Placements- Spot Purchase,Third Party Payments,REVENUE
http://statistics.data.gov.uk/id/local-authority/00HY,Wiltshire Council,19/12/2012,5106228688,434.80,Adiemus Care Limited - Ravenscroft ,132154,HA1 ,Community Services,OP West FNC,Adult Care Funded Nursing Care - Loal Auth Clients,Third Party Payments,REVENUE
http://statistics.data.gov.uk/id/local-authority/00HY,Wiltshire Council,19/12/2012,5106228714,2021.52,Adiemus Care Limited - Ravenscroft ,132154,HA1 ,Community Services,OP West Locality,Adult Care Nursing Placements- Spot Purchase,Third Party Payments,REVENUE
http://statistics.data.gov.uk/id/local-authority/00HY,Wiltshire Council,19/12/2012,5106228715,434.80,Adiemus Care Limited - Ravenscroft ,132154,HA1 ,Community Services,OP West FNC,Adult Care Funded Nursing Care - Loal Auth Clients,Third Party Payments,REVENUE
http://statistics.data.gov.uk/id/local-authority/00HY,Wiltshire Council,19/12/2012,5106228719,2021.52,Adiemus Care Limited - Ravenscroft ,132154,HA1 ,Community Services,OP West Locality,Adult Care Nursing Placements- Spot Purchase,Third Party Payments,REVENUE
http://statistics.data.gov.uk/id/local-authority/00HY,Wiltshire Council,19/12/2012,5106228720,434.80,Adiemus Care Limited - Ravenscroft ,132154,HA1 ,Community Services,OP West FNC,Adult Care Funded Nursing Care - Loal Auth Clients,Third Party Payments,REVENUE
http://statistics.data.gov.uk/id/local-authority/00HY,Wiltshire Council,19/12/2012,5106229025,2382.12,Adiemus Care Limited - Ravenscroft ,132154,HA1 ,Community Services,OP West Locality,Adult Residential Placements - Spot Purchase,Third Party Payments,REVENUE
http://statistics.data.gov.uk/id/local-authority/00HY,Wiltshire Council,19/12/2012,5106229055,2000.00,Adiemus Care Limited - Ravenscroft ,132154,HA1 ,Community Services,OP West Locality,Adult Residential Placements - Spot Purchase,Third Party Payments,REVENUE
http://statistics.data.gov.uk/id/local-authority/00HY,Wiltshire Council,19/12/2012,5106229138,1958.84,Adiemus Care Limited - Ravenscroft ,132154,HA1 ,Community Services,MH OP West Locality,Adult Residential Placements - Spot Purchase,Third Party Payments,REVENUE
http://statistics.data.gov.uk/id/local-authority/00HY,Wiltshire Council,19/12/2012,5106229344,2021.52,Adiemus Care Limited - Ravenscroft ,132154,HA1 ,Community Services,OP West Locality,Adult Care Nursing Placements- Spot Purchase,Third Party Payments,REVENUE
http://statistics.data.gov.uk/id/local-authority/00HY,Wiltshire Council,19/12/2012,5106229345,434.80,Adiemus Care Limited - Ravenscroft ,132154,HA1 ,Community Services,OP West FNC,Adult Care Funded Nursing Care - Loal Auth Clients,Third Party Payments,REVENUE
http://statistics.data.gov.uk/id/local-authority/00HY,Wiltshire Council,19/12/2012,5106229347,1456.88,Adiemus Care Limited - Ravenscroft ,132154,HA1 ,Community Services,OP West Locality,Adult Care Nursing Placements- Spot Purchase,Third Party Payments,REVENUE
http://statistics.data.gov.uk/id/local-authority/00HY,Wiltshire Council,19/12/2012,5106229348,434.80,Adiemus Care Limited - Ravenscroft ,132154,HA1 ,Community Services,OP West FNC,Adult Care Funded Nursing Care - Loal Auth Clients,Third Party Payments,REVENUE
http://statistics.data.gov.uk/id/local-authority/00HY,Wiltshire Council,19/12/2012,5106229350,2021.52,Adiemus Care Limited - Ravenscroft ,132154,HA1 ,Community Services,MH AOWA West,Adult Care Nursing Placements- Spot Purchase,Third Party Payments,REVENUE
http://statistics.data.gov.uk/id/local-authority/00HY,Wiltshire Council,19/12/2012,5106229351,434.80,Adiemus Care Limited - Ravenscroft ,132154,HA1 ,Community Services,MH AOWA West FNC,Adult Care Funded Nursing Care - Loal Auth Clients,Third Party Payments,REVENUE
http://statistics.data.gov.uk/id/local-authority/00HY,Wiltshire Council,19/12/2012,5106230138,2021.52,Adiemus Care Limited - Ravenscroft ,132154,HA1 ,Community Services,OP West Locality,Adult Care Nursing Placements- Spot Purchase,Third Party Payments,REVENUE
http://statistics.data.gov.uk/id/local-authority/00HY,Wiltshire Council,19/12/2012,5106230140,434.80,Adiemus Care Limited - Ravenscroft ,132154,HA1 ,Community Services,OP West FNC,Adult Care Funded Nursing Care - Loal Auth Clients,Third Party Payments,REVENUE
http://statistics.data.gov.uk/id/local-authority/00HY,Wiltshire Council,19/12/2012,5106230319,2021.52,Adiemus Care Limited - Ravenscroft ,132154,HA1 ,Community Services,OP West Locality,Adult Care Nursing Placements- Spot Purchase,Third Party Payments,REVENUE
http://statistics.data.gov.uk/id/local-authority/00HY,Wiltshire Council,19/12/2012,5106230321,434.80,Adiemus Care Limited - Ravenscroft ,132154,HA1 ,Community Services,OP West FNC,Adult Care Funded Nursing Care - Loal Auth Clients,Third Party Payments,REVENUE
http://statistics.data.gov.uk/id/local-authority/00HY,Wiltshire Council,18/12/2012,5106230362,2021.52,Adiemus Care Limited - Ravenscroft ,132154,HA1 ,Community Services,OP West Locality,Adult Care Nursing Placements- Spot Purchase,Third Party Payments,REVENUE
http://statistics.data.gov.uk/id/local-authority/00HY,Wiltshire Council,18/12/2012,5106230364,434.80,Adiemus Care Limited - Ravenscroft ,132154,HA1 ,Community Services,OP West FNC,Adult Care Funded Nursing Care - Loal Auth Clients,Third Party Payments,REVENUE
http://statistics.data.gov.uk/id/local-authority/00HY,Wiltshire Council,19/12/2012,5106230442,1878.60,Adiemus Care Limited - Ravenscroft ,132154,HA1 ,Community Services,OP West Locality,Adult Residential Placements - Spot Purchase,Third Party Payments,REVENUE
http://statistics.data.gov.uk/id/local-authority/00HY,Wiltshire Council,14/12/2012,1900957504,822.15,Adrains Engineering Psv ,100848,SN15,Neighbourhood & Planning,Mainstream Primary,Transport Contracts,Third Party Payments,REVENUE
http://statistics.data.gov.uk/id/local-authority/00HY,Wiltshire Council,14/12/2012,1900957504,822.16,Adrains Engineering Psv ,100848,SN15,Neighbourhood & Planning,Public Transport,Transport Contracts,Third Party Payments,REVENUE
http://statistics.data.gov.uk/id/local-authority/00HY,Wiltshire Council,14/12/2012,1900957504,2466.46,Adrains Engineering Psv ,100848,SN15,Neighbourhood & Planning,Mainstream Secondary,Transport Contracts,Third Party Payments,REVENUE
http://statistics.data.gov.uk/id/local-authority/00HY,Wiltshire Council,14/12/2012,1900957505,1197.58,Adrains Engineering Psv ,100848,SN15,Neighbourhood & Planning,Mainstream Secondary,Transport Contracts,Third Party Payments,REVENUE
http://statistics.data.gov.uk/id/local-authority/00HY,Wiltshire Council,14/12/2012,1900957505,4911.90,Adrains Engineering Psv ,100848,SN15,Neighbourhood & Planning,Mainstream Primary,Transport Contracts,Third Party Payments,REVENUE
http://statistics.data.gov.uk/id/local-authority/00HY,Wiltshire Council,14/12/2012,1900957505,9117.90,Adrains Engineering Psv ,100848,SN15,Neighbourhood & Planning,Public Transport,Transport Contracts,Third Party Payments,REVENUE
http://statistics.data.gov.uk/id/local-authority/00HY,Wiltshire Council,14/12/2012,1900957507,2560.22,Adrains Engineering Psv ,100848,SN15,Neighbourhood & Planning,Public Transport,Transport Contracts,Third Party Payments,REVENUE
http://statistics.data.gov.uk/id/local-authority/00HY,Wiltshire Council,14/12/2012,1900957507,3302.59,Adrains Engineering Psv ,100848,SN15,Neighbourhood & Planning,Mainstream Secondary,Transport Contracts,Third Party Payments,REVENUE
http://statistics.data.gov.uk/id/local-authority/00HY,Wiltshire Council,14/12/2012,1900957508,696.96,Adrains Engineering Psv ,100848,SN15,Neighbourhood & Planning,Public Transport,Transport Contracts,Third Party Payments,REVENUE
http://statistics.data.gov.uk/id/local-authority/00HY,Wiltshire Council,14/12/2012,1900957521,1750.66,Adrains Engineering Psv ,100848,SN15,Neighbourhood & Planning,Public Transport,Transport Contracts,Third Party Payments,REVENUE
http://statistics.data.gov.uk/id/local-authority/00HY,Wiltshire Council,14/12/2012,1900957521,3738.82,Adrains Engineering Psv ,100848,SN15,Neighbourhood & Planning,Mainstream Primary,Transport Contracts,Third Party Payments,REVENUE
http://statistics.data.gov.uk/id/local-authority/00HY,Wiltshire Council,14/12/2012,1900957522,1562.76,Adrains Engineering Psv ,100848,SN15,Neighbourhood & Planning,Mainstream Primary,Transport Contracts,Third Party Payments,REVENUE
http://statistics.data.gov.uk/id/local-authority/00HY,Wiltshire Council,14/12/2012,1900957522,2405.55,Adrains Engineering Psv ,100848,SN15,Neighbourhood & Planning,Public Transport,Transport Contracts,Third Party Payments,REVENUE
http://statistics.data.gov.uk/id/local-authority/00HY,Wiltshire Council,12/12/2012,5106226094,14352.00,ADVANCE SEVEN LTD ,110061,CM6 ,Resources,InformationManagemt,Staff Training Course Costs,Employee Related,REVENUE
http://statistics.data.gov.uk/id/local-authority/00HY,Wiltshire Council,07/12/2012,5106224591,13864.20,Advanced Childcare ,134811,SK8 ,Children & Education,External Placements,Adult / Child Care Agency Placement,Third Party Payments,REVENUE
http://statistics.data.gov.uk/id/local-authority/00HY,Wiltshire Council,18/12/2012,5106222263,339.62,Advanced Fire Systems Ltd ,110062,BS7 ,Neighbourhood & Planning,Housg Rprs Contracts,Premises Related Other Maintenance Costs,Premises Related,REVENUE
http://statistics.data.gov.uk/id/local-authority/00HY,Wiltshire Council,18/12/2012,5106222264,3367.00,Advanced Fire Systems Ltd ,110062,BS7 ,Neighbourhood & Planning,Housing Rprs Simdell,Premises Related Other Maintenance Costs,Premises Related,REVENUE
http://statistics.data.gov.uk/id/local-authority/00HY,Wiltshire Council,18/12/2012,5106222265,297.70,Advanced Fire Systems Ltd ,110062,BS7 ,Neighbourhood & Planning,Housg Rprs Contracts,Premises Related Other Maintenance Costs,Premises Related,REVENUE
http://statistics.data.gov.uk/id/local-authority/00HY,Wiltshire Council,05/12/2012,5106217068,1400.00,AginCare Live In Care Services Ltd ,110071,DT4 ,Community Services,PI West Locality,Adult Domiciliary Care - Live in Care,Third Party Payments,REVENUE
http://statistics.data.gov.uk/id/local-authority/00HY,Wiltshire Council,05/12/2012,5106217069,1549.94,AginCare Live In Care Services Ltd ,110071,DT4 ,Community Services,PI West Locality,Adult Domiciliary Care - Live in Care,Third Party Payments,REVENUE
http://statistics.data.gov.uk/id/local-authority/00HY,Wiltshire Council,05/12/2012,5106217070,1549.94,AginCare Live In Care Services Ltd ,110071,DT4 ,Community Services,PI South Locality,Adult Domiciliary Care - Live in Care,Third Party Payments,REVENUE
http://statistics.data.gov.uk/id/local-authority/00HY,Wiltshire Council,05/12/2012,5106217071,669.34,AginCare Live In Care Services Ltd ,110071,DT4 ,Community Services,OP South Locality,Adult Domiciliary care - Live in contribution,Income,REVENUE
http://statistics.data.gov.uk/id/local-authority/00HY,Wiltshire Council,05/12/2012,5106217072,740.00,AginCare Live In Care Services Ltd ,110071,DT4 ,Community Services,OP South Locality,Adult Domiciliary care - Live in contribution,Income,REVENUE
http://statistics.data.gov.uk/id/local-authority/00HY,Wiltshire Council,05/12/2012,5106217073,607.38,AginCare Live In Care Services Ltd ,110071,DT4 ,Community Services,OP South Locality,Adult Domiciliary care - Live in contribution,Income,REVENUE
http://statistics.data.gov.uk/id/local-authority/00HY,Wiltshire Council,05/12/2012,5106222715,1336.30,AginCare Live In Care Services Ltd ,110071,DT4 ,Community Services,PI North Locality,Adult Domiciliary care - Live in contribution,Income,REVENUE
http://statistics.data.gov.uk/id/local-authority/00HY,Wiltshire Council,21/12/2012,5106223436,1355.58,AginCare Live In Care Services Ltd ,110071,DT4 ,Community Services,OP South Locality,Adult Domiciliary care - Live in contribution,Income,REVENUE
http://statistics.data.gov.uk/id/local-authority/00HY,Wiltshire Council,05/12/2012,5106223437,1355.58,AginCare Live In Care Services Ltd ,110071,DT4 ,Community Services,OP South Locality,Adult Domiciliary care - Live in contribution,Income,REVENUE
http://statistics.data.gov.uk/id/local-authority/00HY,Wiltshire Council,21/12/2012,5106223438,669.34,AginCare Live In Care Services Ltd ,110071,DT4 ,Community Services,OP South Locality,Adult Domiciliary care - Live in contribution,Income,REVENUE
http://statistics.data.gov.uk/id/local-authority/00HY,Wiltshire Council,21/12/2012,5106223439,1400.00,AginCare Live In Care Services Ltd ,110071,DT4 ,Community Services,PI West Locality,Adult Domiciliary Care - Live in Care,Third Party Payments,REVENUE
http://statistics.data.gov.uk/id/local-authority/00HY,Wiltshire Council,21/12/2012,5106223450,607.38,AginCare Live In Care Services Ltd ,110071,DT4 ,Community Services,OP South Locality,Adult Domiciliary care - Live in contribution,Income,REVENUE
http://statistics.data.gov.uk/id/local-authority/00HY,Wiltshire Council,21/12/2012,5106223451,1549.94,AginCare Live In Care Services Ltd ,110071,DT4 ,Community Services,PI West Locality,Adult Domiciliary Care - Live in Care,Third Party Payments,REVENUE
http://statistics.data.gov.uk/id/local-authority/00HY,Wiltshire Council,21/12/2012,5106223452,1549.94,AginCare Live In Care Services Ltd ,110071,DT4 ,Community Services,PI South Locality,Adult Domiciliary Care - Live in Care,Third Party Payments,REVENUE
http://statistics.data.gov.uk/id/local-authority/00HY,Wiltshire Council,21/12/2012,5106223511,799.96,AginCare Live In Care Services Ltd ,110071,DT4 ,Community Services,OP South Locality,Adult Domiciliary Care - Live in Care,Third Party Payments,REVENUE
http://statistics.data.gov.uk/id/local-authority/00HY,Wiltshire Council,21/12/2012,5106227813,1549.94,AginCare Live In Care Services Ltd ,110071,DT4 ,Community Services,PI South Locality,Adult Domiciliary Care - Live in Care,Third Party Payments,REVENUE
http://statistics.data.gov.uk/id/local-authority/00HY,Wiltshire Council,21/12/2012,5106227820,740.00,AginCare Live In Care Services Ltd ,110071,DT4 ,Community Services,OP South Locality,Adult Domiciliary care - Live in contribution,Income,REVENUE
http://statistics.data.gov.uk/id/local-authority/00HY,Wiltshire Council,21/12/2012,5106227828,669.34,AginCare Live In Care Services Ltd ,110071,DT4 ,Community Services,OP South Locality,Adult Domiciliary care - Live in contribution,Income,REVENUE
http://statistics.data.gov.uk/id/local-authority/00HY,Wiltshire Council,21/12/2012,5106226101,395.32,Agincare Ltd ,110069,DT4 ,Community Services,MH OP North Locality,Adult Domiciliary Care - Spot,Third Party Payments,REVENUE
http://statistics.data.gov.uk/id/local-authority/00HY,Wiltshire Council,12/12/2012,5106226161,287.08,Agincare Ltd ,110069,DT4 ,Community Services,OP West Locality,Adult Domiciliary Care - Block,Third Party Payments,REVENUE
http://statistics.data.gov.uk/id/local-authority/00HY,Wiltshire Council,12/12/2012,5106226161,646.12,Agincare Ltd ,110069,DT4 ,Community Services,OP South Locality,Adult Domiciliary Care - Block Contribution,Income,REVENUE
http://statistics.data.gov.uk/id/local-authority/00HY,Wiltshire Council,12/12/2012,5106226161,833.64,Agincare Ltd ,110069,DT4 ,Community Services,MH OP South Locality,Adult Domiciliary Care - Block,Third Party Payments,REVENUE
http://statistics.data.gov.uk/id/local-authority/00HY,Wiltshire Council,12/12/2012,5106226161,1185.96,Agincare Ltd ,110069,DT4 ,Community Services,PI South Locality,Adult Domiciliary Care - Block Contribution,Income,REVENUE
http://statistics.data.gov.uk/id/local-authority/00HY,Wiltshire Council,12/12/2012,5106226162,395.32,Agincare Ltd ,110069,DT4 ,Community Services,MH PCT Section 256,Adult Domiciliary Care - Block,Third Party Payments,REVENUE
http://statistics.data.gov.uk/id/local-authority/00HY,Wiltshire Council,12/12/2012,5106226162,542.55,Agincare Ltd ,110069,DT4 ,Community Services,MH OP North Locality,Adult Domiciliary Care - Block Contribution,Income,REVENUE
http://statistics.data.gov.uk/id/local-authority/00HY,Wiltshire Council,12/12/2012,5106226162,790.64,Agincare Ltd ,110069,DT4 ,Community Services,MH AOWA West,Adult Domiciliary Care - Block,Third Party Payments,REVENUE
http://statistics.data.gov.uk/id/local-authority/00HY,Wiltshire Council,12/12/2012,5106226162,2830.00,Agincare Ltd ,110069,DT4 ,Community Services,MH AOWA North,Adult Domiciliary Care - Block,Third Party Payments,REVENUE
http://statistics.data.gov.uk/id/local-authority/00HY,Wiltshire Council,12/12/2012,5106226162,5428.76,Agincare Ltd ,110069,DT4 ,Community Services,OP North Locality,Adult Domiciliary Care - Block Contribution,Income,REVENUE
http://statistics.data.gov.uk/id/local-authority/00HY,Wiltshire Council,18/12/2012,5106227810,1529.92,Agincare Ltd ,110069,DT4 ,Community Services,MH AOWA West,Adult Domiciliary Care - Live in Care,Third Party Payments,REVENUE
http://statistics.data.gov.uk/id/local-authority/00HY,Wiltshire Council,18/12/2012,5106227834,1429.96,Agincare Ltd ,110069,DT4 ,Community Services,MH OP South Locality,Adult Domiciliary Care - Live in Care,Third Party Payments,REVENUE
http://statistics.data.gov.uk/id/local-authority/00HY,Wiltshire Council,17/12/2012,1900958187,1573.24,Air Photo Services Limited ,134217,SN15,Neighbourhood & Planning,DevConCent,Consultants� Fees,Supplies and Services,REVENUE
http://statistics.data.gov.uk/id/local-authority/00HY,Wiltshire Council,05/12/2012,5106223322,1804.32,Air Photo Services Limited ,134217,SN15,Neighbourhood & Planning,DevControlNorth,Legal Fees,Supplies and Services,REVENUE
http://statistics.data.gov.uk/id/local-authority/00HY,Wiltshire Council,14/12/2012,1900957533,867.75,Airport Connections pewsey  Ltd ,100937,.,Neighbourhood & Planning,LAC&16+ South&West,Transport Contracts,Third Party Payments,REVENUE
http://statistics.data.gov.uk/id/local-authority/00HY,Wiltshire Council,14/12/2012,1900957544,1189.80,Airport Connections pewsey  Ltd ,100937,.,Neighbourhood & Planning,Mainstream Primary,Transport Contracts,Third Party Payments,REVENUE
http://statistics.data.gov.uk/id/local-authority/00HY,Wiltshire Council,07/12/2012,1900955389,2132.37,Akcess Ltd ,101402,SN2 ,Neighbourhood & Planning,SEN Secondary,Transport Contracts,Third Party Payments,REVENUE
http://statistics.data.gov.uk/id/local-authority/00HY,Wiltshire Council,07/12/2012,1900955391,271.29,Akcess Ltd ,101402,SN2 ,Neighbourhood & Planning,Mainstream 16+ Sec,Transport Contracts,Third Party Payments,REVENUE
http://statistics.data.gov.uk/id/local-authority/00HY,Wiltshire Council,07/12/2012,1900955391,994.72,Akcess Ltd ,101402,SN2 ,Neighbourhood & Planning,Mainstream Secondary,Transport Contracts,Third Party Payments,REVENUE
http://statistics.data.gov.uk/id/local-authority/00HY,Wiltshire Council,07/12/2012,1900955400,2348.80,Akcess Ltd ,101402,SN2 ,Neighbourhood & Planning,Mainstream Secondary,Transport Contracts,Third Party Payments,REVENUE
http://statistics.data.gov.uk/id/local-authority/00HY,Wiltshire Council,07/12/2012,1900955401,2296.36,Akcess Ltd ,101402,SN2 ,Neighbourhood & Planning,SEN 16+ Secondary,Transport Contracts,Third Party Payments,REVENUE
http://statistics.data.gov.uk/id/local-authority/00HY,Wiltshire Council,07/12/2012,1900955402,1591.60,Akcess Ltd ,101402,SN2 ,Neighbourhood & Planning,Mainstream Primary,Transport Contracts,Third Party Payments,REVENUE
http://statistics.data.gov.uk/id/local-authority/00HY,Wiltshire Council,07/12/2012,1900955404,1500.05,Akcess Ltd ,101402,SN2 ,Neighbourhood & Planning,LAC&16+ North&East,Transport Contracts,Third Party Payments,REVENUE
http://statistics.data.gov.uk/id/local-authority/00HY,Wiltshire Council,07/12/2012,1900955405,912.00,Akcess Ltd ,101402,SN2 ,Neighbourhood & Planning,SEN Primary,Transport Contracts,Third Party Payments,REVENUE
http://statistics.data.gov.uk/id/local-authority/00HY,Wiltshire Council,07/12/2012,1900955406,2116.22,Akcess Ltd ,101402,SN2 ,Neighbourhood & Planning,SEN Secondary,Transport Contracts,Third Party Payments,REVENUE
http://statistics.data.gov.uk/id/local-authority/00HY,Wiltshire Council,07/12/2012,1900955407,1320.00,Akcess Ltd ,101402,SN2 ,Neighbourhood & Planning,SEN Primary,Transport Contracts,Third Party Payments,REVENUE
http://statistics.data.gov.uk/id/local-authority/00HY,Wiltshire Council,07/12/2012,1900955407,1320.00,Akcess Ltd ,101402,SN2 ,Neighbourhood & Planning,SEN 16+ Secondary,Transport Contracts,Third Party Payments,REVENUE
http://statistics.data.gov.uk/id/local-authority/00HY,Wiltshire Council,07/12/2012,1900955407,1320.00,Akcess Ltd ,101402,SN2 ,Neighbourhood & Planning,South Children w/Dis,Transport Contracts,Third Party Payments,REVENUE
http://statistics.data.gov.uk/id/local-authority/00HY,Wiltshire Council,07/12/2012,1900955408,999.83,Akcess Ltd ,101402,SN2 ,Neighbourhood & Planning,Mainstream Primary,Transport Contracts,Third Party Payments,REVENUE
http://statistics.data.gov.uk/id/local-authority/00HY,Wiltshire Council,07/12/2012,1900955409,999.83,Akcess Ltd ,101402,SN2 ,Neighbourhood & Planning,Mainstream Primary,Transport Contracts,Third Party Payments,REVENUE
http://statistics.data.gov.uk/id/local-authority/00HY,Wiltshire Council,12/12/2012,1900956731,611.00,Akcess Ltd ,101402,SN2 ,Neighbourhood & Planning,DCS North Locality O,Transport Contracts,Third Party Payments,REVENUE
http://statistics.data.gov.uk/id/local-authority/00HY,Wiltshire Council,12/12/2012,1900956731,799.00,Akcess Ltd ,101402,SN2 ,Neighbourhood & Planning,DCS North Locality P,Transport Contracts,Third Party Payments,REVENUE
http://statistics.data.gov.uk/id/local-authority/00HY,Wiltshire Council,12/12/2012,1900956740,798.00,Akcess Ltd ,101402,SN2 ,Neighbourhood & Planning,Mainstream Primary,Transport Contracts,Third Party Payments,REVENUE
http://statistics.data.gov.uk/id/local-authority/00HY,Wiltshire Council,19/12/2012,1900959503,2600.55,Alabare Christian Care Centre ,100837,SP1 ,Community Services,MH Commissioned Cont,Grants Paid to individuals for Tangible Benefits,Supplies and Services,REVENUE
http://statistics.data.gov.uk/id/local-authority/00HY,Wiltshire Council,19/12/2012,1900959504,3589.22,Alabare Christian Care Centre ,100837,SP1 ,Neighbourhood & Planning,HousingStrategy,Payments to Contractors - Other,Third Party Payments,REVENUE
http://statistics.data.gov.uk/id/local-authority/00HY,Wiltshire Council,19/12/2012,1900959505,2463.23,Alabare Christian Care Centre ,100837,SP1 ,Neighbourhood & Planning,HousingStrategy,Payments to Contractors - Other,Third Party Payments,REVENUE
http://statistics.data.gov.uk/id/local-authority/00HY,Wiltshire Council,19/12/2012,1900959506,1475.95,Alabare Christian Care Centre ,100837,SP1 ,Neighbourhood & Planning,HousingStrategy,Payments to Contractors - Other,Third Party Payments,REVENUE
http://statistics.data.gov.uk/id/local-authority/00HY,Wiltshire Council,19/12/2012,1900959507,4644.93,Alabare Christian Care Centre ,100837,SP1 ,Neighbourhood & Planning,HousingStrategy,Payments to Contractors - Other,Third Party Payments,REVENUE
http://statistics.data.gov.uk/id/local-authority/00HY,Wiltshire Council,19/12/2012,1900959508,9501.05,Alabare Christian Care Centre ,100837,SP1 ,Neighbourhood & Planning,HousingStrategy,Payments to Contractors - Other,Third Party Payments,REVENUE
http://statistics.data.gov.uk/id/local-authority/00HY,Wiltshire Council,19/12/2012,1900959509,23013.70,Alabare Christian Care Centre ,100837,SP1 ,Neighbourhood & Planning,HousingStrategy,Payments to Contractors - Other,Third Party Payments,REVENUE
http://statistics.data.gov.uk/id/local-authority/00HY,Wiltshire Council,19/12/2012,1900959510,3166.99,Alabare Christian Care Centre ,100837,SP1 ,Community Services,Disabilities Comm Ct,Grants Paid to individuals for Tangible Benefits,Supplies and Services,REVENUE
http://statistics.data.gov.uk/id/local-authority/00HY,Wiltshire Council,19/12/2012,1900959511,2807.67,Alabare Christian Care Centre ,100837,SP1 ,Neighbourhood & Planning,HousingStrategy,Payments to Contractors - Other,Third Party Payments,REVENUE
http://statistics.data.gov.uk/id/local-authority/00HY,Wiltshire Council,19/12/2012,1900959512,3904.66,Alabare Christian Care Centre ,100837,SP1 ,Neighbourhood & Planning,HousingStrategy,Payments to Contractors - Other,Third Party Payments,REVENUE
http://statistics.data.gov.uk/id/local-authority/00HY,Wiltshire Council,19/12/2012,1900959513,30780.05,Alabare Christian Care Centre ,100837,SP1 ,Neighbourhood & Planning,HousingStrategy,Payments to Contractors - Other,Third Party Payments,REVENUE
http://statistics.data.gov.uk/id/local-authority/00HY,Wiltshire Council,07/12/2012,5106224564,256.00,Alabare Christian Care Centre ,100837,SP1 ,Community Services,MH AOWA South,Adult Day Care - Spot,Third Party Payments,REVENUE
http://statistics.data.gov.uk/id/local-authority/00HY,Wiltshire Council,07/12/2012,5106224568,384.00,Alabare Christian Care Centre ,100837,SP1 ,Community Services,MH AOWA South,Adult Day Care - Spot,Third Party Payments,REVENUE
http://statistics.data.gov.uk/id/local-authority/00HY,Wiltshire Council,07/12/2012,5106224569,256.00,Alabare Christian Care Centre ,100837,SP1 ,Community Services,MH AOWA South,Adult Day Care - Spot,Third Party Payments,REVENUE
http://statistics.data.gov.uk/id/local-authority/00HY,Wiltshire Council,12/12/2012,5106226130,352.00,Alabare Christian Care Centre ,100837,SP1 ,Community Services,MH AOWA South,Adult Day Care - Spot,Third Party Payments,REVENUE
http://statistics.data.gov.uk/id/local-authority/00HY,Wiltshire Council,12/12/2012,5106226131,352.00,Alabare Christian Care Centre ,100837,SP1 ,Community Services,MH AOWA South,Adult Day Care - Spot,Third Party Payments,REVENUE
http://statistics.data.gov.uk/id/local-authority/00HY,Wiltshire Council,12/12/2012,5106226132,416.00,Alabare Christian Care Centre ,100837,SP1 ,Community Services,MH AOWA South,Adult Day Care - Spot,Third Party Payments,REVENUE
http://statistics.data.gov.uk/id/local-authority/00HY,Wiltshire Council,12/12/2012,5106226133,416.00,Alabare Christian Care Centre ,100837,SP1 ,Community Services,MH AOWA South,Adult Day Care - Spot,Third Party Payments,REVENUE
http://statistics.data.gov.uk/id/local-authority/00HY,Wiltshire Council,12/12/2012,5106226134,448.00,Alabare Christian Care Centre ,100837,SP1 ,Community Services,MH AOWA South,Adult Day Care - Spot,Third Party Payments,REVENUE
http://statistics.data.gov.uk/id/local-authority/00HY,Wiltshire Council,12/12/2012,5106226135,416.00,Alabare Christian Care Centre ,100837,SP1 ,Community Services,MH AOWA South,Adult Day Care - Spot,Third Party Payments,REVENUE
http://statistics.data.gov.uk/id/local-authority/00HY,Wiltshire Council,12/12/2012,5106226136,384.00,Alabare Christian Care Centre ,100837,SP1 ,Community Services,MH AOWA South,Adult Day Care - Spot,Third Party Payments,REVENUE
http://statistics.data.gov.uk/id/local-authority/00HY,Wiltshire Council,13/12/2012,5106226432,23785.20,Alabare Christian Care Centre ,100837,SP1 ,Children & Education,Towpath Road,Adult / Child Care Agency Placement,Third Party Payments,REVENUE
http://statistics.data.gov.uk/id/local-authority/00HY,Wiltshire Council,13/12/2012,5106226433,7729.29,Alabare Christian Care Centre ,100837,SP1 ,Children & Education,Towpath Road,Adult / Child Care Agency Placement,Third Party Payments,REVENUE
http://statistics.data.gov.uk/id/local-authority/00HY,Wiltshire Council,13/12/2012,5106226434,2037.83,Alabare Christian Care Centre ,100837,SP1 ,Children & Education,Towpath Road,Adult / Child Care Agency Placement,Third Party Payments,REVENUE
http://statistics.data.gov.uk/id/local-authority/00HY,Wiltshire Council,19/12/2012,5106226760,2744.84,Alabare Christian Care Centre ,100837,SP1 ,Community Services,CTPLD County CIC U65,Supported Living - Without SP payments,Third Party Payments,REVENUE
http://statistics.data.gov.uk/id/local-authority/00HY,Wiltshire Council,19/12/2012,5106226762,2431.00,Alabare Christian Care Centre ,100837,SP1 ,Community Services,CTPLD County CIC U65,Supported Living - Without SP payments,Third Party Payments,REVENUE
http://statistics.data.gov.uk/id/local-authority/00HY,Wiltshire Council,19/12/2012,5106226764,659.04,Alabare Christian Care Centre ,100837,SP1 ,Community Services,CTPLD County CIC U65,Supported Living - Without SP payments,Third Party Payments,REVENUE
http://statistics.data.gov.uk/id/local-authority/00HY,Wiltshire Council,19/12/2012,5106226766,3057.28,Alabare Christian Care Centre ,100837,SP1 ,Community Services,CTPLD County CIC U65,Supported Living - With SP Payments (3rd Party),Third Party Payments,REVENUE
http://statistics.data.gov.uk/id/local-authority/00HY,Wiltshire Council,19/12/2012,5106226768,1586.76,Alabare Christian Care Centre ,100837,SP1 ,Community Services,CTPLD County CIC U65,Supported Living - Without SP payments,Third Party Payments,REVENUE
http://statistics.data.gov.uk/id/local-authority/00HY,Wiltshire Council,19/12/2012,5106226769,1556.96,Alabare Christian Care Centre ,100837,SP1 ,Community Services,CTPLD County CIC U65,Supported Living - Without SP payments,Third Party Payments,REVENUE
http://statistics.data.gov.uk/id/local-authority/00HY,Wiltshire Council,19/12/2012,5106226771,2780.92,Alabare Christian Care Centre ,100837,SP1 ,Community Services,CTPLD County CIC U65,Supported Living - With SP Payments (3rd Party),Third Party Payments,REVENUE
http://statistics.data.gov.uk/id/local-authority/00HY,Wiltshire Council,19/12/2012,5106226773,715.00,Alabare Christian Care Centre ,100837,SP1 ,Community Services,CTPLD County CIC U65,Supported Living - Without SP payments,Third Party Payments,REVENUE
http://statistics.data.gov.uk/id/local-authority/00HY,Wiltshire Council,19/12/2012,5106226775,2109.48,Alabare Christian Care Centre ,100837,SP1 ,Community Services,CTPLD County S75 U65,Supported Living - Without SP payments,Third Party Payments,REVENUE
http://statistics.data.gov.uk/id/local-authority/00HY,Wiltshire Council,19/12/2012,5106226777,2214.08,Alabare Christian Care Centre ,100837,SP1 ,Community Services,CTPLD County CIC U65,Supported Living - Without SP payments,Third Party Payments,REVENUE
http://statistics.data.gov.uk/id/local-authority/00HY,Wiltshire Council,19/12/2012,5106226779,1751.44,Alabare Christian Care Centre ,100837,SP1 ,Community Services,CTPLD County CIC U65,Supported Living - Without SP payments,Third Party Payments,REVENUE
http://statistics.data.gov.uk/id/local-authority/00HY,Wiltshire Council,19/12/2012,5106226781,1658.24,Alabare Christian Care Centre ,100837,SP1 ,Community Services,CTPLD County CIC U65,Supported Living - Without SP payments,Third Party Payments,REVENUE
http://statistics.data.gov.uk/id/local-authority/00HY,Wiltshire Council,19/12/2012,5106226782,1602.48,Alabare Christian Care Centre ,100837,SP1 ,Community Services,CTPLD County CIC U65,Supported Living - Without SP payments,Third Party Payments,REVENUE
http://statistics.data.gov.uk/id/local-authority/00HY,Wiltshire Council,19/12/2012,5106226783,819.28,Alabare Christian Care Centre ,100837,SP1 ,Community Services,CTPLD County CIC U65,Supported Living - Without SP payments,Third Party Payments,REVENUE
http://statistics.data.gov.uk/id/local-authority/00HY,Wiltshire Council,19/12/2012,5106226785,583.00,Alabare Christian Care Centre ,100837,SP1 ,Community Services,CTPLD County CIC U65,Supported Living - Without SP payments,Third Party Payments,REVENUE
http://statistics.data.gov.uk/id/local-authority/00HY,Wiltshire Council,19/12/2012,5106226787,3057.28,Alabare Christian Care Centre ,100837,SP1 ,Community Services,CTPLD County CIC U65,Supported Living - With SP Payments (3rd Party),Third Party Payments,REVENUE
http://statistics.data.gov.uk/id/local-authority/00HY,Wiltshire Council,19/12/2012,5106226789,1751.44,Alabare Christian Care Centre ,100837,SP1 ,Community Services,CTPLD County CIC U65,Supported Living - Without SP payments,Third Party Payments,REVENUE
http://statistics.data.gov.uk/id/local-authority/00HY,Wiltshire Council,19/12/2012,5106226790,3057.28,Alabare Christian Care Centre ,100837,SP1 ,Community Services,CTPLD County CIC U65,Supported Living - With SP Payments (3rd Party),Third Party Payments,REVENUE
http://statistics.data.gov.uk/id/local-authority/00HY,Wiltshire Council,19/12/2012,5106226794,1560.00,Alabare Christian Care Centre ,100837,SP1 ,Community Services,CTPLD County CIC U65,Supported Living - Without SP payments,Third Party Payments,REVENUE
http://statistics.data.gov.uk/id/local-authority/00HY,Wiltshire Council,19/12/2012,5106226796,1887.44,Alabare Christian Care Centre ,100837,SP1 ,Community Services,CTPLD County CIC U65,Supported Living - Without SP payments,Third Party Payments,REVENUE
http://statistics.data.gov.uk/id/local-authority/00HY,Wiltshire Council,17/12/2012,5106227680,473.20,Alabare Christian Care Centre ,100837,SP1 ,Community Services,CTPLD County CIC U65,Adult Day Care - Spot,Third Party Payments,REVENUE
http://statistics.data.gov.uk/id/local-authority/00HY,Wiltshire Council,18/12/2012,5106227685,440.00,Alabare Christian Care Centre ,100837,SP1 ,Community Services,CTPLD County CIC 65+,Supported Living - Without SP payments,Third Party Payments,REVENUE
http://statistics.data.gov.uk/id/local-authority/00HY,Wiltshire Council,18/12/2012,5106227690,257.60,Alabare Christian Care Centre ,100837,SP1 ,Community Services,CTPLD County CIC U65,Adult Day Care - Spot,Third Party Payments,REVENUE
http://statistics.data.gov.uk/id/local-authority/00HY,Wiltshire Council,19/12/2012,5106230803,3342.65,Alabare Christian Care Centre ,100837,SP1 ,Community Services,CTPLD County CIC U65,Supported Living - Without SP payments,Third Party Payments,REVENUE
http://statistics.data.gov.uk/id/local-authority/00HY,Wiltshire Council,19/12/2012,5106230804,386.40,Alabare Christian Care Centre ,100837,SP1 ,Community Services,CTPLD County CIC U65,Adult Day Care - Spot,Third Party Payments,REVENUE
http://statistics.data.gov.uk/id/local-authority/00HY,Wiltshire Council,19/12/2012,5106230807,3409.25,Alabare Christian Care Centre ,100837,SP1 ,Community Services,CTPLD County CIC U65,Supported Living - Without SP payments,Third Party Payments,REVENUE
http://statistics.data.gov.uk/id/local-authority/00HY,Wiltshire Council,19/12/2012,5106230811,1773.75,Alabare Christian Care Centre ,100837,SP1 ,Community Services,CTPLD County CIC U65,Supported Living - Without SP payments,Third Party Payments,REVENUE
http://statistics.data.gov.uk/id/local-authority/00HY,Wiltshire Council,19/12/2012,5106230828,979.55,Alabare Christian Care Centre ,100837,SP1 ,Community Services,MH AOWA South,Adult Domiciliary Care - Spot,Third Party Payments,REVENUE
http://statistics.data.gov.uk/id/local-authority/00HY,Wiltshire Council,18/12/2012,1900958745,6087.20,Aldbourne Nursing Home ,110090,SN8 ,Community Services,FNC,Adult Care Funded Nursing Care - Out of County Cli,Third Party Payments,REVENUE
http://statistics.data.gov.uk/id/local-authority/00HY,Wiltshire Council,19/12/2012,5106227978,2021.20,Aldbourne Nursing Home ,110090,SN8 ,Community Services,OP East Locality,Adult Care Nursing Placements- Spot Purchase,Third Party Payments,REVENUE
http://statistics.data.gov.uk/id/local-authority/00HY,Wiltshire Council,19/12/2012,5106227979,434.80,Aldbourne Nursing Home ,110090,SN8 ,Community Services,OP East FNC,Adult Care Funded Nursing Care - Loal Auth Clients,Third Party Payments,REVENUE
http://statistics.data.gov.uk/id/local-authority/00HY,Wiltshire Council,19/12/2012,5106227981,2045.76,Aldbourne Nursing Home ,110090,SN8 ,Community Services,MH OP East Locality,Adult Care Nursing Placements- Spot Purchase,Third Party Payments,REVENUE
http://statistics.data.gov.uk/id/local-authority/00HY,Wiltshire Council,19/12/2012,5106227982,434.80,Aldbourne Nursing Home ,110090,SN8 ,Community Services,MH OA East FNC,Adult Care Funded Nursing Care - Loal Auth Clients,Third Party Payments,REVENUE
http://statistics.data.gov.uk/id/local-authority/00HY,Wiltshire Council,19/12/2012,5106227984,2045.76,Aldbourne Nursing Home ,110090,SN8 ,Community Services,OP West Locality,Adult Care Nursing Placements- Spot Purchase,Third Party Payments,REVENUE
http://statistics.data.gov.uk/id/local-authority/00HY,Wiltshire Council,19/12/2012,5106227985,434.80,Aldbourne Nursing Home ,110090,SN8 ,Community Services,OP West FNC,Adult Care Funded Nursing Care - Loal Auth Clients,Third Party Payments,REVENUE
http://statistics.data.gov.uk/id/local-authority/00HY,Wiltshire Council,19/12/2012,5106228787,2305.20,Aldbourne Nursing Home ,110090,SN8 ,Community Services,MH OP East Locality,Adult Care Nursing Placements- Spot Purchase,Third Party Payments,REVENUE
http://statistics.data.gov.uk/id/local-authority/00HY,Wiltshire Council,19/12/2012,5106228788,434.80,Aldbourne Nursing Home ,110090,SN8 ,Community Services,MH OA East FNC,Adult Care Funded Nursing Care - Loal Auth Clients,Third Party Payments,REVENUE
http://statistics.data.gov.uk/id/local-authority/00HY,Wiltshire Council,19/12/2012,5106230421,2045.20,Aldbourne Nursing Home ,110090,SN8 ,Community Services,OP East Locality,Adult Care Nursing Placements- Spot Purchase,Third Party Payments,REVENUE
http://statistics.data.gov.uk/id/local-authority/00HY,Wiltshire Council,19/12/2012,5106230423,434.80,Aldbourne Nursing Home ,110090,SN8 ,Community Services,OP East FNC,Adult Care Funded Nursing Care - Loal Auth Clients,Third Party Payments,REVENUE
http://statistics.data.gov.uk/id/local-authority/00HY,Wiltshire Council,21/12/2012,5106231920,375.00,Aldercross Ltd ,126099,CH3 ,Neighbourhood & Planning,Director Econ&Entprs,Conference Fees,Supplies and Services,REVENUE
http://statistics.data.gov.uk/id/local-authority/00HY,Wiltshire Council,21/12/2012,5106231921,375.00,Aldercross Ltd ,126099,CH3 ,Neighbourhood & Planning,Director Econ&Entprs,Conference Fees,Supplies and Services,REVENUE
http://statistics.data.gov.uk/id/local-authority/00HY,Wiltshire Council,21/12/2012,5106224940,3300.00,Alert Training UK ,126098,SP1 ,Children & Education,EOTAS Service,Educational Fees,Supplies and Services,REVENUE
http://statistics.data.gov.uk/id/local-authority/00HY,Wiltshire Council,19/12/2012,5106228499,6108.00,Alexandra Homes (Bristol) Ltd ,131787,BS15,Community Services,MH AOWA West,Adult Residential Placements - Spot Purchase,Third Party Payments,REVENUE
http://statistics.data.gov.uk/id/local-authority/00HY,Wiltshire Council,04/12/2012,5106212040,1002.27,ALLEN FORD ,110108,CV3 ,Neighbourhood & Planning,Fleet Operations,Vehicle Parts,Transport Related,REVENUE
http://statistics.data.gov.uk/id/local-authority/00HY,Wiltshire Council,19/12/2012,5106228743,3385.88,Alliance Home Care ,110986,SN15,Community Services,PI North Locality,Adult Residential Placements - Spot Purchase,Third Party Payments,REVENUE
http://statistics.data.gov.uk/id/local-authority/00HY,Wiltshire Council,19/12/2012,5106229449,3478.40,Alliance Home Care ,110986,SN15,Community Services,CTPLD County CIC 65+,Adult Residential Placements - Spot Purchase,Third Party Payments,REVENUE
http://statistics.data.gov.uk/id/local-authority/00HY,Wiltshire Council,19/12/2012,5106230602,3651.12,Alliance Home Care ,110986,SN15,Community Services,MH AOWA North,Adult Residential Placements - Spot Purchase,Third Party Payments,REVENUE
http://statistics.data.gov.uk/id/local-authority/00HY,Wiltshire Council,19/12/2012,5106230931,3712.40,Alliance Home Care ,110986,SN15,Community Services,MH OP East Locality,Adult Residential Placements - Spot Purchase,Third Party Payments,REVENUE
http://statistics.data.gov.uk/id/local-authority/00HY,Wiltshire Council,19/12/2012,5106227968,5553.40,Allied Backup Project ,110111,EX17,Community Services,CTPLD County S75 U65,Adult Residential Placements - Spot Purchase,Third Party Payments,REVENUE
http://statistics.data.gov.uk/id/local-authority/00HY,Wiltshire Council,11/12/2012,5106220232,300.00,Allied Healthcare Group Allied Healthcare Group,113066,SP2 ,Community Services,PI South Locality,Adult Domiciliary Care - Block,Third Party Payments,REVENUE
http://statistics.data.gov.uk/id/local-authority/00HY,Wiltshire Council,21/12/2012,5106222754,327.38,Allied Healthcare Group Allied Healthcare Group,113066,SP2 ,Community Services,MH OP West Locality,Adult Domiciliary Care - Mileage,Third Party Payments,REVENUE
http://statistics.data.gov.uk/id/local-authority/00HY,Wiltshire Council,07/12/2012,5106224457,396.60,Allied Healthcare Group Allied Healthcare Group,113066,SP2 ,Community Services,MH OP South Locality,Adult Domiciliary Care - Block Contribution,Income,REVENUE
http://statistics.data.gov.uk/id/local-authority/00HY,Wiltshire Council,07/12/2012,5106224458,421.43,Allied Healthcare Group Allied Healthcare Group,113066,SP2 ,Community Services,MH OP South Locality,Adult Domiciliary Care - Block Contribution,Income,REVENUE
http://statistics.data.gov.uk/id/local-authority/00HY,Wiltshire Council,07/12/2012,5106224459,400.79,Allied Healthcare Group Allied Healthcare Group,113066,SP2 ,Community Services,MH OP South Locality,Adult Domiciliary Care - Block Contribution,Income,REVENUE
http://statistics.data.gov.uk/id/local-authority/00HY,Wiltshire Council,17/12/2012,5106227626,1493.70,Allied Healthcare Group Allied Healthcare Group,113066,SP2 ,Community Services,MH AOWA East,Adult Domiciliary Care - Mileage,Third Party Payments,REVENUE
http://statistics.data.gov.uk/id/local-authority/00HY,Wiltshire Council,19/12/2012,5106230858,314.36,Allied Healthcare Group Allied Healthcare Group,113066,SP2 ,Community Services,PI South Locality,Adult Domiciliary Care - Block,Third Party Payments,REVENUE
http://statistics.data.gov.uk/id/local-authority/00HY,Wiltshire Council,19/12/2012,5106230859,807.24,Allied Healthcare Group Allied Healthcare Group,113066,SP2 ,Community Services,MH AOWA South,Adult Domiciliary Care - Mileage,Third Party Payments,REVENUE
http://statistics.data.gov.uk/id/local-authority/00HY,Wiltshire Council,20/12/2012,5106234112,396.97,Allied Healthcare Group Allied Healthcare Group,113066,SP2 ,Community Services,MH OP South Locality,Adult Domiciliary Care - Block Contribution,Income,REVENUE
http://statistics.data.gov.uk/id/local-authority/00HY,Wiltshire Council,13/12/2012,5106218285,281.08,ALLSPARES  AUTO  LTD ,110116,CF33,Neighbourhood & Planning,Fleet Operations,Vehicle Parts,Transport Related,REVENUE
http://statistics.data.gov.uk/id/local-authority/00HY,Wiltshire Council,17/12/2012,5106220806,287.56,ALLSPARES  AUTO  LTD ,110116,CF33,Neighbourhood & Planning,Fleet Operations,Vehicle Parts,Transport Related,REVENUE
http://statistics.data.gov.uk/id/local-authority/00HY,Wiltshire Council,19/12/2012,5106222421,289.54,ALLSPARES  AUTO  LTD ,110116,CF33,Neighbourhood & Planning,Fleet Operations,Vehicle Parts,Transport Related,REVENUE
http://statistics.data.gov.uk/id/local-authority/00HY,Wiltshire Council,19/12/2012,1900959434,327.97,Allstar Business Solutions Limited ,132643,SN5 ,Neighbourhood & Planning,Fleet Operations,Vehicle Fuel,Transport Related,REVENUE
http://statistics.data.gov.uk/id/local-authority/00HY,Wiltshire Council,19/12/2012,1900959435,1392.69,Allstar Business Solutions Limited ,132643,SN5 ,Neighbourhood & Planning,Fleet Operations,Vehicle Fuel,Transport Related,REVENUE
http://statistics.data.gov.uk/id/local-authority/00HY,Wiltshire Council,03/12/2012,5106222994,1410.49,Allstar Business Solutions Limited ,132643,SN5 ,Neighbourhood & Planning,Fleet Operations,Vehicle Fuel,Transport Related,REVENUE
http://statistics.data.gov.uk/id/local-authority/00HY,Wiltshire Council,03/12/2012,5106222995,329.38,Allstar Business Solutions Limited ,132643,SN5 ,Neighbourhood & Planning,Fleet Operations,Vehicle Fuel,Transport Related,REVENUE
http://statistics.data.gov.uk/id/local-authority/00HY,Wiltshire Council,06/12/2012,5106224373,1086.57,Allstar Business Solutions Limited ,132643,SN5 ,Neighbourhood & Planning,Fleet Operations,Vehicle Fuel,Transport Related,REVENUE
http://statistics.data.gov.uk/id/local-authority/00HY,Wiltshire Council,13/12/2012,5106226390,1083.21,Allstar Business Solutions Limited ,132643,SN5 ,Neighbourhood & Planning,Fleet Operations,Vehicle Fuel,Transport Related,REVENUE
http://statistics.data.gov.uk/id/local-authority/00HY,Wiltshire Council,13/12/2012,5106226392,523.52,Allstar Business Solutions Limited ,132643,SN5 ,Neighbourhood & Planning,Fleet Operations,Vehicle Fuel,Transport Related,REVENUE
http://statistics.data.gov.uk/id/local-authority/00HY,Wiltshire Council,14/12/2012,5106226718,334.28,Allstar Business Solutions Limited ,132643,SN5 ,Neighbourhood & Planning,Fleet Operations,Vehicle Fuel,Transport Related,REVENUE
http://statistics.data.gov.uk/id/local-authority/00HY,Wiltshire Council,05/12/2012,1900954875,318.00,Alpha Taxis ,100124,BA14,Neighbourhood & Planning,Voucher Scheme,Compensation for Concessionary fares,Third Party Payments,REVENUE
http://statistics.data.gov.uk/id/local-authority/00HY,Wiltshire Council,06/12/2012,1900955200,637.95,Alpha Taxis ,100124,BA14,Neighbourhood & Planning,DCS CTPLD U65,Transport Contracts,Third Party Payments,REVENUE
http://statistics.data.gov.uk/id/local-authority/00HY,Wiltshire Council,06/12/2012,1900955202,413.00,Alpha Taxis ,100124,BA14,Neighbourhood & Planning,SEN Secondary,Transport Contracts,Third Party Payments,REVENUE
http://statistics.data.gov.uk/id/local-authority/00HY,Wiltshire Council,06/12/2012,1900955205,388.60,Alpha Taxis ,100124,BA14,Neighbourhood & Planning,Mainstream Primary,Transport Contracts,Third Party Payments,REVENUE
http://statistics.data.gov.uk/id/local-authority/00HY,Wiltshire Council,06/12/2012,1900955205,582.87,Alpha Taxis ,100124,BA14,Neighbourhood & Planning,Mainstream Secondary,Transport Contracts,Third Party Payments,REVENUE
http://statistics.data.gov.uk/id/local-authority/00HY,Wiltshire Council,06/12/2012,1900955206,467.60,Alpha Taxis ,100124,BA14,Neighbourhood & Planning,Mainstream 16+ FE,Transport Contracts,Third Party Payments,REVENUE
http://statistics.data.gov.uk/id/local-authority/00HY,Wiltshire Council,06/12/2012,1900955208,546.00,Alpha Taxis ,100124,BA14,Neighbourhood & Planning,SEN Primary,Transport Contracts,Third Party Payments,REVENUE
http://statistics.data.gov.uk/id/local-authority/00HY,Wiltshire Council,06/12/2012,1900955210,285.60,Alpha Taxis ,100124,BA14,Neighbourhood & Planning,DCS East Locality PI,Transport Contracts,Third Party Payments,REVENUE
http://statistics.data.gov.uk/id/local-authority/00HY,Wiltshire Council,06/12/2012,1900955210,285.60,Alpha Taxis ,100124,BA14,Neighbourhood & Planning,DCS CTPLD U65,Transport Contracts,Third Party Payments,REVENUE
http://statistics.data.gov.uk/id/local-authority/00HY,Wiltshire Council,06/12/2012,1900955213,1330.00,Alpha Taxis ,100124,BA14,Neighbourhood & Planning,SEN Secondary,Transport Contracts,Third Party Payments,REVENUE
http://statistics.data.gov.uk/id/local-authority/00HY,Wiltshire Council,06/12/2012,1900955215,557.70,Alpha Taxis ,100124,BA14,Neighbourhood & Planning,Community Team West,Transport Contracts,Third Party Payments,REVENUE
http://statistics.data.gov.uk/id/local-authority/00HY,Wiltshire Council,06/12/2012,1900955217,272.00,Alpha Taxis ,100124,BA14,Neighbourhood & Planning,Mainstream Primary,Transport Contracts,Third Party Payments,REVENUE
http://statistics.data.gov.uk/id/local-authority/00HY,Wiltshire Council,14/12/2012,1900957523,1215.00,Alpha Taxis ,100124,BA14,Neighbourhood & Planning,DCS CTPLD U65,Transport Contracts,Third Party Payments,REVENUE
http://statistics.data.gov.uk/id/local-authority/00HY,Wiltshire Council,14/12/2012,1900957532,432.60,Alpha Taxis ,100124,BA14,Neighbourhood & Planning,YPSS West,Transport Contracts,Third Party Payments,REVENUE
http://statistics.data.gov.uk/id/local-authority/00HY,Wiltshire Council,14/12/2012,1900957542,1421.00,Alpha Taxis ,100124,BA14,Neighbourhood & Planning,Community Team West,Transport Contracts,Third Party Payments,REVENUE
http://statistics.data.gov.uk/id/local-authority/00HY,Wiltshire Council,14/12/2012,1900957545,680.10,Alpha Taxis ,100124,BA14,Neighbourhood & Planning,Community Team East,Transport Contracts,Third Party Payments,REVENUE
http://statistics.data.gov.uk/id/local-authority/00HY,Wiltshire Council,14/12/2012,1900957547,583.80,Alpha Taxis ,100124,BA14,Neighbourhood & Planning,SEN Secondary,Transport Contracts,Third Party Payments,REVENUE
http://statistics.data.gov.uk/id/local-authority/00HY,Wiltshire Council,17/12/2012,1900958535,557.60,Alpha Taxis ,100124,BA14,Neighbourhood & Planning,Ref&Assess Devizes,Transport Contracts,Third Party Payments,REVENUE
http://statistics.data.gov.uk/id/local-authority/00HY,Wiltshire Council,17/12/2012,1900958552,514.10,Alpha Taxis ,100124,BA14,Neighbourhood & Planning,Ref&Assess Devizes,Transport Contracts,Third Party Payments,REVENUE
http://statistics.data.gov.uk/id/local-authority/00HY,Wiltshire Council,13/12/2012,5106226408,11517.00,Alzheimer's Society ,110125,SP1 ,Community Services,Social Inclusion,Grants Paid to individuals for Tangible Benefits,Supplies and Services,REVENUE
http://statistics.data.gov.uk/id/local-authority/00HY,Wiltshire Council,13/12/2012,5106226408,14580.00,Alzheimer's Society ,110125,SP1 ,Community Services,MH Commissioned Cont,Grants Paid to individuals for Tangible Benefits,Supplies and Services,REVENUE
http://statistics.data.gov.uk/id/local-authority/00HY,Wiltshire Council,13/12/2012,5106226408,15908.00,Alzheimer's Society ,110125,SP1 ,Community Services,Carers General,Grants Paid to individuals for Tangible Benefits,Supplies and Services,REVENUE
http://statistics.data.gov.uk/id/local-authority/00HY,Wiltshire Council,21/12/2012,1900957472,1204.00,Amey Community Limited ,135433,OX4 ,Children & Education,YPSM Commissioning,Marketing and Promotions,Supplies and Services,REVENUE
http://statistics.data.gov.uk/id/local-authority/00HY,Wiltshire Council,12/12/2012,5106226225,1760.69,Amicus Foster Care Limited ,126050,BS2 ,Children & Education,External Placements,Adult / Child Care Agency Placement,Third Party Payments,REVENUE
http://statistics.data.gov.uk/id/local-authority/00HY,Wiltshire Council,12/12/2012,5106226226,807.82,Amicus Foster Care Limited ,126050,BS2 ,Children & Education,External Placements,Adult / Child Care Agency Placement,Third Party Payments,REVENUE
http://statistics.data.gov.uk/id/local-authority/00HY,Wiltshire Council,18/12/2012,5106229905,3476.34,Amicus Foster Care Limited ,126050,BS2 ,Children & Education,External Placements,Adult / Child Care Agency Placement,Third Party Payments,REVENUE
http://statistics.data.gov.uk/id/local-authority/00HY,Wiltshire Council,18/12/2012,5106230157,1760.69,Amicus Foster Care Limited ,126050,BS2 ,Children & Education,External Placements,Adult / Child Care Agency Placement,Third Party Payments,REVENUE
http://statistics.data.gov.uk/id/local-authority/00HY,Wiltshire Council,18/12/2012,5106230158,869.96,Amicus Foster Care Limited ,126050,BS2 ,Children & Education,External Placements,Adult / Child Care Agency Placement,Third Party Payments,REVENUE
http://statistics.data.gov.uk/id/local-authority/00HY,Wiltshire Council,18/12/2012,5106230283,3114.26,Amicus Foster Care Limited ,126050,BS2 ,Children & Education,External Placements,Adult / Child Care Agency Placement,Third Party Payments,REVENUE
http://statistics.data.gov.uk/id/local-authority/00HY,Wiltshire Council,18/12/2012,5106230284,3114.26,Amicus Foster Care Limited ,126050,BS2 ,Children & Education,External Placements,Adult / Child Care Agency Placement,Third Party Payments,REVENUE
http://statistics.data.gov.uk/id/local-authority/00HY,Wiltshire Council,18/12/2012,5106230285,3114.26,Amicus Foster Care Limited ,126050,BS2 ,Children & Education,External Placements,Adult / Child Care Agency Placement,Third Party Payments,REVENUE
http://statistics.data.gov.uk/id/local-authority/00HY,Wiltshire Council,18/12/2012,1900958748,6910.21,AMS Care Wiltshire ,130764,SN4 ,Community Services,FNC,Adult Care Funded Nursing Care - Out of County Cli,Third Party Payments,REVENUE
http://statistics.data.gov.uk/id/local-authority/00HY,Wiltshire Council,18/12/2012,5106223393,407.35,AMS Care Wiltshire ,130764,SN4 ,Community Services,OP North Locality,Adult Care Nursing Placements- Block Contract,Third Party Payments,REVENUE
http://statistics.data.gov.uk/id/local-authority/00HY,Wiltshire Council,19/12/2012,5106229338,2716.00,AMS Care Wiltshire ,130764,SN4 ,Community Services,OP North Locality,Adult Care Nursing Placements- Spot Purchase,Third Party Payments,REVENUE
http://statistics.data.gov.uk/id/local-authority/00HY,Wiltshire Council,19/12/2012,5106230011,2281.20,AMS Care Wiltshire ,130764,SN4 ,Community Services,OP North Locality,Adult Care Nursing Placements- Block Contract,Third Party Payments,REVENUE
http://statistics.data.gov.uk/id/local-authority/00HY,Wiltshire Council,19/12/2012,5106230012,434.80,AMS Care Wiltshire ,130764,SN4 ,Community Services,OP North FNC,Adult Care Funded Nursing Care - Loal Auth Clients,Third Party Payments,REVENUE
http://statistics.data.gov.uk/id/local-authority/00HY,Wiltshire Council,19/12/2012,5106230041,2281.20,AMS Care Wiltshire ,130764,SN4 ,Community Services,OP North Locality,Adult Care Nursing Placements- Block Contract,Third Party Payments,REVENUE
http://statistics.data.gov.uk/id/local-authority/00HY,Wiltshire Council,19/12/2012,5106230042,434.80,AMS Care Wiltshire ,130764,SN4 ,Community Services,OP North FNC,Adult Care Funded Nursing Care - Loal Auth Clients,Third Party Payments,REVENUE
http://statistics.data.gov.uk/id/local-authority/00HY,Wiltshire Council,19/12/2012,5106230086,2281.20,AMS Care Wiltshire ,130764,SN4 ,Community Services,OP North Locality,Adult Care Nursing Placements- Block Contract,Third Party Payments,REVENUE
http://statistics.data.gov.uk/id/local-authority/00HY,Wiltshire Council,19/12/2012,5106230087,434.80,AMS Care Wiltshire ,130764,SN4 ,Community Services,OP North FNC,Adult Care Funded Nursing Care - Loal Auth Clients,Third Party Payments,REVENUE
http://statistics.data.gov.uk/id/local-authority/00HY,Wiltshire Council,19/12/2012,5106230093,2281.20,AMS Care Wiltshire ,130764,SN4 ,Community Services,OP North Locality,Adult Care Nursing Placements- Block Contract,Third Party Payments,REVENUE
http://statistics.data.gov.uk/id/local-authority/00HY,Wiltshire Council,19/12/2012,5106230094,434.80,AMS Care Wiltshire ,130764,SN4 ,Community Services,OP North FNC,Adult Care Funded Nursing Care - Loal Auth Clients,Third Party Payments,REVENUE
http://statistics.data.gov.uk/id/local-authority/00HY,Wiltshire Council,19/12/2012,5106230101,2281.20,AMS Care Wiltshire ,130764,SN4 ,Community Services,MH OP North Locality,Adult Care Nursing Placements- Block Contract,Third Party Payments,REVENUE
http://statistics.data.gov.uk/id/local-authority/00HY,Wiltshire Council,19/12/2012,5106230102,434.80,AMS Care Wiltshire ,130764,SN4 ,Community Services,MH OA North FNC,Adult Care Funded Nursing Care - Loal Auth Clients,Third Party Payments,REVENUE
http://statistics.data.gov.uk/id/local-authority/00HY,Wiltshire Council,19/12/2012,5106230104,2281.20,AMS Care Wiltshire ,130764,SN4 ,Community Services,OP North Locality,Adult Care Nursing Placements- Block Contract,Third Party Payments,REVENUE
http://statistics.data.gov.uk/id/local-authority/00HY,Wiltshire Council,19/12/2012,5106230105,434.80,AMS Care Wiltshire ,130764,SN4 ,Community Services,OP North FNC,Adult Care Funded Nursing Care - Loal Auth Clients,Third Party Payments,REVENUE
http://statistics.data.gov.uk/id/local-authority/00HY,Wiltshire Council,19/12/2012,5106230107,2281.20,AMS Care Wiltshire ,130764,SN4 ,Community Services,OP North Locality,Adult Care Nursing Placements- Block Contract,Third Party Payments,REVENUE
http://statistics.data.gov.uk/id/local-authority/00HY,Wiltshire Council,19/12/2012,5106230108,434.80,AMS Care Wiltshire ,130764,SN4 ,Community Services,OP North FNC,Adult Care Funded Nursing Care - Loal Auth Clients,Third Party Payments,REVENUE
http://statistics.data.gov.uk/id/local-authority/00HY,Wiltshire Council,19/12/2012,5106230110,2716.00,AMS Care Wiltshire ,130764,SN4 ,Community Services,OP North Locality,Adult Care Nursing Placements- Block Contract,Third Party Payments,REVENUE
http://statistics.data.gov.uk/id/local-authority/00HY,Wiltshire Council,19/12/2012,5106230112,2281.20,AMS Care Wiltshire ,130764,SN4 ,Community Services,MH OP North Locality,Adult Care Nursing Placements- Block Contract,Third Party Payments,REVENUE
http://statistics.data.gov.uk/id/local-authority/00HY,Wiltshire Council,19/12/2012,5106230113,434.80,AMS Care Wiltshire ,130764,SN4 ,Community Services,MH OA North FNC,Adult Care Funded Nursing Care - Loal Auth Clients,Third Party Payments,REVENUE
http://statistics.data.gov.uk/id/local-authority/00HY,Wiltshire Council,19/12/2012,5106230117,2281.20,AMS Care Wiltshire ,130764,SN4 ,Community Services,OP North Locality,Adult Care Nursing Placements- Block Contract,Third Party Payments,REVENUE
http://statistics.data.gov.uk/id/local-authority/00HY,Wiltshire Council,19/12/2012,5106230118,434.80,AMS Care Wiltshire ,130764,SN4 ,Community Services,OP North FNC,Adult Care Funded Nursing Care - Loal Auth Clients,Third Party Payments,REVENUE
http://statistics.data.gov.uk/id/local-authority/00HY,Wiltshire Council,19/12/2012,5106230120,2281.20,AMS Care Wiltshire ,130764,SN4 ,Community Services,OP North Locality,Adult Care Nursing Placements- Block Contract,Third Party Payments,REVENUE
http://statistics.data.gov.uk/id/local-authority/00HY,Wiltshire Council,19/12/2012,5106230121,434.80,AMS Care Wiltshire ,130764,SN4 ,Community Services,OP North FNC,Adult Care Funded Nursing Care - Loal Auth Clients,Third Party Payments,REVENUE
http://statistics.data.gov.uk/id/local-authority/00HY,Wiltshire Council,19/12/2012,5106230127,2281.20,AMS Care Wiltshire ,130764,SN4 ,Community Services,OP North Locality,Adult Care Nursing Placements- Block Contract,Third Party Payments,REVENUE
http://statistics.data.gov.uk/id/local-authority/00HY,Wiltshire Council,19/12/2012,5106230128,434.80,AMS Care Wiltshire ,130764,SN4 ,Community Services,OP North FNC,Adult Care Funded Nursing Care - Loal Auth Clients,Third Party Payments,REVENUE
http://statistics.data.gov.uk/id/local-authority/00HY,Wiltshire Council,19/12/2012,5106230191,2281.20,AMS Care Wiltshire ,130764,SN4 ,Community Services,OP North Locality,Adult Care Nursing Placements- Block Contract,Third Party Payments,REVENUE
http://statistics.data.gov.uk/id/local-authority/00HY,Wiltshire Council,19/12/2012,5106230192,434.80,AMS Care Wiltshire ,130764,SN4 ,Community Services,OP North FNC,Adult Care Funded Nursing Care - Loal Auth Clients,Third Party Payments,REVENUE
http://statistics.data.gov.uk/id/local-authority/00HY,Wiltshire Council,19/12/2012,5106230194,2281.20,AMS Care Wiltshire ,130764,SN4 ,Community Services,OP North Locality,Adult Care Nursing Placements- Block Contract,Third Party Payments,REVENUE
http://statistics.data.gov.uk/id/local-authority/00HY,Wiltshire Council,19/12/2012,5106230195,434.80,AMS Care Wiltshire ,130764,SN4 ,Community Services,OP North FNC,Adult Care Funded Nursing Care - Loal Auth Clients,Third Party Payments,REVENUE
http://statistics.data.gov.uk/id/local-authority/00HY,Wiltshire Council,19/12/2012,5106230303,2716.00,AMS Care Wiltshire ,130764,SN4 ,Community Services,OP North Locality,Adult Residential Placements - Spot Purchase,Third Party Payments,REVENUE
http://statistics.data.gov.uk/id/local-authority/00HY,Wiltshire Council,19/12/2012,5106230344,2281.20,AMS Care Wiltshire ,130764,SN4 ,Community Services,OP East Locality,Adult Care Nursing Placements- Block Contract,Third Party Payments,REVENUE
http://statistics.data.gov.uk/id/local-authority/00HY,Wiltshire Council,19/12/2012,5106230345,434.80,AMS Care Wiltshire ,130764,SN4 ,Community Services,OP East FNC,Adult Care Funded Nursing Care - Loal Auth Clients,Third Party Payments,REVENUE
http://statistics.data.gov.uk/id/local-authority/00HY,Wiltshire Council,19/12/2012,5106230350,2281.20,AMS Care Wiltshire ,130764,SN4 ,Community Services,OP North Locality,Adult Care Nursing Placements- Block Contract,Third Party Payments,REVENUE
http://statistics.data.gov.uk/id/local-authority/00HY,Wiltshire Council,19/12/2012,5106230351,434.80,AMS Care Wiltshire ,130764,SN4 ,Community Services,OP North FNC,Adult Care Funded Nursing Care - Loal Auth Clients,Third Party Payments,REVENUE
http://statistics.data.gov.uk/id/local-authority/00HY,Wiltshire Council,19/12/2012,5106230474,2281.20,AMS Care Wiltshire ,130764,SN4 ,Community Services,OP North Locality,Adult Care Nursing Placements- Block Contract,Third Party Payments,REVENUE
http://statistics.data.gov.uk/id/local-authority/00HY,Wiltshire Council,19/12/2012,5106230476,434.80,AMS Care Wiltshire ,130764,SN4 ,Community Services,OP North FNC,Adult Care Funded Nursing Care - Loal Auth Clients,Third Party Payments,REVENUE
http://statistics.data.gov.uk/id/local-authority/00HY,Wiltshire Council,19/12/2012,5106230477,2281.20,AMS Care Wiltshire ,130764,SN4 ,Community Services,OP North Locality,Adult Care Nursing Placements- Block Contract,Third Party Payments,REVENUE
http://statistics.data.gov.uk/id/local-authority/00HY,Wiltshire Council,19/12/2012,5106230478,434.80,AMS Care Wiltshire ,130764,SN4 ,Community Services,OP North FNC,Adult Care Funded Nursing Care - Loal Auth Clients,Third Party Payments,REVENUE
http://statistics.data.gov.uk/id/local-authority/00HY,Wiltshire Council,19/12/2012,5106230606,2281.20,AMS Care Wiltshire ,130764,SN4 ,Community Services,OP North Locality,Adult Care Nursing Placements- Block Contract,Third Party Payments,REVENUE
http://statistics.data.gov.uk/id/local-authority/00HY,Wiltshire Council,19/12/2012,5106230607,434.80,AMS Care Wiltshire ,130764,SN4 ,Community Services,OP North FNC,Adult Care Funded Nursing Care - Loal Auth Clients,Third Party Payments,REVENUE
http://statistics.data.gov.uk/id/local-authority/00HY,Wiltshire Council,19/12/2012,5106230609,2281.20,AMS Care Wiltshire ,130764,SN4 ,Community Services,OP North Locality,Adult Care Nursing Placements- Block Contract,Third Party Payments,REVENUE
http://statistics.data.gov.uk/id/local-authority/00HY,Wiltshire Council,19/12/2012,5106230610,434.80,AMS Care Wiltshire ,130764,SN4 ,Community Services,OP North FNC,Adult Care Funded Nursing Care - Loal Auth Clients,Third Party Payments,REVENUE
http://statistics.data.gov.uk/id/local-authority/00HY,Wiltshire Council,19/12/2012,5106230612,2281.20,AMS Care Wiltshire ,130764,SN4 ,Community Services,OP North Locality,Adult Care Nursing Placements- Block Contract,Third Party Payments,REVENUE
http://statistics.data.gov.uk/id/local-authority/00HY,Wiltshire Council,19/12/2012,5106230614,434.80,AMS Care Wiltshire ,130764,SN4 ,Community Services,OP North FNC,Adult Care Funded Nursing Care - Loal Auth Clients,Third Party Payments,REVENUE
http://statistics.data.gov.uk/id/local-authority/00HY,Wiltshire Council,19/12/2012,5106230648,2281.20,AMS Care Wiltshire ,130764,SN4 ,Community Services,OP North Locality,Adult Care Nursing Placements- Block Contract,Third Party Payments,REVENUE
http://statistics.data.gov.uk/id/local-authority/00HY,Wiltshire Council,19/12/2012,5106230649,434.80,AMS Care Wiltshire ,130764,SN4 ,Community Services,OP North FNC,Adult Care Funded Nursing Care - Loal Auth Clients,Third Party Payments,REVENUE
http://statistics.data.gov.uk/id/local-authority/00HY,Wiltshire Council,19/12/2012,5106230661,434.80,AMS Care Wiltshire ,130764,SN4 ,Community Services,OP North FNC,Adult Care Funded Nursing Care - Loal Auth Clients,Third Party Payments,REVENUE
http://statistics.data.gov.uk/id/local-authority/00HY,Wiltshire Council,19/12/2012,5106230662,2281.20,AMS Care Wiltshire ,130764,SN4 ,Community Services,OP North Locality,Adult Care Nursing Placements- Block Contract,Third Party Payments,REVENUE
http://statistics.data.gov.uk/id/local-authority/00HY,Wiltshire Council,19/12/2012,5106231052,2765.20,AMS Care Wiltshire ,130764,SN4 ,Community Services,Home Loans,Adult Care - Home Loan Costs,Capital charges and Expenditure,REVENUE
http://statistics.data.gov.uk/id/local-authority/00HY,Wiltshire Council,19/12/2012,5106231577,2716.00,AMS Care Wiltshire ,130764,SN4 ,Community Services,Home Loans,Adult Care - Home Loan Costs,Capital charges and Expenditure,REVENUE
http://statistics.data.gov.uk/id/local-authority/00HY,Wiltshire Council,19/12/2012,5106231668,2269.20,AMS Care Wiltshire ,130764,SN4 ,Community Services,Home Loans,Adult Care - Home Loan Costs,Capital charges and Expenditure,REVENUE
http://statistics.data.gov.uk/id/local-authority/00HY,Wiltshire Council,19/12/2012,1900959529,569.16,Anchor Trust - Finance Income Only ,101153,BD1 ,Community Services,OPPI Commissioned Ct,Grants Paid to individuals for Tangible Benefits,Supplies and Services,REVENUE
http://statistics.data.gov.uk/id/local-authority/00HY,Wiltshire Council,19/12/2012,1900959530,292.60,Anchor Trust - Finance Income Only ,101153,BD1 ,Community Services,OPPI Commissioned Ct,Grants Paid to individuals for Tangible Benefits,Supplies and Services,REVENUE
http://statistics.data.gov.uk/id/local-authority/00HY,Wiltshire Council,19/12/2012,5106228964,3232.64,Andover Nursing Home ,110142,SP10,Community Services,OP East Locality,Adult Care Nursing Placements- Spot Purchase,Third Party Payments,REVENUE
http://statistics.data.gov.uk/id/local-authority/00HY,Wiltshire Council,19/12/2012,5106229112,1893.80,Andover Nursing Home ,110142,SP10,Community Services,OP East Locality,Adult Care Nursing Placements- Spot Purchase,Third Party Payments,REVENUE
http://statistics.data.gov.uk/id/local-authority/00HY,Wiltshire Council,19/12/2012,5106230987,3034.36,Andover Nursing Home ,110142,SP10,Community Services,MH OP East Locality,Adult Care Nursing Placements- Spot Purchase,Third Party Payments,REVENUE
http://statistics.data.gov.uk/id/local-authority/00HY,Wiltshire Council,07/12/2012,1900955417,282.52,Andy Taxis Limited ,100874,SP4 ,Neighbourhood & Planning,Mainstream 16+ Sec,Transport Contracts,Third Party Payments,REVENUE
http://statistics.data.gov.uk/id/local-authority/00HY,Wiltshire Council,07/12/2012,1900955417,565.12,Andy Taxis Limited ,100874,SP4 ,Neighbourhood & Planning,Mainstream Secondary,Transport Contracts,Third Party Payments,REVENUE
http://statistics.data.gov.uk/id/local-authority/00HY,Wiltshire Council,07/12/2012,1900955417,988.96,Andy Taxis Limited ,100874,SP4 ,Neighbourhood & Planning,Mainstream Primary,Transport Contracts,Third Party Payments,REVENUE
http://statistics.data.gov.uk/id/local-authority/00HY,Wiltshire Council,04/12/2012,1900953998,3933.00,Andybus  and  Coach Ltd ,100132,SN16,Neighbourhood & Planning,Mainstream Primary,Transport Contracts,Third Party Payments,REVENUE
http://statistics.data.gov.uk/id/local-authority/00HY,Wiltshire Council,04/12/2012,1900953998,4990.17,Andybus  and  Coach Ltd ,100132,SN16,Neighbourhood & Planning,Mainstream 16+ Sec,Transport Contracts,Third Party Payments,REVENUE
http://statistics.data.gov.uk/id/local-authority/00HY,Wiltshire Council,04/12/2012,1900953998,19505.61,Andybus  and  Coach Ltd ,100132,SN16,Neighbourhood & Planning,Mainstream Secondary,Transport Contracts,Third Party Payments,REVENUE
http://statistics.data.gov.uk/id/local-authority/00HY,Wiltshire Council,04/12/2012,1900953998,41306.21,Andybus  and  Coach Ltd ,100132,SN16,Neighbourhood & Planning,Public Transport,Transport Contracts,Third Party Payments,REVENUE
http://statistics.data.gov.uk/id/local-authority/00HY,Wiltshire Council,04/12/2012,1900954005,310.60,Andybus  and  Coach Ltd ,100132,SN16,Neighbourhood & Planning,Mainstream Secondary,Transport Contracts,Third Party Payments,REVENUE
http://statistics.data.gov.uk/id/local-authority/00HY,Wiltshire Council,21/12/2012,1900959999,10301.07,Andybus  and  Coach Ltd ,100132,SN16,Neighbourhood & Planning,Concessionary Fares,Compensation for Concessionary fares,Third Party Payments,REVENUE
http://statistics.data.gov.uk/id/local-authority/00HY,Wiltshire Council,04/12/2012,5106223184,1217.32,ANGEL HOTEL CHIPPENHAM ,110150,SN15,Children & Education,ExtPDTCourse,Premises Rental / Hire Charges,Premises Related,REVENUE
http://statistics.data.gov.uk/id/local-authority/00HY,Wiltshire Council,13/12/2012,5106226146,299.17,ANGEL HOTEL CHIPPENHAM ,110150,SN15,Children & Education,EYLearnDevTm,Premises Rental / Hire Charges,Premises Related,REVENUE
http://statistics.data.gov.uk/id/local-authority/00HY,Wiltshire Council,13/12/2012,5106226147,912.33,ANGEL HOTEL CHIPPENHAM ,110150,SN15,Children & Education,EYLearnDevTm,Premises Rental / Hire Charges,Premises Related,REVENUE
http://statistics.data.gov.uk/id/local-authority/00HY,Wiltshire Council,12/12/2012,5106226148,344.17,ANGEL HOTEL CHIPPENHAM ,110150,SN15,Children & Education,EYLearnDevTm,Premises Rental / Hire Charges,Premises Related,REVENUE
http://statistics.data.gov.uk/id/local-authority/00HY,Wiltshire Council,12/12/2012,5106218580,383.99,Antalis Limited ,122876,LE67,Resources,DesignPrintTrowbridg,Materials & Consumables (Non-Educational),Supplies and Services,REVENUE
http://statistics.data.gov.uk/id/local-authority/00HY,Wiltshire Council,20/12/2012,1900959633,4250.00,APA Consultants Ltd ,113361,SN10,Neighbourhood & Planning,DevControlNorth,Consultants� Fees,Supplies and Services,REVENUE
http://statistics.data.gov.uk/id/local-authority/00HY,Wiltshire Council,21/12/2012,5106223299,287.77,Apex Radio Systems Ltd ,134594,NE15,Neighbourhood & Planning,Off Street Parking,Equipment Purchase,Supplies and Services,REVENUE
http://statistics.data.gov.uk/id/local-authority/00HY,Wiltshire Council,04/12/2012,1900953842,1564.31,APL Travel Limited ,100596,SN4 ,Neighbourhood & Planning,Mainstream Secondary,Transport Contracts,Third Party Payments,REVENUE
http://statistics.data.gov.uk/id/local-authority/00HY,Wiltshire Council,04/12/2012,1900953842,3996.02,APL Travel Limited ,100596,SN4 ,Neighbourhood & Planning,Public Transport,Transport Contracts,Third Party Payments,REVENUE
http://statistics.data.gov.uk/id/local-authority/00HY,Wiltshire Council,04/12/2012,1900953843,1423.41,APL Travel Limited ,100596,SN4 ,Neighbourhood & Planning,Mainstream Secondary,Transport Contracts,Third Party Payments,REVENUE
http://statistics.data.gov.uk/id/local-authority/00HY,Wiltshire Council,04/12/2012,1900953843,2668.43,APL Travel Limited ,100596,SN4 ,Neighbourhood & Planning,Mainstream 16+ FE,Transport Contracts,Third Party Payments,REVENUE
http://statistics.data.gov.uk/id/local-authority/00HY,Wiltshire Council,04/12/2012,1900953843,4635.75,APL Travel Limited ,100596,SN4 ,Neighbourhood & Planning,Public Transport,Transport Contracts,Third Party Payments,REVENUE
http://statistics.data.gov.uk/id/local-authority/00HY,Wiltshire Council,04/12/2012,1900953844,2715.86,APL Travel Limited ,100596,SN4 ,Neighbourhood & Planning,Mainstream Secondary,Transport Contracts,Third Party Payments,REVENUE
http://statistics.data.gov.uk/id/local-authority/00HY,Wiltshire Council,05/12/2012,1900954366,5632.98,APL Travel Limited ,100596,SN4 ,Neighbourhood & Planning,Mainstream Secondary,Transport Contracts,Third Party Payments,REVENUE
http://statistics.data.gov.uk/id/local-authority/00HY,Wiltshire Council,06/12/2012,1900955126,1347.80,APL Travel Limited ,100596,SN4 ,Neighbourhood & Planning,Mainstream Secondary,Transport Contracts,Third Party Payments,REVENUE
http://statistics.data.gov.uk/id/local-authority/00HY,Wiltshire Council,06/12/2012,1900955126,5233.09,APL Travel Limited ,100596,SN4 ,Neighbourhood & Planning,Public Transport,Transport Contracts,Third Party Payments,REVENUE
http://statistics.data.gov.uk/id/local-authority/00HY,Wiltshire Council,21/12/2012,1900960001,9663.16,APL Travel Limited ,100596,SN4 ,Neighbourhood & Planning,Concessionary Fares,Compensation for Concessionary fares,Third Party Payments,REVENUE
http://statistics.data.gov.uk/id/local-authority/00HY,Wiltshire Council,11/12/2012,5106225040,1582.54,Apple Store Southgate ,135118,BA1 ,Children & Education,SCHL LEADERSHIP ACTV,Hardware Purchases IT,Supplies and Services,REVENUE
http://statistics.data.gov.uk/id/local-authority/00HY,Wiltshire Council,14/12/2012,5106226561,600.00,Apricot Learning Online ,135069,GL53,Children & Education,EducServChldnLkdAft,Educational Fees,Supplies and Services,REVENUE
http://statistics.data.gov.uk/id/local-authority/00HY,Wiltshire Council,19/12/2012,5106227275,2600.00,Arbory Residential Home ,113587,SP11,Community Services,MH OP East Locality,Adult Residential Placements - Spot Purchase,Third Party Payments,REVENUE
http://statistics.data.gov.uk/id/local-authority/00HY,Wiltshire Council,19/12/2012,5106230926,2074.20,Arch Care Services Ltd ,110169,BS21,Community Services,MH AOWA West,Adult Residential Placements - Spot Purchase,Third Party Payments,REVENUE
http://statistics.data.gov.uk/id/local-authority/00HY,Wiltshire Council,11/12/2012,5106213316,309.50,Arco Limited ,130295,SO53,Neighbourhood & Planning,Housg Mtc Trading Ac,Equipment Purchase,Supplies and Services,REVENUE
http://statistics.data.gov.uk/id/local-authority/00HY,Wiltshire Council,21/12/2012,5106227759,254.46,Arco Limited ,130295,SO53,Neighbourhood & Planning,Housg Mtc Trading Ac,Equipment Purchase,Supplies and Services,REVENUE
http://statistics.data.gov.uk/id/local-authority/00HY,Wiltshire Council,12/12/2012,5106220735,336.76,Argos Business Solutions ,113600,MK9 ,Children & Education,LAC & 16+ Team 2,Grants Paid to individuals for Tangible Benefits,Supplies and Services,REVENUE
http://statistics.data.gov.uk/id/local-authority/00HY,Wiltshire Council,07/12/2012,1900955399,426.66,Arrow Private Hire ,100574,SN8 ,Neighbourhood & Planning,Mainstream 16+ Sec,Transport Contracts,Third Party Payments,REVENUE
http://statistics.data.gov.uk/id/local-authority/00HY,Wiltshire Council,07/12/2012,1900955399,426.67,Arrow Private Hire ,100574,SN8 ,Neighbourhood & Planning,SEN Primary,Transport Contracts,Third Party Payments,REVENUE
http://statistics.data.gov.uk/id/local-authority/00HY,Wiltshire Council,07/12/2012,1900955399,426.67,Arrow Private Hire ,100574,SN8 ,Neighbourhood & Planning,SEN Secondary,Transport Contracts,Third Party Payments,REVENUE
http://statistics.data.gov.uk/id/local-authority/00HY,Wiltshire Council,07/12/2012,1900955403,470.00,Arrow Private Hire ,100574,SN8 ,Neighbourhood & Planning,Mainstream Primary,Transport Contracts,Third Party Payments,REVENUE
http://statistics.data.gov.uk/id/local-authority/00HY,Wiltshire Council,21/12/2012,1900959979,400.00,Arrow Private Hire ,100574,SN8 ,Neighbourhood & Planning,Mainstream 16+ Sec,Transport Contracts,Third Party Payments,REVENUE
http://statistics.data.gov.uk/id/local-authority/00HY,Wiltshire Council,13/12/2012,5106222396,276.72,Arthur Ibbett Ltd ,113610,PE19,Neighbourhood & Planning,Fleet Operations,Vehicle Parts,Transport Related,REVENUE
http://statistics.data.gov.uk/id/local-authority/00HY,Wiltshire Council,21/12/2012,5106234091,500.00,Arthur Williams Consulting Ltd ,129581,BA14,Wiltshire Council,Wiltshire Council,Consultants� Fees,Supplies and Services,CAPITAL
http://statistics.data.gov.uk/id/local-authority/00HY,Wiltshire Council,21/12/2012,5106234092,1075.00,Arthur Williams Consulting Ltd ,129581,BA14,Wiltshire Council,Wiltshire Council,Consultants� Fees,Supplies and Services,CAPITAL
http://statistics.data.gov.uk/id/local-authority/00HY,Wiltshire Council,21/12/2012,5106234093,960.00,Arthur Williams Consulting Ltd ,129581,BA14,Wiltshire Council,Wiltshire Council,Consultants� Fees,Supplies and Services,CAPITAL
http://statistics.data.gov.uk/id/local-authority/00HY,Wiltshire Council,21/12/2012,5106234094,665.00,Arthur Williams Consulting Ltd ,129581,BA14,Wiltshire Council,Wiltshire Council,Consultants� Fees,Supplies and Services,CAPITAL
http://statistics.data.gov.uk/id/local-authority/00HY,Wiltshire Council,19/12/2012,5106230068,2045.20,Ashbourne Court Care Home ,133906,SP10,Community Services,OP East Locality,Adult Care Nursing Placements- Spot Purchase,Third Party Payments,REVENUE
http://statistics.data.gov.uk/id/local-authority/00HY,Wiltshire Council,19/12/2012,5106227168,1813.04,Ashbury Lodge ,113635,SN3 ,Community Services,OP North Locality,Adult Residential Placements - Spot Purchase,Third Party Payments,REVENUE
http://statistics.data.gov.uk/id/local-authority/00HY,Wiltshire Council,19/12/2012,5106227573,2165.44,Ashbury Lodge ,113635,SN3 ,Community Services,MH OP North Locality,Adult Residential Placements - Spot Purchase,Third Party Payments,REVENUE
http://statistics.data.gov.uk/id/local-authority/00HY,Wiltshire Council,19/12/2012,5106230960,2121.00,Ashbury Lodge ,113635,SN3 ,Community Services,MH OP East Locality,Adult Residential Placements - Spot Purchase,Third Party Payments,REVENUE
http://statistics.data.gov.uk/id/local-authority/00HY,Wiltshire Council,10/12/2012,5106224644,838.50,Ashfords ,133080,TA1 ,Children & Education,HQ Social Care,Legal Fees,Supplies and Services,REVENUE
http://statistics.data.gov.uk/id/local-authority/00HY,Wiltshire Council,10/12/2012,5106224732,2649.93,Ashfords ,133080,TA1 ,Children & Education,HQ Social Care,Legal Fees,Supplies and Services,REVENUE
http://statistics.data.gov.uk/id/local-authority/00HY,Wiltshire Council,17/12/2012,5106227664,2189.52,Ashfords ,133080,TA1 ,Children & Education,HQ Social Care,Legal Fees,Supplies and Services,REVENUE
http://statistics.data.gov.uk/id/local-authority/00HY,Wiltshire Council,20/12/2012,1900959656,1800.00,Ashley Leisure Service Ltd ,130510,TA23,Resources,Campus,Preventative Property Maintenance,Premises Related,REVENUE
http://statistics.data.gov.uk/id/local-authority/00HY,Wiltshire Council,06/12/2012,1900955181,966.92,Ashton Cabs ,101384,BA14,Neighbourhood & Planning,SEN Primary,Transport Contracts,Third Party Payments,REVENUE
http://statistics.data.gov.uk/id/local-authority/00HY,Wiltshire Council,19/12/2012,5106230439,2565.20,Ashton House ,135013,RH16,Community Services,MH OP West Locality,Adult Care Nursing Placements- Spot Purchase,Third Party Payments,REVENUE
http://statistics.data.gov.uk/id/local-authority/00HY,Wiltshire Council,14/12/2012,5106218314,20844.50,Ashwoods Automotive ,133707,EX4 ,Wiltshire Council,Wiltshire Council,Vehicle Purchases,Transport Related,CAPITAL
http://statistics.data.gov.uk/id/local-authority/00HY,Wiltshire Council,10/12/2012,5106224693,20839.50,Ashwoods Automotive ,133707,EX4 ,Wiltshire Council,Wiltshire Council,Vehicle Purchases,Transport Related,CAPITAL
http://statistics.data.gov.uk/id/local-authority/00HY,Wiltshire Council,03/12/2012,5106222596,10000.00,Ask ,110189,BA14,Children & Education,Family&Parenting Sup,Other Social & Welfare Costs,Third Party Payments,REVENUE
http://statistics.data.gov.uk/id/local-authority/00HY,Wiltshire Council,19/12/2012,5106230971,3868.40,Aspects and Milestones Trust ,131150,BS23,Community Services,CTPLD County CIC U65,Adult Residential Placements - Spot Purchase,Third Party Payments,REVENUE
http://statistics.data.gov.uk/id/local-authority/00HY,Wiltshire Council,13/12/2012,1900957363,484.98,Aspire Taxis ,101274,SP2 ,Neighbourhood & Planning,DCS South Locality P,Transport Contracts,Third Party Payments,REVENUE
http://statistics.data.gov.uk/id/local-authority/00HY,Wiltshire Council,13/12/2012,1900957364,1759.60,Aspire Taxis ,101274,SP2 ,Neighbourhood & Planning,SEN Secondary,Transport Contracts,Third Party Payments,REVENUE
http://statistics.data.gov.uk/id/local-authority/00HY,Wiltshire Council,13/12/2012,1900957365,288.00,Aspire Taxis ,101274,SP2 ,Neighbourhood & Planning,Mainstream Secondary,Transport Contracts,Third Party Payments,REVENUE
http://statistics.data.gov.uk/id/local-authority/00HY,Wiltshire Council,13/12/2012,1900957369,312.00,Aspire Taxis ,101274,SP2 ,Neighbourhood & Planning,DCS CTPLD U65,Transport Contracts,Third Party Payments,REVENUE
http://statistics.data.gov.uk/id/local-authority/00HY,Wiltshire Council,13/12/2012,1900957370,276.56,Aspire Taxis ,101274,SP2 ,Neighbourhood & Planning,SEN Primary,Transport Contracts,Third Party Payments,REVENUE
http://statistics.data.gov.uk/id/local-authority/00HY,Wiltshire Council,11/12/2012,5106224994,2000.00,Asset Intelligence ,130842,SO23,Wiltshire Council,Wiltshire Council,ICT - Support arrangements,Supplies and Services,CAPITAL
http://statistics.data.gov.uk/id/local-authority/00HY,Wiltshire Council,21/12/2012,5106223470,1390.00,Assoc Of Electoral Administrators ,113675,SR2 ,Resources,RegistrationofElectr,Political Group Expenses,Supplies and Services,REVENUE
http://statistics.data.gov.uk/id/local-authority/00HY,Wiltshire Council,07/12/2012,1900952160,416.85,Aster Living ,112275,SN10,Wiltshire Council,Wiltshire Council,Other Professional Fees,Supplies and Services,CAPITAL
http://statistics.data.gov.uk/id/local-authority/00HY,Wiltshire Council,03/12/2012,1900952161,500.00,Aster Living ,112275,SN10,Wiltshire Council,Wiltshire Council,Other Professional Fees,Supplies and Services,CAPITAL
http://statistics.data.gov.uk/id/local-authority/00HY,Wiltshire Council,03/12/2012,1900952162,500.00,Aster Living ,112275,SN10,Wiltshire Council,Wiltshire Council,Other Professional Fees,Supplies and Services,CAPITAL
http://statistics.data.gov.uk/id/local-authority/00HY,Wiltshire Council,07/12/2012,1900952171,500.00,Aster Living ,112275,SN10,Wiltshire Council,Wiltshire Council,Other Professional Fees,Supplies and Services,CAPITAL
http://statistics.data.gov.uk/id/local-authority/00HY,Wiltshire Council,07/12/2012,1900952172,500.00,Aster Living ,112275,SN10,Wiltshire Council,Wiltshire Council,Other Professional Fees,Supplies and Services,CAPITAL
http://statistics.data.gov.uk/id/local-authority/00HY,Wiltshire Council,07/12/2012,1900952473,500.00,Aster Living ,112275,SN10,Wiltshire Council,Wiltshire Council,Other Professional Fees,Supplies and Services,CAPITAL
http://statistics.data.gov.uk/id/local-authority/00HY,Wiltshire Council,07/12/2012,1900952474,650.00,Aster Living ,112275,SN10,Wiltshire Council,Wiltshire Council,Other Professional Fees,Supplies and Services,CAPITAL
http://statistics.data.gov.uk/id/local-authority/00HY,Wiltshire Council,07/12/2012,1900952476,500.00,Aster Living ,112275,SN10,Wiltshire Council,Wiltshire Council,Other Professional Fees,Supplies and Services,CAPITAL
http://statistics.data.gov.uk/id/local-authority/00HY,Wiltshire Council,03/12/2012,1900952477,500.00,Aster Living ,112275,SN10,Wiltshire Council,Wiltshire Council,Other Professional Fees,Supplies and Services,CAPITAL
http://statistics.data.gov.uk/id/local-authority/00HY,Wiltshire Council,03/12/2012,1900952480,650.00,Aster Living ,112275,SN10,Wiltshire Council,Wiltshire Council,Other Professional Fees,Supplies and Services,CAPITAL
http://statistics.data.gov.uk/id/local-authority/00HY,Wiltshire Council,04/12/2012,1900954045,650.00,Aster Living ,112275,SN10,Wiltshire Council,Wiltshire Council,Other Professional Fees,Supplies and Services,CAPITAL
http://statistics.data.gov.uk/id/local-authority/00HY,Wiltshire Council,05/12/2012,1900954047,500.00,Aster Living ,112275,SN10,Wiltshire Council,Wiltshire Council,Other Professional Fees,Supplies and Services,CAPITAL
http://statistics.data.gov.uk/id/local-authority/00HY,Wiltshire Council,05/12/2012,1900954051,500.00,Aster Living ,112275,SN10,Wiltshire Council,Wiltshire Council,Other Professional Fees,Supplies and Services,CAPITAL
http://statistics.data.gov.uk/id/local-authority/00HY,Wiltshire Council,05/12/2012,1900954111,500.00,Aster Living ,112275,SN10,Wiltshire Council,Wiltshire Council,Other Professional Fees,Supplies and Services,CAPITAL
http://statistics.data.gov.uk/id/local-authority/00HY,Wiltshire Council,10/12/2012,1900954116,500.00,Aster Living ,112275,SN10,Wiltshire Council,Wiltshire Council,Other Professional Fees,Supplies and Services,CAPITAL
http://statistics.data.gov.uk/id/local-authority/00HY,Wiltshire Council,10/12/2012,1900954118,500.00,Aster Living ,112275,SN10,Wiltshire Council,Wiltshire Council,Other Professional Fees,Supplies and Services,CAPITAL
http://statistics.data.gov.uk/id/local-authority/00HY,Wiltshire Council,05/12/2012,1900954121,500.00,Aster Living ,112275,SN10,Wiltshire Council,Wiltshire Council,Other Professional Fees,Supplies and Services,CAPITAL
http://statistics.data.gov.uk/id/local-authority/00HY,Wiltshire Council,19/12/2012,5106230000,1997.20,Astley House Care Centre ,133956,GL50,Community Services,MH OP North Locality,Adult Care Nursing Placements- Spot Purchase,Third Party Payments,REVENUE
http://statistics.data.gov.uk/id/local-authority/00HY,Wiltshire Council,19/12/2012,5106228504,2066.44,Aston House Care Home ,132321,DL3 ,Community Services,MH OP North Locality,Adult Residential Placements - Spot Purchase,Third Party Payments,REVENUE
http://statistics.data.gov.uk/id/local-authority/00HY,Wiltshire Council,19/12/2012,5106230786,1188.46,At First ,130572,BS3 ,Neighbourhood & Planning,Fleet Operations,Vehicle Parts,Transport Related,REVENUE
http://statistics.data.gov.uk/id/local-authority/00HY,Wiltshire Council,19/12/2012,1900954348,2277.50,ATB Shop Ltd ,110195,SN1 ,Children & Education,CalneYDC,Equipment Purchase,Supplies and Services,REVENUE
http://statistics.data.gov.uk/id/local-authority/00HY,Wiltshire Council,03/12/2012,5106223151,6974.00,Atkins Walters and Webster ,134330,BS1 ,Wiltshire Council,Wiltshire Council,Consultants� Fees,Supplies and Services,CAPITAL
http://statistics.data.gov.uk/id/local-authority/00HY,Wiltshire Council,14/12/2012,5106226698,1525.00,Atlantic Data Ltd ,132987,MK7 ,Resources,SharedServHRother,ICT - Support arrangements,Supplies and Services,REVENUE
http://statistics.data.gov.uk/id/local-authority/00HY,Wiltshire Council,11/12/2012,5106225034,25183.39,Ats Euromaster Ltd ,113709,B6 5,Neighbourhood & Planning,Fleet Operations,Vehicle 3rd Party Repairs,Transport Related,REVENUE
http://statistics.data.gov.uk/id/local-authority/00HY,Wiltshire Council,21/12/2012,5106225035,18417.32,Ats Euromaster Ltd ,113709,B6 5,Neighbourhood & Planning,Fleet Operations,Vehicle 3rd Party Repairs,Transport Related,REVENUE
http://statistics.data.gov.uk/id/local-authority/00HY,Wiltshire Council,10/12/2012,5106224706,250.00,Audience Media Limited ,110202,W1U ,Resources,InternalCommunicats,Marketing and Promotions,Supplies and Services,REVENUE
http://statistics.data.gov.uk/id/local-authority/00HY,Wiltshire Council,21/12/2012,1900952080,420.00,Audio Forum Limited ,130131,BA14,Neighbourhood & Planning,City Hall,Equipment Hire,Supplies and Services,REVENUE
http://statistics.data.gov.uk/id/local-authority/00HY,Wiltshire Council,13/12/2012,5106224691,1825.00,Audit Commission ,110203,BS34,Resources,Revs & Bens - Fraud,Grants Paid to individuals for Tangible Benefits,Supplies and Services,REVENUE
http://statistics.data.gov.uk/id/local-authority/00HY,Wiltshire Council,19/12/2012,5106229385,5824.44,Autism Specialised care Homes ,110205,BS10,Community Services,CTPLD County CIC U65,Adult Residential Placements - Spot Purchase,Third Party Payments,REVENUE
http://statistics.data.gov.uk/id/local-authority/00HY,Wiltshire Council,19/12/2012,5106229387,7109.00,Autism West Midlands ,110206,WR9 ,Community Services,CTPLD County CIC U65,Adult Residential Placements - Spot Purchase,Third Party Payments,REVENUE
http://statistics.data.gov.uk/id/local-authority/00HY,Wiltshire Council,21/12/2012,5106224216,3601.07,Automotive Leasing Ltd ,113729,SL1 ,Resources,Miscellaneous,Commercial Leased Vehicles,Transport Related,REVENUE
http://statistics.data.gov.uk/id/local-authority/00HY,Wiltshire Council,07/12/2012,5106224218,266.49,Automotive Leasing Ltd ,113729,SL1 ,Neighbourhood & Planning,Fleet Operations,Commercial Leased Vehicles,Transport Related,REVENUE
http://statistics.data.gov.uk/id/local-authority/00HY,Wiltshire Council,21/12/2012,5106224219,250.14,Automotive Leasing Ltd ,113729,SL1 ,Neighbourhood & Planning,Fleet Operations,Commercial Leased Vehicles,Transport Related,REVENUE
http://statistics.data.gov.uk/id/local-authority/00HY,Wiltshire Council,21/12/2012,5106227894,3601.07,Automotive Leasing Ltd ,113729,SL1 ,Resources,Wrkplc Transform Prg,Commercial Leased Vehicles,Transport Related,REVENUE
http://statistics.data.gov.uk/id/local-authority/00HY,Wiltshire Council,14/12/2012,5106226560,2652.00,Autonomy Care Limited ,126128,SN10,Community Services,CTPLD County CIC U65,Adult Domiciliary Care - Spot,Third Party Payments,REVENUE
http://statistics.data.gov.uk/id/local-authority/00HY,Wiltshire Council,14/12/2012,5106226563,501.85,Autonomy Care Limited ,126128,SN10,Community Services,CTPLD County CIC U65,Adult Domiciliary Care - Spot Contribution,Income,REVENUE
http://statistics.data.gov.uk/id/local-authority/00HY,Wiltshire Council,19/12/2012,1900959572,1308.17,Avalon Promotions Ltd ,126693,W10 ,Neighbourhood & Planning,City Hall,City Hall Shows,Balance Sheet Accounts,REVENUE
http://statistics.data.gov.uk/id/local-authority/00HY,Wiltshire Council,19/12/2012,5106228657,1933.28,Avenue Care (Fareham) Ltd ,110691,SN10,Community Services,MH OP East Locality,Adult Residential Placements - Spot Purchase,Third Party Payments,REVENUE
http://statistics.data.gov.uk/id/local-authority/00HY,Wiltshire Council,19/12/2012,5106228659,2004.44,Avenue Care (Fareham) Ltd ,110691,SN10,Community Services,CTPLD County CIC 65+,Adult Residential Placements - Spot Purchase,Third Party Payments,REVENUE
http://statistics.data.gov.uk/id/local-authority/00HY,Wiltshire Council,19/12/2012,5106231003,2080.60,Avenue Care (Fareham) Ltd ,110691,SN10,Community Services,MH OP West Locality,Adult Residential Placements - Spot Purchase,Third Party Payments,REVENUE
http://statistics.data.gov.uk/id/local-authority/00HY,Wiltshire Council,20/12/2012,5106234083,6600.00,Avenue Care (Fareham) Ltd ,110691,SN10,Community Services,OP East Locality,Adult Residential Placements - 12 Week,Third Party Payments,REVENUE
http://statistics.data.gov.uk/id/local-authority/00HY,Wiltshire Council,19/12/2012,5106216045,1904.00,"Avenue House, Dorchester ",133778,DT1 ,Community Services,OP East Locality,Adult Residential Placements - Spot Purchase,Third Party Payments,REVENUE
http://statistics.data.gov.uk/id/local-authority/00HY,Wiltshire Council,05/12/2012,1900955081,636.43,Avery Healthcare Cepen Lodge ,126733,SN14,Community Services,MH OP North Locality,Adult Residential Place - Spot Purchase,Income,REVENUE
http://statistics.data.gov.uk/id/local-authority/00HY,Wiltshire Council,06/12/2012,5106224295,1082.72,Avery Healthcare Cepen Lodge ,126733,SN14,Community Services,OP North Locality,Adult Residential Placements - Spot Purchase,Third Party Payments,REVENUE
http://statistics.data.gov.uk/id/local-authority/00HY,Wiltshire Council,06/12/2012,5106224297,2165.44,Avery Healthcare Cepen Lodge ,126733,SN14,Community Services,OP North Locality,Adult Residential Placements - Spot Purchase,Third Party Payments,REVENUE
http://statistics.data.gov.uk/id/local-authority/00HY,Wiltshire Council,06/12/2012,5106224300,2165.44,Avery Healthcare Cepen Lodge ,126733,SN14,Community Services,OP North Locality,Adult Residential Placements - Spot Purchase,Third Party Payments,REVENUE
http://statistics.data.gov.uk/id/local-authority/00HY,Wiltshire Council,06/12/2012,5106224302,2165.44,Avery Healthcare Cepen Lodge ,126733,SN14,Community Services,OP North Locality,Adult Residential Placements - Spot Purchase,Third Party Payments,REVENUE
http://statistics.data.gov.uk/id/local-authority/00HY,Wiltshire Council,06/12/2012,5106224304,2165.44,Avery Healthcare Cepen Lodge ,126733,SN14,Community Services,OP North Locality,Adult Residential Placements - Spot Purchase,Third Party Payments,REVENUE
http://statistics.data.gov.uk/id/local-authority/00HY,Wiltshire Council,19/12/2012,5106228457,2165.44,Avery Healthcare Cepen Lodge ,126733,SN14,Community Services,OP North Locality,Adult Residential Placements - Spot Purchase,Third Party Payments,REVENUE
http://statistics.data.gov.uk/id/local-authority/00HY,Wiltshire Council,19/12/2012,5106228459,2302.80,Avery Healthcare Cepen Lodge ,126733,SN14,Community Services,OP West Locality,Adult Residential Placements - Spot Purchase,Third Party Payments,REVENUE
http://statistics.data.gov.uk/id/local-authority/00HY,Wiltshire Council,19/12/2012,5106228461,2060.40,Avery Healthcare Cepen Lodge ,126733,SN14,Community Services,MH OP North Locality,Adult Residential Placements - Spot Purchase,Third Party Payments,REVENUE
http://statistics.data.gov.uk/id/local-authority/00HY,Wiltshire Council,19/12/2012,5106228463,1909.60,Avery Healthcare Cepen Lodge ,126733,SN14,Community Services,OP North Locality,Adult Residential Placements - Spot Purchase,Third Party Payments,REVENUE
http://statistics.data.gov.uk/id/local-authority/00HY,Wiltshire Council,19/12/2012,5106228465,1909.60,Avery Healthcare Cepen Lodge ,126733,SN14,Community Services,OP North Locality,Adult Residential Placements - Spot Purchase,Third Party Payments,REVENUE
http://statistics.data.gov.uk/id/local-authority/00HY,Wiltshire Council,19/12/2012,5106228467,2060.40,Avery Healthcare Cepen Lodge ,126733,SN14,Community Services,OP North Locality,Adult Residential Placements - Spot Purchase,Third Party Payments,REVENUE
http://statistics.data.gov.uk/id/local-authority/00HY,Wiltshire Council,19/12/2012,5106228976,2060.40,Avery Healthcare Cepen Lodge ,126733,SN14,Community Services,MH OP West Locality,Adult Residential Placements - Spot Purchase,Third Party Payments,REVENUE
http://statistics.data.gov.uk/id/local-authority/00HY,Wiltshire Council,19/12/2012,5106228978,2151.96,Avery Healthcare Cepen Lodge ,126733,SN14,Community Services,MH OP North Locality,Adult Residential Placements - Spot Purchase,Third Party Payments,REVENUE
http://statistics.data.gov.uk/id/local-authority/00HY,Wiltshire Council,19/12/2012,5106228982,2060.40,Avery Healthcare Cepen Lodge ,126733,SN14,Community Services,OP North Locality,Adult Residential Placements - Spot Purchase,Third Party Payments,REVENUE
http://statistics.data.gov.uk/id/local-authority/00HY,Wiltshire Council,19/12/2012,5106228984,2165.44,Avery Healthcare Cepen Lodge ,126733,SN14,Community Services,OP North Locality,Adult Residential Placements - Spot Purchase,Third Party Payments,REVENUE
http://statistics.data.gov.uk/id/local-authority/00HY,Wiltshire Council,19/12/2012,5106229109,2060.40,Avery Healthcare Cepen Lodge ,126733,SN14,Community Services,OP West Locality,Adult Residential Placements - Spot Purchase,Third Party Payments,REVENUE
http://statistics.data.gov.uk/id/local-authority/00HY,Wiltshire Council,19/12/2012,5106229885,2165.44,Avery Healthcare Cepen Lodge ,126733,SN14,Community Services,OP North Locality,Adult Residential Placements - Spot Purchase,Third Party Payments,REVENUE
http://statistics.data.gov.uk/id/local-authority/00HY,Wiltshire Council,19/12/2012,5106230044,3400.00,Avery Healthcare Cepen Lodge ,126733,SN14,Community Services,OP North Locality,Adult Residential Placements - Spot Purchase,Third Party Payments,REVENUE
http://statistics.data.gov.uk/id/local-authority/00HY,Wiltshire Council,19/12/2012,5106230643,2165.44,Avery Healthcare Cepen Lodge ,126733,SN14,Community Services,OP North Locality,Adult Residential Placements - Spot Purchase,Third Party Payments,REVENUE
http://statistics.data.gov.uk/id/local-authority/00HY,Wiltshire Council,19/12/2012,5106230682,2165.44,Avery Healthcare Cepen Lodge ,126733,SN14,Community Services,OP North Locality,Adult Residential Placements - Spot Purchase,Third Party Payments,REVENUE
http://statistics.data.gov.uk/id/local-authority/00HY,Wiltshire Council,19/12/2012,5106231050,2280.00,Avery Healthcare Cepen Lodge ,126733,SN14,Community Services,Home Loans,Adult Care - Home Loan Costs,Capital charges and Expenditure,REVENUE
http://statistics.data.gov.uk/id/local-authority/00HY,Wiltshire Council,19/12/2012,5106231363,3100.00,Avery Healthcare Cepen Lodge ,126733,SN14,Community Services,Home Loans,Adult Care - Home Loan Costs,Capital charges and Expenditure,REVENUE
http://statistics.data.gov.uk/id/local-authority/00HY,Wiltshire Council,19/12/2012,5106231622,3200.00,Avery Healthcare Cepen Lodge ,126733,SN14,Community Services,Home Loans,Adult Care - Home Loan Costs,Capital charges and Expenditure,REVENUE
http://statistics.data.gov.uk/id/local-authority/00HY,Wiltshire Council,19/12/2012,5106229133,1900.64,Avery Healthcare Group - Acorn Lodg ,131308,CV10,Community Services,OP West Locality,Adult Residential Placements - Spot Purchase,Third Party Payments,REVENUE
http://statistics.data.gov.uk/id/local-authority/00HY,Wiltshire Council,18/12/2012,1900958760,15497.51,Avery Healthcare Ltd- Langford Sali ,112676,NN4 ,Community Services,FNC,Adult Care Funded Nursing Care - Out of County Cli,Third Party Payments,REVENUE
http://statistics.data.gov.uk/id/local-authority/00HY,Wiltshire Council,19/12/2012,5106228442,2393.20,Avery Healthcare Ltd- Langford Sali ,112676,NN4 ,Community Services,MH OP South Locality,Adult Care Nursing Placements- Spot Purchase,Third Party Payments,REVENUE
http://statistics.data.gov.uk/id/local-authority/00HY,Wiltshire Council,19/12/2012,5106228443,434.80,Avery Healthcare Ltd- Langford Sali ,112676,NN4 ,Community Services,MH OA South FNC,Adult Care Funded Nursing Care - Loal Auth Clients,Third Party Payments,REVENUE
http://statistics.data.gov.uk/id/local-authority/00HY,Wiltshire Council,19/12/2012,5106228446,2436.40,Avery Healthcare Ltd- Langford Sali ,112676,NN4 ,Community Services,MH OP South Locality,Adult Care Nursing Placements- Spot Purchase,Third Party Payments,REVENUE
http://statistics.data.gov.uk/id/local-authority/00HY,Wiltshire Council,19/12/2012,5106228447,434.80,Avery Healthcare Ltd- Langford Sali ,112676,NN4 ,Community Services,MH OA South FNC,Adult Care Funded Nursing Care - Loal Auth Clients,Third Party Payments,REVENUE
http://statistics.data.gov.uk/id/local-authority/00HY,Wiltshire Council,19/12/2012,5106228702,2595.20,Avery Healthcare Ltd- Langford Sali ,112676,NN4 ,Community Services,OP South Locality,Adult Care Nursing Placements- Spot Purchase,Third Party Payments,REVENUE
http://statistics.data.gov.uk/id/local-authority/00HY,Wiltshire Council,19/12/2012,5106228703,434.80,Avery Healthcare Ltd- Langford Sali ,112676,NN4 ,Community Services,OP South FNC,Adult Care Funded Nursing Care - Loal Auth Clients,Third Party Payments,REVENUE
http://statistics.data.gov.uk/id/local-authority/00HY,Wiltshire Council,19/12/2012,5106228807,2292.28,Avery Healthcare Ltd- Langford Sali ,112676,NN4 ,Community Services,OP South Locality,Adult Care Nursing Placements- Spot Purchase,Third Party Payments,REVENUE
http://statistics.data.gov.uk/id/local-authority/00HY,Wiltshire Council,19/12/2012,5106228808,434.80,Avery Healthcare Ltd- Langford Sali ,112676,NN4 ,Community Services,OP South FNC,Adult Care Funded Nursing Care - Loal Auth Clients,Third Party Payments,REVENUE
http://statistics.data.gov.uk/id/local-authority/00HY,Wiltshire Council,19/12/2012,5106229323,2595.20,Avery Healthcare Ltd- Langford Sali ,112676,NN4 ,Community Services,MH OP South Locality,Adult Care Nursing Placements- Spot Purchase,Third Party Payments,REVENUE
http://statistics.data.gov.uk/id/local-authority/00HY,Wiltshire Council,19/12/2012,5106229324,434.80,Avery Healthcare Ltd- Langford Sali ,112676,NN4 ,Community Services,MH OA South FNC,Adult Care Funded Nursing Care - Loal Auth Clients,Third Party Payments,REVENUE
http://statistics.data.gov.uk/id/local-authority/00HY,Wiltshire Council,19/12/2012,5106231808,10896.00,Avery Healthcare Ltd- Langford Sali ,112676,NN4 ,Community Services,OP South Locality,Adult Residential Placements - 12 Week,Third Party Payments,REVENUE
http://statistics.data.gov.uk/id/local-authority/00HY,Wiltshire Council,19/12/2012,5106231040,1832.40,Avery Homes Bristol Ltd ,113742,NN4 ,Community Services,Home Loans,Adult Care - Home Loan Costs,Capital charges and Expenditure,REVENUE
http://statistics.data.gov.uk/id/local-authority/00HY,Wiltshire Council,10/12/2012,5106224722,5717.75,Avon  and  Wiltshire Mental Health Partnership Nhs Tru,113745,BA1 ,Community Services,(8) Shared Care AWP,Substance Misuse - Payments to Contractors,Third Party Payments,REVENUE
http://statistics.data.gov.uk/id/local-authority/00HY,Wiltshire Council,10/12/2012,5106224722,9877.75,Avon  and  Wiltshire Mental Health Partnership Nhs Tru,113745,BA1 ,Community Services,Alcohol Treatment Rq,Substance Misuse - Payments to Contractors,Third Party Payments,REVENUE
http://statistics.data.gov.uk/id/local-authority/00HY,Wiltshire Council,10/12/2012,5106224722,10000.00,Avon  and  Wiltshire Mental Health Partnership Nhs Tru,113745,BA1 ,Community Services,Specialist Services,Substance Misuse - Payments to Contractors,Third Party Payments,REVENUE
http://statistics.data.gov.uk/id/local-authority/00HY,Wiltshire Council,10/12/2012,5106224722,15512.50,Avon  and  Wiltshire Mental Health Partnership Nhs Tru,113745,BA1 ,Community Services,(5) BBV Preventn/HIV,Substance Misuse - Payments to Contractors,Third Party Payments,REVENUE
http://statistics.data.gov.uk/id/local-authority/00HY,Wiltshire Council,10/12/2012,5106224722,15938.75,Avon  and  Wiltshire Mental Health Partnership Nhs Tru,113745,BA1 ,Community Services,(8)AWP SocialWorkers,Substance Misuse - Payments to Contractors,Third Party Payments,REVENUE
http://statistics.data.gov.uk/id/local-authority/00HY,Wiltshire Council,10/12/2012,5106224722,284921.25,Avon  and  Wiltshire Mental Health Partnership Nhs Tru,113745,BA1 ,Community Services,(8) AWP Core&Exp DRR,Substance Misuse - Payments to Contractors,Third Party Payments,REVENUE
http://statistics.data.gov.uk/id/local-authority/00HY,Wiltshire Council,10/12/2012,5106224723,60278.00,Avon  and  Wiltshire Mental Health Partnership Nhs Tru,113745,BA1 ,Community Services,(6) HealthPromotion,Substance Misuse - Payments to Contractors,Third Party Payments,REVENUE
http://statistics.data.gov.uk/id/local-authority/00HY,Wiltshire Council,19/12/2012,5106231924,6352.00,Avon  and  Wiltshire Mental Health Partnership Nhs Tru,113745,BA1 ,Community Services,NonRecurring Alcohol,Substance Misuse - Payments to Contractors,Third Party Payments,REVENUE
http://statistics.data.gov.uk/id/local-authority/00HY,Wiltshire Council,19/12/2012,5106231925,87246.00,Avon  and  Wiltshire Mental Health Partnership Nhs Tru,113745,BA1 ,Community Services,NonRecurring Alcohol,Substance Misuse - Payments to Contractors,Third Party Payments,REVENUE
http://statistics.data.gov.uk/id/local-authority/00HY,Wiltshire Council,21/12/2012,1900955524,9303.00,Avon and W Wilts MHC NHS Trust ,110216,BA1 ,Community Services,MH Management Fee,Contribution to Assistant Social Workers,Supplies and Services,REVENUE
http://statistics.data.gov.uk/id/local-authority/00HY,Wiltshire Council,18/12/2012,1900958741,5217.60,Avon Care Homes Ltd - Sutton Veny H ,112612,BA5 ,Community Services,FNC,Adult Care Funded Nursing Care - Out of County Cli,Third Party Payments,REVENUE
http://statistics.data.gov.uk/id/local-authority/00HY,Wiltshire Council,19/12/2012,5106227120,1608.48,Avon Care Homes Ltd - Sutton Veny H ,112612,BA5 ,Community Services,OP West Locality,Adult Care Nursing Placements- Spot Purchase,Third Party Payments,REVENUE
http://statistics.data.gov.uk/id/local-authority/00HY,Wiltshire Council,19/12/2012,5106227121,434.80,Avon Care Homes Ltd - Sutton Veny H ,112612,BA5 ,Community Services,OP West FNC,Adult Care Funded Nursing Care - Loal Auth Clients,Third Party Payments,REVENUE
http://statistics.data.gov.uk/id/local-authority/00HY,Wiltshire Council,19/12/2012,5106227123,2021.52,Avon Care Homes Ltd - Sutton Veny H ,112612,BA5 ,Community Services,OP West Locality,Adult Care Nursing Placements- Spot Purchase,Third Party Payments,REVENUE
http://statistics.data.gov.uk/id/local-authority/00HY,Wiltshire Council,19/12/2012,5106227124,434.80,Avon Care Homes Ltd - Sutton Veny H ,112612,BA5 ,Community Services,OP West FNC,Adult Care Funded Nursing Care - Loal Auth Clients,Third Party Payments,REVENUE
http://statistics.data.gov.uk/id/local-authority/00HY,Wiltshire Council,19/12/2012,5106227126,2023.28,Avon Care Homes Ltd - Sutton Veny H ,112612,BA5 ,Community Services,OP South Locality,Adult Care Nursing Placements- Spot Purchase,Third Party Payments,REVENUE
http://statistics.data.gov.uk/id/local-authority/00HY,Wiltshire Council,19/12/2012,5106227127,434.80,Avon Care Homes Ltd - Sutton Veny H ,112612,BA5 ,Community Services,OP West FNC,Adult Care Funded Nursing Care - Loal Auth Clients,Third Party Payments,REVENUE
http://statistics.data.gov.uk/id/local-authority/00HY,Wiltshire Council,19/12/2012,5106227129,2021.52,Avon Care Homes Ltd - Sutton Veny H ,112612,BA5 ,Community Services,OP West Locality,Adult Care Nursing Placements- Spot Purchase,Third Party Payments,REVENUE
http://statistics.data.gov.uk/id/local-authority/00HY,Wiltshire Council,19/12/2012,5106227130,434.80,Avon Care Homes Ltd - Sutton Veny H ,112612,BA5 ,Community Services,OP West FNC,Adult Care Funded Nursing Care - Loal Auth Clients,Third Party Payments,REVENUE
http://statistics.data.gov.uk/id/local-authority/00HY,Wiltshire Council,19/12/2012,5106228437,1989.20,Avon Care Homes Ltd - Sutton Veny H ,112612,BA5 ,Community Services,OP South Locality,Adult Care Nursing Placements- Spot Purchase,Third Party Payments,REVENUE
http://statistics.data.gov.uk/id/local-authority/00HY,Wiltshire Council,19/12/2012,5106228438,434.80,Avon Care Homes Ltd - Sutton Veny H ,112612,BA5 ,Community Services,OP West FNC,Adult Care Funded Nursing Care - Loal Auth Clients,Third Party Payments,REVENUE
http://statistics.data.gov.uk/id/local-authority/00HY,Wiltshire Council,19/12/2012,5106228908,2221.52,Avon Care Homes Ltd - Sutton Veny H ,112612,BA5 ,Community Services,OP West Locality,Adult Care Nursing Placements- Spot Purchase,Third Party Payments,REVENUE
http://statistics.data.gov.uk/id/local-authority/00HY,Wiltshire Council,19/12/2012,5106228909,434.80,Avon Care Homes Ltd - Sutton Veny H ,112612,BA5 ,Community Services,OP West FNC,Adult Care Funded Nursing Care - Loal Auth Clients,Third Party Payments,REVENUE
http://statistics.data.gov.uk/id/local-authority/00HY,Wiltshire Council,19/12/2012,5106229199,1965.20,Avon Lea Nursing Home (Dorset) Ltd ,129950,DT4 ,Community Services,OP West Locality,Adult Care Nursing Placements- Spot Purchase,Third Party Payments,REVENUE
http://statistics.data.gov.uk/id/local-authority/00HY,Wiltshire Council,11/12/2012,1900955525,2300.00,Avoncare Homes Ltd - Wells Nursing ,114326,BA5 ,Community Services,STARR Scheme,Adult Nursing Placements - transitional beds,Third Party Payments,REVENUE
http://statistics.data.gov.uk/id/local-authority/00HY,Wiltshire Council,18/12/2012,1900958724,1304.40,Avoncare Homes Ltd - Wells Nursing ,114326,BA5 ,Community Services,FNC,Adult Care Funded Nursing Care - Out of County Cli,Third Party Payments,REVENUE
http://statistics.data.gov.uk/id/local-authority/00HY,Wiltshire Council,19/12/2012,5106231492,3165.20,Avoncare Homes Ltd - Wells Nursing ,114326,BA5 ,Community Services,Home Loans,Adult Care - Home Loan Costs,Capital charges and Expenditure,REVENUE
http://statistics.data.gov.uk/id/local-authority/00HY,Wiltshire Council,19/12/2012,1900955621,631.17,Avonpark Village (Care Homes) Limit ,110227,BA2 ,Community Services,MH OP West Locality,Adult Nursing Place- Spot Purchase Contr,Income,REVENUE
http://statistics.data.gov.uk/id/local-authority/00HY,Wiltshire Council,19/12/2012,1900958731,3229.94,Avonpark Village (Care Homes) Limit ,110227,BA2 ,Community Services,FNC,Adult Care Funded Nursing Care - Out of County Cli,Third Party Payments,REVENUE
http://statistics.data.gov.uk/id/local-authority/00HY,Wiltshire Council,19/12/2012,5106228023,2191.20,Avonpark Village (Care Homes) Limit ,110227,BA2 ,Community Services,OP East Locality,Adult Care Nursing Placements- Spot Purchase,Third Party Payments,REVENUE
http://statistics.data.gov.uk/id/local-authority/00HY,Wiltshire Council,19/12/2012,5106228024,434.80,Avonpark Village (Care Homes) Limit ,110227,BA2 ,Community Services,OP East FNC,Adult Care Funded Nursing Care - Loal Auth Clients,Third Party Payments,REVENUE
http://statistics.data.gov.uk/id/local-authority/00HY,Wiltshire Council,19/12/2012,5106228026,2191.20,Avonpark Village (Care Homes) Limit ,110227,BA2 ,Community Services,OP West Locality,Adult Care Nursing Placements- Spot Purchase,Third Party Payments,REVENUE
http://statistics.data.gov.uk/id/local-authority/00HY,Wiltshire Council,19/12/2012,5106228027,434.80,Avonpark Village (Care Homes) Limit ,110227,BA2 ,Community Services,OP West FNC,Adult Care Funded Nursing Care - Loal Auth Clients,Third Party Payments,REVENUE
http://statistics.data.gov.uk/id/local-authority/00HY,Wiltshire Council,19/12/2012,5106228591,1971.52,Avonpark Village (Care Homes) Limit ,110227,BA2 ,Community Services,MH OP West Locality,Adult Residential Placements - Spot Purchase,Third Party Payments,REVENUE
http://statistics.data.gov.uk/id/local-authority/00HY,Wiltshire Council,19/12/2012,5106228593,1971.52,Avonpark Village (Care Homes) Limit ,110227,BA2 ,Community Services,MH OP West Locality,Adult Residential Placements - Spot Purchase,Third Party Payments,REVENUE
http://statistics.data.gov.uk/id/local-authority/00HY,Wiltshire Council,19/12/2012,5106228595,1971.52,Avonpark Village (Care Homes) Limit ,110227,BA2 ,Community Services,OP West Locality,Adult Residential Placements - Spot Purchase,Third Party Payments,REVENUE
http://statistics.data.gov.uk/id/local-authority/00HY,Wiltshire Council,19/12/2012,5106228597,1971.52,Avonpark Village (Care Homes) Limit ,110227,BA2 ,Community Services,MH OP West Locality,Adult Residential Placements - Spot Purchase,Third Party Payments,REVENUE
http://statistics.data.gov.uk/id/local-authority/00HY,Wiltshire Council,19/12/2012,5106228599,2020.00,Avonpark Village (Care Homes) Limit ,110227,BA2 ,Community Services,MH OP West Locality,Adult Residential Placements - Spot Purchase,Third Party Payments,REVENUE
http://statistics.data.gov.uk/id/local-authority/00HY,Wiltshire Council,19/12/2012,5106228601,1878.60,Avonpark Village (Care Homes) Limit ,110227,BA2 ,Community Services,OP West Locality,Adult Residential Placements - Spot Purchase,Third Party Payments,REVENUE
http://statistics.data.gov.uk/id/local-authority/00HY,Wiltshire Council,19/12/2012,5106228603,1971.52,Avonpark Village (Care Homes) Limit ,110227,BA2 ,Community Services,MH OP West Locality,Adult Residential Placements - Spot Purchase,Third Party Payments,REVENUE
http://statistics.data.gov.uk/id/local-authority/00HY,Wiltshire Council,19/12/2012,5106228605,1971.52,Avonpark Village (Care Homes) Limit ,110227,BA2 ,Community Services,OP West Locality,Adult Residential Placements - Spot Purchase,Third Party Payments,REVENUE
http://statistics.data.gov.uk/id/local-authority/00HY,Wiltshire Council,19/12/2012,5106228607,1971.52,Avonpark Village (Care Homes) Limit ,110227,BA2 ,Community Services,OP West Locality,Adult Residential Placements - Spot Purchase,Third Party Payments,REVENUE
http://statistics.data.gov.uk/id/local-authority/00HY,Wiltshire Council,19/12/2012,5106228609,1878.60,Avonpark Village (Care Homes) Limit ,110227,BA2 ,Community Services,OP West Locality,Adult Residential Placements - Spot Purchase,Third Party Payments,REVENUE
http://statistics.data.gov.uk/id/local-authority/00HY,Wiltshire Council,19/12/2012,5106228611,1898.80,Avonpark Village (Care Homes) Limit ,110227,BA2 ,Community Services,OP West Locality,Adult Residential Placements - Spot Purchase,Third Party Payments,REVENUE
http://statistics.data.gov.uk/id/local-authority/00HY,Wiltshire Council,19/12/2012,5106228613,1939.20,Avonpark Village (Care Homes) Limit ,110227,BA2 ,Community Services,MH OP West Locality,Adult Residential Placements - Spot Purchase,Third Party Payments,REVENUE
http://statistics.data.gov.uk/id/local-authority/00HY,Wiltshire Council,19/12/2012,5106228615,1971.52,Avonpark Village (Care Homes) Limit ,110227,BA2 ,Community Services,OP West Locality,Adult Residential Placements - Spot Purchase,Third Party Payments,REVENUE
http://statistics.data.gov.uk/id/local-authority/00HY,Wiltshire Council,19/12/2012,5106228617,1971.52,Avonpark Village (Care Homes) Limit ,110227,BA2 ,Community Services,MH OP West Locality,Adult Residential Placements - Spot Purchase,Third Party Payments,REVENUE
http://statistics.data.gov.uk/id/local-authority/00HY,Wiltshire Council,19/12/2012,5106228855,2191.20,Avonpark Village (Care Homes) Limit ,110227,BA2 ,Community Services,OP West Locality,Adult Care Nursing Placements- Spot Purchase,Third Party Payments,REVENUE
http://statistics.data.gov.uk/id/local-authority/00HY,Wiltshire Council,19/12/2012,5106228856,434.80,Avonpark Village (Care Homes) Limit ,110227,BA2 ,Community Services,OP West FNC,Adult Care Funded Nursing Care - Loal Auth Clients,Third Party Payments,REVENUE
http://statistics.data.gov.uk/id/local-authority/00HY,Wiltshire Council,19/12/2012,5106228871,2308.88,Avonpark Village (Care Homes) Limit ,110227,BA2 ,Community Services,MH OP West Locality,Adult Care Nursing Placements- Spot Purchase,Third Party Payments,REVENUE
http://statistics.data.gov.uk/id/local-authority/00HY,Wiltshire Council,19/12/2012,5106228872,434.80,Avonpark Village (Care Homes) Limit ,110227,BA2 ,Community Services,MH OA West FNC,Adult Care Funded Nursing Care - Loal Auth Clients,Third Party Payments,REVENUE
http://statistics.data.gov.uk/id/local-authority/00HY,Wiltshire Council,19/12/2012,5106229389,1971.52,Avonpark Village (Care Homes) Limit ,110227,BA2 ,Community Services,MH OP West Locality,Adult Residential Placements - Spot Purchase,Third Party Payments,REVENUE
http://statistics.data.gov.uk/id/local-authority/00HY,Wiltshire Council,19/12/2012,5106229922,1971.52,Avonpark Village (Care Homes) Limit ,110227,BA2 ,Community Services,OP West Locality,Adult Residential Placements - Spot Purchase,Third Party Payments,REVENUE
http://statistics.data.gov.uk/id/local-authority/00HY,Wiltshire Council,19/12/2012,5106230162,2494.20,Avonpark Village (Care Homes) Limit ,110227,BA2 ,Community Services,OP West Locality,Adult Care Nursing Placements- Spot Purchase,Third Party Payments,REVENUE
http://statistics.data.gov.uk/id/local-authority/00HY,Wiltshire Council,19/12/2012,5106230163,434.80,Avonpark Village (Care Homes) Limit ,110227,BA2 ,Community Services,OP West FNC,Adult Care Funded Nursing Care - Loal Auth Clients,Third Party Payments,REVENUE
http://statistics.data.gov.uk/id/local-authority/00HY,Wiltshire Council,19/12/2012,5106230314,2200.00,Avonpark Village (Care Homes) Limit ,110227,BA2 ,Community Services,OP West Locality,Adult Residential Placements - Spot Purchase,Third Party Payments,REVENUE
http://statistics.data.gov.uk/id/local-authority/00HY,Wiltshire Council,19/12/2012,5106230402,1512.00,Avonpark Village (Care Homes) Limit ,110227,BA2 ,Community Services,MH OP West Locality,Adult Residential Placements - Spot Purchase,Third Party Payments,REVENUE
http://statistics.data.gov.uk/id/local-authority/00HY,Wiltshire Council,19/12/2012,5106230403,1008.00,Avonpark Village (Care Homes) Limit ,110227,BA2 ,Community Services,Section 117-PCT Clnt,Adult Residential Placements - Spot Purchase,Third Party Payments,REVENUE
http://statistics.data.gov.uk/id/local-authority/00HY,Wiltshire Council,19/12/2012,5106230891,631.17,Avonpark Village (Care Homes) Limit ,110227,BA2 ,Community Services,MH OP West Locality,Adult Care Nursing Placements- Spot Purchase,Third Party Payments,REVENUE
http://statistics.data.gov.uk/id/local-authority/00HY,Wiltshire Council,19/12/2012,5106231763,3090.00,Avonpark Village (Care Homes) Limit ,110227,BA2 ,Community Services,Home Loans,Adult Care - Home Loan Costs,Capital charges and Expenditure,REVENUE
http://statistics.data.gov.uk/id/local-authority/00HY,Wiltshire Council,21/12/2012,5106223367,350.00,Axiell Ltd ,113771,NG8 ,Community Services,Lib General,ICT - Support arrangements,Supplies and Services,REVENUE
http://statistics.data.gov.uk/id/local-authority/00HY,Wiltshire Council,10/12/2012,5106213285,600.00,Axis Drawing Office Supplies ,113774,SN2 ,Resources,DesignPrintTrowbridg,Materials & Consumables (Non-Educational),Supplies and Services,REVENUE
http://statistics.data.gov.uk/id/local-authority/00HY,Wiltshire Council,13/12/2012,5106218313,560.00,Axis Drawing Office Supplies ,113774,SN2 ,Resources,DesignPrintTrowbridg,Materials & Consumables (Non-Educational),Supplies and Services,REVENUE
http://statistics.data.gov.uk/id/local-authority/00HY,Wiltshire Council,21/12/2012,5106222902,600.00,Axis Drawing Office Supplies ,113774,SN2 ,Resources,DesignPrintTrowbridg,Materials & Consumables (Non-Educational),Supplies and Services,REVENUE
http://statistics.data.gov.uk/id/local-authority/00HY,Wiltshire Council,06/12/2012,1900955142,2050.00,B  and  K Cars ,101310,SN6 ,Neighbourhood & Planning,N&E Children w/Dis,Transport Contracts,Third Party Payments,REVENUE
http://statistics.data.gov.uk/id/local-authority/00HY,Wiltshire Council,17/12/2012,1900958600,384.90,B & M Windows  and  Doors Ltd ,101694,SP2 ,Neighbourhood & Planning,Housing Rprs Simdell,Premises Related Other Maintenance Costs,Premises Related,REVENUE
http://statistics.data.gov.uk/id/local-authority/00HY,Wiltshire Council,17/12/2012,1900958609,693.72,B & M Windows  and  Doors Ltd ,101694,SP2 ,Neighbourhood & Planning,Housing Rprs Simdell,Premises Related Other Maintenance Costs,Premises Related,REVENUE
http://statistics.data.gov.uk/id/local-authority/00HY,Wiltshire Council,17/12/2012,1900958610,315.50,B & M Windows  and  Doors Ltd ,101694,SP2 ,Neighbourhood & Planning,Housing Rprs Simdell,Premises Related Other Maintenance Costs,Premises Related,REVENUE
http://statistics.data.gov.uk/id/local-authority/00HY,Wiltshire Council,17/12/2012,1900958617,650.00,B & M Windows  and  Doors Ltd ,101694,SP2 ,Neighbourhood & Planning,Housing Rprs Simdell,Non responsive repairs - General,Premises Related,REVENUE
http://statistics.data.gov.uk/id/local-authority/00HY,Wiltshire Council,17/12/2012,1900958643,264.60,B & M Windows  and  Doors Ltd ,101694,SP2 ,Neighbourhood & Planning,Housing Rprs Simdell,Premises Related Other Maintenance Costs,Premises Related,REVENUE
http://statistics.data.gov.uk/id/local-authority/00HY,Wiltshire Council,17/12/2012,1900958644,272.90,B & M Windows  and  Doors Ltd ,101694,SP2 ,Neighbourhood & Planning,Housing Rprs Simdell,Premises Related Other Maintenance Costs,Premises Related,REVENUE
http://statistics.data.gov.uk/id/local-authority/00HY,Wiltshire Council,17/12/2012,1900958649,352.80,B & M Windows  and  Doors Ltd ,101694,SP2 ,Neighbourhood & Planning,Housing Rprs Simdell,Premises Related Other Maintenance Costs,Premises Related,REVENUE
http://statistics.data.gov.uk/id/local-authority/00HY,Wiltshire Council,17/12/2012,1900958660,700.00,B & M Windows  and  Doors Ltd ,101694,SP2 ,Neighbourhood & Planning,Housing Rprs Simdell,Premises Related Other Maintenance Costs,Premises Related,REVENUE
http://statistics.data.gov.uk/id/local-authority/00HY,Wiltshire Council,05/12/2012,5106223466,990.00,B & M Windows  and  Doors Ltd ,101694,SP2 ,Neighbourhood & Planning,Housg Mtc Trading Ac,Equipment Purchase,Supplies and Services,REVENUE
http://statistics.data.gov.uk/id/local-authority/00HY,Wiltshire Council,05/12/2012,5106223467,591.80,B & M Windows  and  Doors Ltd ,101694,SP2 ,Neighbourhood & Planning,Housg Mtc Trading Ac,Equipment Purchase,Supplies and Services,REVENUE
http://statistics.data.gov.uk/id/local-authority/00HY,Wiltshire Council,20/12/2012,1900955268,483.84,B J Mailing Services ,110239,BH21,Neighbourhood & Planning,Housg Tenant Partici,Printing Internal - Internal Trading Charges,Supplies and Services,REVENUE
http://statistics.data.gov.uk/id/local-authority/00HY,Wiltshire Council,20/12/2012,5106226926,1953.62,B P Estates Ltd ,113821,BA14,Resources,Investment Estate,Premises Management Costs,Premises Related,REVENUE
http://statistics.data.gov.uk/id/local-authority/00HY,Wiltshire Council,20/12/2012,5106232082,450.00,B P Estates Ltd ,132755,SY23,Resources,Investment Estate,Premises Management Costs,Premises Related,REVENUE
http://statistics.data.gov.uk/id/local-authority/00HY,Wiltshire Council,20/12/2012,5106232083,450.00,B P Estates Ltd ,132755,SY23,Resources,Investment Estate,Premises Management Costs,Premises Related,REVENUE
http://statistics.data.gov.uk/id/local-authority/00HY,Wiltshire Council,21/12/2012,5106226645,1200.00,B T C V ,113828,DN4 ,Children & Education,EOTAS Service,Educational Fees,Supplies and Services,REVENUE
http://statistics.data.gov.uk/id/local-authority/00HY,Wiltshire Council,06/12/2012,1900955145,302.70,B Y B Travel Ltd ,101145,BA15,Neighbourhood & Planning,Mainstream 16+ Sec,Transport Contracts,Third Party Payments,REVENUE
http://statistics.data.gov.uk/id/local-authority/00HY,Wiltshire Council,06/12/2012,1900955145,2219.69,B Y B Travel Ltd ,101145,BA15,Neighbourhood & Planning,Mainstream Secondary,Transport Contracts,Third Party Payments,REVENUE
http://statistics.data.gov.uk/id/local-authority/00HY,Wiltshire Council,14/12/2012,5106226700,417.00,Back Care Solutions ,135024,PR5 ,Resources,Revs&Bens-Housng Ben,Furniture / Office Equipment Purchase,Supplies and Services,REVENUE
http://statistics.data.gov.uk/id/local-authority/00HY,Wiltshire Council,14/12/2012,5106222611,272.58,Bailey Employment Services Ltd ,100204,SN12,Community Services,CTPLD County CIC U65,Adult Day Care - Spot,Third Party Payments,REVENUE
http://statistics.data.gov.uk/id/local-authority/00HY,Wiltshire Council,07/12/2012,5106222651,272.58,Bailey Employment Services Ltd ,100204,SN12,Community Services,CTPLD County CIC U65,Adult Day Care - Spot,Third Party Payments,REVENUE
http://statistics.data.gov.uk/id/local-authority/00HY,Wiltshire Council,21/12/2012,5106226178,272.58,Bailey Employment Services Ltd ,100204,SN12,Community Services,CTPLD County CIC U65,Adult Day Care - Spot,Third Party Payments,REVENUE
http://statistics.data.gov.uk/id/local-authority/00HY,Wiltshire Council,21/12/2012,5106226619,350.46,Bailey Employment Services Ltd ,100204,SN12,Community Services,CTPLD County CIC U65,Adult Day Care - Spot,Third Party Payments,REVENUE
http://statistics.data.gov.uk/id/local-authority/00HY,Wiltshire Council,20/12/2012,1900959916,610.99,Bailey Partnership ,101327,PL1 ,Wiltshire Council,Wiltshire Council,Premises Related Other Maintenance Costs,Premises Related,CAPITAL
http://statistics.data.gov.uk/id/local-authority/00HY,Wiltshire Council,20/12/2012,1900959917,580.53,Bailey Partnership ,101327,PL1 ,Wiltshire Council,Wiltshire Council,Premises Related Other Maintenance Costs,Premises Related,CAPITAL
http://statistics.data.gov.uk/id/local-authority/00HY,Wiltshire Council,20/12/2012,1900959918,2553.39,Bailey Partnership ,101327,PL1 ,Wiltshire Council,Wiltshire Council,Premises Related Other Maintenance Costs,Premises Related,CAPITAL
http://statistics.data.gov.uk/id/local-authority/00HY,Wiltshire Council,20/12/2012,1900959919,401.56,Bailey Partnership ,101327,PL1 ,Resources,Primary Sch Pooling,Preventative Property Maintenance,Premises Related,REVENUE
http://statistics.data.gov.uk/id/local-authority/00HY,Wiltshire Council,20/12/2012,1900959920,1863.86,Bailey Partnership ,101327,PL1 ,Wiltshire Council,Wiltshire Council,Premises Related Other Maintenance Costs,Premises Related,CAPITAL
http://statistics.data.gov.uk/id/local-authority/00HY,Wiltshire Council,20/12/2012,1900959921,726.75,Bailey Partnership ,101327,PL1 ,Wiltshire Council,Wiltshire Council,Premises Related Other Maintenance Costs,Premises Related,CAPITAL
http://statistics.data.gov.uk/id/local-authority/00HY,Wiltshire Council,20/12/2012,1900959922,2004.36,Bailey Partnership ,101327,PL1 ,Wiltshire Council,Wiltshire Council,Buildings Minor Alterations,Premises Related,CAPITAL
http://statistics.data.gov.uk/id/local-authority/00HY,Wiltshire Council,20/12/2012,1900959923,7835.27,Bailey Partnership ,101327,PL1 ,Wiltshire Council,Wiltshire Council,Buildings Minor Alterations,Premises Related,CAPITAL
http://statistics.data.gov.uk/id/local-authority/00HY,Wiltshire Council,20/12/2012,1900959924,2368.99,Bailey Partnership ,101327,PL1 ,Wiltshire Council,Wiltshire Council,Buildings Minor Alterations,Premises Related,CAPITAL
http://statistics.data.gov.uk/id/local-authority/00HY,Wiltshire Council,20/12/2012,1900959925,615.40,Bailey Partnership ,101327,PL1 ,Wiltshire Council,Wiltshire Council,Premises Related Other Maintenance Costs,Premises Related,CAPITAL
http://statistics.data.gov.uk/id/local-authority/00HY,Wiltshire Council,20/12/2012,1900959926,259.14,Bailey Partnership ,101327,PL1 ,Wiltshire Council,Wiltshire Council,Premises Related Other Maintenance Costs,Premises Related,CAPITAL
http://statistics.data.gov.uk/id/local-authority/00HY,Wiltshire Council,20/12/2012,1900959927,1423.54,Bailey Partnership ,101327,PL1 ,Wiltshire Council,Wiltshire Council,Buildings Minor Alterations,Premises Related,CAPITAL
http://statistics.data.gov.uk/id/local-authority/00HY,Wiltshire Council,20/12/2012,1900959928,2200.83,Bailey Partnership ,101327,PL1 ,Wiltshire Council,Wiltshire Council,Buildings Minor Alterations,Premises Related,CAPITAL
http://statistics.data.gov.uk/id/local-authority/00HY,Wiltshire Council,20/12/2012,1900959941,385.73,Bailey Partnership ,101327,PL1 ,Wiltshire Council,Wiltshire Council,Premises Related Other Maintenance Costs,Premises Related,CAPITAL
http://statistics.data.gov.uk/id/local-authority/00HY,Wiltshire Council,20/12/2012,1900959943,286.01,Bailey Partnership ,101327,PL1 ,Wiltshire Council,Wiltshire Council,Premises Related Other Maintenance Costs,Premises Related,CAPITAL
http://statistics.data.gov.uk/id/local-authority/00HY,Wiltshire Council,21/12/2012,5106226588,375.00,Balance Learning ,122812,RG2 ,Resources,Ldrshp & Man Matters,Software Purchases,Supplies and Services,REVENUE
http://statistics.data.gov.uk/id/local-authority/00HY,Wiltshire Council,19/12/2012,5106223220,83200.72,Balfour Beatty Infrastructure Ltd ,113860,RG23,Neighbourhood & Planning,Street Lighting-Mtce,Highways - Other Materials,Supplies and Services,REVENUE
http://statistics.data.gov.uk/id/local-authority/00HY,Wiltshire Council,19/12/2012,5106228532,1403.48,Barchester Healthcare - The White L ,121961,SN5 ,Community Services,OP North Locality,Adult Care Nursing Placements- Spot Purchase,Third Party Payments,REVENUE
http://statistics.data.gov.uk/id/local-authority/00HY,Wiltshire Council,19/12/2012,5106228533,434.80,Barchester Healthcare - The White L ,121961,SN5 ,Community Services,OP North FNC,Adult Care Funded Nursing Care - Loal Auth Clients,Third Party Payments,REVENUE
http://statistics.data.gov.uk/id/local-authority/00HY,Wiltshire Council,19/12/2012,5106228958,1692.00,Barchester Healthcare - The White L ,121961,SN5 ,Community Services,OP North Locality,Adult Residential Placements - Spot Purchase,Third Party Payments,REVENUE
http://statistics.data.gov.uk/id/local-authority/00HY,Wiltshire Council,19/12/2012,5106229176,2514.40,Barchester Healthcare - The White L ,121961,SN5 ,Community Services,OP North Locality,Adult Care Nursing Placements- Spot Purchase,Third Party Payments,REVENUE
http://statistics.data.gov.uk/id/local-authority/00HY,Wiltshire Council,19/12/2012,5106229178,3025.20,Barchester Healthcare - The White L ,121961,SN5 ,Community Services,OP North Locality,Adult Care Nursing Placements- Spot Purchase,Third Party Payments,REVENUE
http://statistics.data.gov.uk/id/local-authority/00HY,Wiltshire Council,19/12/2012,5106230059,2068.48,Barchester Healthcare - The White L ,121961,SN5 ,Community Services,OP North Locality,Adult Residential Placements - Spot Purchase,Third Party Payments,REVENUE
http://statistics.data.gov.uk/id/local-authority/00HY,Wiltshire Council,19/12/2012,5106230431,2913.20,Barchester Healthcare - The White L ,121961,SN5 ,Community Services,MH OP North Locality,Adult Care Nursing Placements- Spot Purchase,Third Party Payments,REVENUE
http://statistics.data.gov.uk/id/local-authority/00HY,Wiltshire Council,19/12/2012,5106230621,2514.40,Barchester Healthcare - The White L ,121961,SN5 ,Community Services,MH AOWA South,Adult Care Nursing Placements- Spot Purchase,Third Party Payments,REVENUE
http://statistics.data.gov.uk/id/local-authority/00HY,Wiltshire Council,19/12/2012,5106230981,3025.20,Barchester Healthcare - The White L ,121961,SN5 ,Community Services,MH OP North Locality,Adult Residential Placements - Spot Purchase,Third Party Payments,REVENUE
http://statistics.data.gov.uk/id/local-authority/00HY,Wiltshire Council,19/12/2012,5106230993,1730.00,Barchester Healthcare - The White L ,121961,SN5 ,Community Services,MH OP East Locality,Adult Care Nursing Placements- Spot Purchase,Third Party Payments,REVENUE
http://statistics.data.gov.uk/id/local-authority/00HY,Wiltshire Council,19/12/2012,5106230994,1730.00,Barchester Healthcare - The White L ,121961,SN5 ,Community Services,Section 117-PCT Clnt,Adult Care Nursing Placements- Spot Purchase,Third Party Payments,REVENUE
http://statistics.data.gov.uk/id/local-authority/00HY,Wiltshire Council,19/12/2012,5106231046,3919.20,Barchester Healthcare - The White L ,121961,SN5 ,Community Services,Home Loans,Adult Care - Home Loan Costs,Capital charges and Expenditure,REVENUE
http://statistics.data.gov.uk/id/local-authority/00HY,Wiltshire Council,19/12/2012,5106231076,2873.00,Barchester Healthcare - The White L ,121961,SN5 ,Community Services,MH OP North Locality,Adult Care Nursing Placements- Spot Purchase,Third Party Payments,REVENUE
http://statistics.data.gov.uk/id/local-authority/00HY,Wiltshire Council,19/12/2012,5106231077,507.00,Barchester Healthcare - The White L ,121961,SN5 ,Community Services,Section 117-PCT Clnt,Adult Care Nursing Placements- Spot Purchase,Third Party Payments,REVENUE
http://statistics.data.gov.uk/id/local-authority/00HY,Wiltshire Council,19/12/2012,5106231107,3460.00,Barchester Healthcare - The White L ,121961,SN5 ,Community Services,MH OP West Locality,Adult Care Nursing Placements- Spot Purchase,Third Party Payments,REVENUE
http://statistics.data.gov.uk/id/local-authority/00HY,Wiltshire Council,19/12/2012,5106231565,3460.00,Barchester Healthcare - The White L ,121961,SN5 ,Community Services,Home Loans,Adult Care - Home Loan Costs,Capital charges and Expenditure,REVENUE
http://statistics.data.gov.uk/id/local-authority/00HY,Wiltshire Council,19/12/2012,5106231621,2949.20,Barchester Healthcare - The White L ,121961,SN5 ,Community Services,MH OP East Locality,Adult Care Nursing Placements- Spot Purchase,Third Party Payments,REVENUE
http://statistics.data.gov.uk/id/local-authority/00HY,Wiltshire Council,19/12/2012,5106228705,4045.20,Barchester Healthcare Ltd - Rothsay Grange,127635,SP11,Community Services,MH OP South Locality,Adult Care Nursing Placements- Spot Purchase,Third Party Payments,REVENUE
http://statistics.data.gov.uk/id/local-authority/00HY,Wiltshire Council,19/12/2012,5106228706,434.80,Barchester Healthcare Ltd - Rothsay Grange,127635,SP11,Community Services,OP South FNC,Adult Care Funded Nursing Care - Loal Auth Clients,Third Party Payments,REVENUE
http://statistics.data.gov.uk/id/local-authority/00HY,Wiltshire Council,19/12/2012,5106229335,2765.20,Barchester Healthcare Ltd - Rothsay Grange,127635,SP11,Community Services,MH OP South Locality,Adult Care Nursing Placements- Spot Purchase,Third Party Payments,REVENUE
http://statistics.data.gov.uk/id/local-authority/00HY,Wiltshire Council,19/12/2012,5106229336,434.80,Barchester Healthcare Ltd - Rothsay Grange,127635,SP11,Community Services,MH OA South FNC,Adult Care Funded Nursing Care - Loal Auth Clients,Third Party Payments,REVENUE
http://statistics.data.gov.uk/id/local-authority/00HY,Wiltshire Council,19/12/2012,5106231557,3136.00,Barchester Healthcare Ltd - Rothsay Grange,127635,SP11,Community Services,MH OP East Locality,Adult Care Nursing Placements- Spot Purchase,Third Party Payments,REVENUE
http://statistics.data.gov.uk/id/local-authority/00HY,Wiltshire Council,19/12/2012,5106231559,1344.00,Barchester Healthcare Ltd - Rothsay Grange,127635,SP11,Community Services,Section 117-PCT Clnt,Adult Care Nursing Placements- Spot Purchase,Third Party Payments,REVENUE
http://statistics.data.gov.uk/id/local-authority/00HY,Wiltshire Council,19/12/2012,5106231777,4045.20,Barchester Healthcare Ltd - Rothsay Grange,127635,SP11,Community Services,Home Loans,Adult Care - Home Loan Costs,Capital charges and Expenditure,REVENUE
http://statistics.data.gov.uk/id/local-authority/00HY,Wiltshire Council,12/12/2012,1900956408,3321.43,Barchester Healthcare Ltd (Henford ,111113,BA12,Community Services,STARR Scheme,Adult Nursing Placements - transitional beds,Third Party Payments,REVENUE
http://statistics.data.gov.uk/id/local-authority/00HY,Wiltshire Council,12/12/2012,1900956853,3321.43,Barchester Healthcare Ltd (Henford ,111113,BA12,Community Services,STARR Scheme,Adult Nursing Placements - transitional beds,Third Party Payments,REVENUE
http://statistics.data.gov.uk/id/local-authority/00HY,Wiltshire Council,12/12/2012,1900956854,3321.43,Barchester Healthcare Ltd (Henford ,111113,BA12,Community Services,STARR Scheme,Adult Nursing Placements - transitional beds,Third Party Payments,REVENUE
http://statistics.data.gov.uk/id/local-authority/00HY,Wiltshire Council,18/12/2012,1900958757,10543.90,Barchester Healthcare Ltd (Henford ,111113,BA12,Community Services,FNC,Adult Care Funded Nursing Care - Out of County Cli,Third Party Payments,REVENUE
http://statistics.data.gov.uk/id/local-authority/00HY,Wiltshire Council,20/12/2012,1900959901,3321.43,Barchester Healthcare Ltd (Henford ,111113,BA12,Community Services,STARR Scheme,Adult Nursing Placements - transitional beds,Third Party Payments,REVENUE
http://statistics.data.gov.uk/id/local-authority/00HY,Wiltshire Council,20/12/2012,1900959902,3321.43,Barchester Healthcare Ltd (Henford ,111113,BA12,Community Services,STARR Scheme,Adult Nursing Placements - transitional beds,Third Party Payments,REVENUE
http://statistics.data.gov.uk/id/local-authority/00HY,Wiltshire Council,19/12/2012,5106228130,2999.20,Barchester Healthcare Ltd (Henford ,111113,BA12,Community Services,OP West Locality,Adult Care Nursing Placements- Spot Purchase,Third Party Payments,REVENUE
http://statistics.data.gov.uk/id/local-authority/00HY,Wiltshire Council,19/12/2012,5106228131,434.80,Barchester Healthcare Ltd (Henford ,111113,BA12,Community Services,OP West FNC,Adult Care Funded Nursing Care - Loal Auth Clients,Third Party Payments,REVENUE
http://statistics.data.gov.uk/id/local-authority/00HY,Wiltshire Council,19/12/2012,5106228135,2191.20,Barchester Healthcare Ltd (Henford ,111113,BA12,Community Services,MH OP West Locality,Adult Care Nursing Placements- Spot Purchase,Third Party Payments,REVENUE
http://statistics.data.gov.uk/id/local-authority/00HY,Wiltshire Council,19/12/2012,5106228136,434.80,Barchester Healthcare Ltd (Henford ,111113,BA12,Community Services,MH OA West FNC,Adult Care Funded Nursing Care - Loal Auth Clients,Third Party Payments,REVENUE
http://statistics.data.gov.uk/id/local-authority/00HY,Wiltshire Council,19/12/2012,5106228142,2021.52,Barchester Healthcare Ltd (Henford ,111113,BA12,Community Services,OP West Locality,Adult Care Nursing Placements- Spot Purchase,Third Party Payments,REVENUE
http://statistics.data.gov.uk/id/local-authority/00HY,Wiltshire Council,19/12/2012,5106228143,434.80,Barchester Healthcare Ltd (Henford ,111113,BA12,Community Services,OP West FNC,Adult Care Funded Nursing Care - Loal Auth Clients,Third Party Payments,REVENUE
http://statistics.data.gov.uk/id/local-authority/00HY,Wiltshire Council,19/12/2012,5106228147,2021.52,Barchester Healthcare Ltd (Henford ,111113,BA12,Community Services,OP West Locality,Adult Care Nursing Placements- Spot Purchase,Third Party Payments,REVENUE
http://statistics.data.gov.uk/id/local-authority/00HY,Wiltshire Council,19/12/2012,5106228148,434.80,Barchester Healthcare Ltd (Henford ,111113,BA12,Community Services,OP West FNC,Adult Care Funded Nursing Care - Loal Auth Clients,Third Party Payments,REVENUE
http://statistics.data.gov.uk/id/local-authority/00HY,Wiltshire Council,19/12/2012,5106228152,2021.52,Barchester Healthcare Ltd (Henford ,111113,BA12,Community Services,OP West Locality,Adult Care Nursing Placements- Spot Purchase,Third Party Payments,REVENUE
http://statistics.data.gov.uk/id/local-authority/00HY,Wiltshire Council,19/12/2012,5106228153,434.80,Barchester Healthcare Ltd (Henford ,111113,BA12,Community Services,OP West FNC,Adult Care Funded Nursing Care - Loal Auth Clients,Third Party Payments,REVENUE
http://statistics.data.gov.uk/id/local-authority/00HY,Wiltshire Council,19/12/2012,5106228159,7443.20,Barchester Healthcare Ltd (Henford ,111113,BA12,Community Services,CTPLD County CIC U65,Adult Care Nursing Placements- Spot Purchase,Third Party Payments,REVENUE
http://statistics.data.gov.uk/id/local-authority/00HY,Wiltshire Council,19/12/2012,5106228160,434.80,Barchester Healthcare Ltd (Henford ,111113,BA12,Community Services,CTPLD County FNC,Adult Care Funded Nursing Care - Loal Auth Clients,Third Party Payments,REVENUE
http://statistics.data.gov.uk/id/local-authority/00HY,Wiltshire Council,19/12/2012,5106229272,2021.52,Barchester Healthcare Ltd (Henford ,111113,BA12,Community Services,OP West Locality,Adult Care Nursing Placements- Spot Purchase,Third Party Payments,REVENUE
http://statistics.data.gov.uk/id/local-authority/00HY,Wiltshire Council,19/12/2012,5106229273,434.80,Barchester Healthcare Ltd (Henford ,111113,BA12,Community Services,OP West FNC,Adult Care Funded Nursing Care - Loal Auth Clients,Third Party Payments,REVENUE
http://statistics.data.gov.uk/id/local-authority/00HY,Wiltshire Council,19/12/2012,5106229275,2021.52,Barchester Healthcare Ltd (Henford ,111113,BA12,Community Services,MH OP West Locality,Adult Care Nursing Placements- Spot Purchase,Third Party Payments,REVENUE
http://statistics.data.gov.uk/id/local-authority/00HY,Wiltshire Council,19/12/2012,5106229276,434.80,Barchester Healthcare Ltd (Henford ,111113,BA12,Community Services,MH OA West FNC,Adult Care Funded Nursing Care - Loal Auth Clients,Third Party Payments,REVENUE
http://statistics.data.gov.uk/id/local-authority/00HY,Wiltshire Council,19/12/2012,5106229278,2494.20,Barchester Healthcare Ltd (Henford ,111113,BA12,Community Services,MH OP West Locality,Adult Care Nursing Placements- Spot Purchase,Third Party Payments,REVENUE
http://statistics.data.gov.uk/id/local-authority/00HY,Wiltshire Council,19/12/2012,5106229279,434.80,Barchester Healthcare Ltd (Henford ,111113,BA12,Community Services,MH OA West FNC,Adult Care Funded Nursing Care - Loal Auth Clients,Third Party Payments,REVENUE
http://statistics.data.gov.uk/id/local-authority/00HY,Wiltshire Council,19/12/2012,5106229879,2261.52,Barchester Healthcare Ltd (Henford ,111113,BA12,Community Services,OP South Locality,Adult Care Nursing Placements- Spot Purchase,Third Party Payments,REVENUE
http://statistics.data.gov.uk/id/local-authority/00HY,Wiltshire Council,19/12/2012,5106229881,434.80,Barchester Healthcare Ltd (Henford ,111113,BA12,Community Services,OP East FNC,Adult Care Funded Nursing Care - Loal Auth Clients,Third Party Payments,REVENUE
http://statistics.data.gov.uk/id/local-authority/00HY,Wiltshire Council,19/12/2012,5106230245,2221.52,Barchester Healthcare Ltd (Henford ,111113,BA12,Community Services,MH OP West Locality,Adult Care Nursing Placements- Spot Purchase,Third Party Payments,REVENUE
http://statistics.data.gov.uk/id/local-authority/00HY,Wiltshire Council,19/12/2012,5106230248,434.80,Barchester Healthcare Ltd (Henford ,111113,BA12,Community Services,MH OA West FNC,Adult Care Funded Nursing Care - Loal Auth Clients,Third Party Payments,REVENUE
http://statistics.data.gov.uk/id/local-authority/00HY,Wiltshire Council,18/12/2012,5106230359,2021.52,Barchester Healthcare Ltd (Henford ,111113,BA12,Community Services,OP West Locality,Adult Care Nursing Placements- Spot Purchase,Third Party Payments,REVENUE
http://statistics.data.gov.uk/id/local-authority/00HY,Wiltshire Council,18/12/2012,5106230361,434.80,Barchester Healthcare Ltd (Henford ,111113,BA12,Community Services,OP West FNC,Adult Care Funded Nursing Care - Loal Auth Clients,Third Party Payments,REVENUE
http://statistics.data.gov.uk/id/local-authority/00HY,Wiltshire Council,19/12/2012,5106230484,2765.20,Barchester Healthcare Ltd (Henford ,111113,BA12,Community Services,OP West Locality,Adult Care Nursing Placements- Spot Purchase,Third Party Payments,REVENUE
http://statistics.data.gov.uk/id/local-authority/00HY,Wiltshire Council,19/12/2012,5106230485,434.80,Barchester Healthcare Ltd (Henford ,111113,BA12,Community Services,OP West FNC,Adult Care Funded Nursing Care - Loal Auth Clients,Third Party Payments,REVENUE
http://statistics.data.gov.uk/id/local-authority/00HY,Wiltshire Council,19/12/2012,5106230899,2009.40,Barchester Healthcare Ltd (Henford ,111113,BA12,Community Services,OP West Locality,Adult Care Nursing Placements- Spot Purchase,Third Party Payments,REVENUE
http://statistics.data.gov.uk/id/local-authority/00HY,Wiltshire Council,19/12/2012,5106230900,434.80,Barchester Healthcare Ltd (Henford ,111113,BA12,Community Services,OP West FNC,Adult Care Funded Nursing Care - Loal Auth Clients,Third Party Payments,REVENUE
http://statistics.data.gov.uk/id/local-authority/00HY,Wiltshire Council,19/12/2012,5106230901,2797.20,Barchester Healthcare Ltd (Henford ,111113,BA12,Community Services,MH AOWA West,Adult Care Nursing Placements- Spot Purchase,Third Party Payments,REVENUE
http://statistics.data.gov.uk/id/local-authority/00HY,Wiltshire Council,19/12/2012,5106230902,434.80,Barchester Healthcare Ltd (Henford ,111113,BA12,Community Services,MH AOWA West FNC,Adult Care Funded Nursing Care - Loal Auth Clients,Third Party Payments,REVENUE
http://statistics.data.gov.uk/id/local-authority/00HY,Wiltshire Council,19/12/2012,5106231664,3829.20,Barchester Healthcare Ltd (Henford ,111113,BA12,Community Services,Home Loans,Adult Care - Home Loan Costs,Capital charges and Expenditure,REVENUE
http://statistics.data.gov.uk/id/local-authority/00HY,Wiltshire Council,19/12/2012,5106231702,2021.52,Barchester Healthcare Ltd (Henford ,111113,BA12,Community Services,OP West Locality,Adult Care Nursing Placements- Spot Purchase,Third Party Payments,REVENUE
http://statistics.data.gov.uk/id/local-authority/00HY,Wiltshire Council,19/12/2012,5106231703,434.80,Barchester Healthcare Ltd (Henford ,111113,BA12,Community Services,OP West FNC,Adult Care Funded Nursing Care - Loal Auth Clients,Third Party Payments,REVENUE
http://statistics.data.gov.uk/id/local-authority/00HY,Wiltshire Council,18/12/2012,1900958761,24100.34,Barchester Healthcare Ltd (Milford ,111597,SP1 ,Community Services,FNC,Adult Care Funded Nursing Care - Out of County Cli,Third Party Payments,REVENUE
http://statistics.data.gov.uk/id/local-authority/00HY,Wiltshire Council,19/12/2012,5106228325,1431.72,Barchester Healthcare Ltd (Milford ,111597,SP1 ,Community Services,OP South Locality,Adult Care Nursing Placements- Spot Purchase,Third Party Payments,REVENUE
http://statistics.data.gov.uk/id/local-authority/00HY,Wiltshire Council,19/12/2012,5106228326,434.80,Barchester Healthcare Ltd (Milford ,111597,SP1 ,Community Services,OP South FNC,Adult Care Funded Nursing Care - Loal Auth Clients,Third Party Payments,REVENUE
http://statistics.data.gov.uk/id/local-authority/00HY,Wiltshire Council,19/12/2012,5106228332,2527.44,Barchester Healthcare Ltd (Milford ,111597,SP1 ,Community Services,OP South Locality,Adult Care Nursing Placements- Spot Purchase,Third Party Payments,REVENUE
http://statistics.data.gov.uk/id/local-authority/00HY,Wiltshire Council,19/12/2012,5106228333,434.80,Barchester Healthcare Ltd (Milford ,111597,SP1 ,Community Services,OP South FNC,Adult Care Funded Nursing Care - Loal Auth Clients,Third Party Payments,REVENUE
http://statistics.data.gov.uk/id/local-authority/00HY,Wiltshire Council,19/12/2012,5106228337,2485.60,Barchester Healthcare Ltd (Milford ,111597,SP1 ,Community Services,OP South Locality,Adult Care Nursing Placements- Spot Purchase,Third Party Payments,REVENUE
http://statistics.data.gov.uk/id/local-authority/00HY,Wiltshire Council,19/12/2012,5106228338,434.80,Barchester Healthcare Ltd (Milford ,111597,SP1 ,Community Services,OP South FNC,Adult Care Funded Nursing Care - Loal Auth Clients,Third Party Payments,REVENUE
http://statistics.data.gov.uk/id/local-authority/00HY,Wiltshire Council,19/12/2012,5106228342,2103.16,Barchester Healthcare Ltd (Milford ,111597,SP1 ,Community Services,OP South Locality,Adult Care Nursing Placements- Spot Purchase,Third Party Payments,REVENUE
http://statistics.data.gov.uk/id/local-authority/00HY,Wiltshire Council,19/12/2012,5106228343,434.80,Barchester Healthcare Ltd (Milford ,111597,SP1 ,Community Services,OP South FNC,Adult Care Funded Nursing Care - Loal Auth Clients,Third Party Payments,REVENUE
http://statistics.data.gov.uk/id/local-authority/00HY,Wiltshire Council,19/12/2012,5106228357,2581.52,Barchester Healthcare Ltd (Milford ,111597,SP1 ,Community Services,OP South Locality,Adult Care Nursing Placements- Spot Purchase,Third Party Payments,REVENUE
http://statistics.data.gov.uk/id/local-authority/00HY,Wiltshire Council,19/12/2012,5106228358,434.80,Barchester Healthcare Ltd (Milford ,111597,SP1 ,Community Services,OP South FNC,Adult Care Funded Nursing Care - Loal Auth Clients,Third Party Payments,REVENUE
http://statistics.data.gov.uk/id/local-authority/00HY,Wiltshire Council,19/12/2012,5106228362,2314.68,Barchester Healthcare Ltd (Milford ,111597,SP1 ,Community Services,OP South Locality,Adult Care Nursing Placements- Spot Purchase,Third Party Payments,REVENUE
http://statistics.data.gov.uk/id/local-authority/00HY,Wiltshire Council,19/12/2012,5106228363,434.80,Barchester Healthcare Ltd (Milford ,111597,SP1 ,Community Services,OP South FNC,Adult Care Funded Nursing Care - Loal Auth Clients,Third Party Payments,REVENUE
http://statistics.data.gov.uk/id/local-authority/00HY,Wiltshire Council,19/12/2012,5106228369,2203.32,Barchester Healthcare Ltd (Milford ,111597,SP1 ,Community Services,MH OP South Locality,Adult Care Nursing Placements- Spot Purchase,Third Party Payments,REVENUE
http://statistics.data.gov.uk/id/local-authority/00HY,Wiltshire Council,19/12/2012,5106228370,434.80,Barchester Healthcare Ltd (Milford ,111597,SP1 ,Community Services,MH OA South FNC,Adult Care Funded Nursing Care - Loal Auth Clients,Third Party Payments,REVENUE
http://statistics.data.gov.uk/id/local-authority/00HY,Wiltshire Council,19/12/2012,5106228372,2595.20,Barchester Healthcare Ltd (Milford ,111597,SP1 ,Community Services,OP South Locality,Adult Care Nursing Placements- Spot Purchase,Third Party Payments,REVENUE
http://statistics.data.gov.uk/id/local-authority/00HY,Wiltshire Council,19/12/2012,5106228373,434.80,Barchester Healthcare Ltd (Milford ,111597,SP1 ,Community Services,OP South FNC,Adult Care Funded Nursing Care - Loal Auth Clients,Third Party Payments,REVENUE
http://statistics.data.gov.uk/id/local-authority/00HY,Wiltshire Council,19/12/2012,5106228379,2191.20,Barchester Healthcare Ltd (Milford ,111597,SP1 ,Community Services,OP South Locality,Adult Care Nursing Placements- Spot Purchase,Third Party Payments,REVENUE
http://statistics.data.gov.uk/id/local-authority/00HY,Wiltshire Council,19/12/2012,5106228380,434.80,Barchester Healthcare Ltd (Milford ,111597,SP1 ,Community Services,OP South FNC,Adult Care Funded Nursing Care - Loal Auth Clients,Third Party Payments,REVENUE
http://statistics.data.gov.uk/id/local-authority/00HY,Wiltshire Council,19/12/2012,5106228384,2191.20,Barchester Healthcare Ltd (Milford ,111597,SP1 ,Community Services,OP South Locality,Adult Care Nursing Placements- Spot Purchase,Third Party Payments,REVENUE
http://statistics.data.gov.uk/id/local-authority/00HY,Wiltshire Council,19/12/2012,5106228385,434.80,Barchester Healthcare Ltd (Milford ,111597,SP1 ,Community Services,OP South FNC,Adult Care Funded Nursing Care - Loal Auth Clients,Third Party Payments,REVENUE
http://statistics.data.gov.uk/id/local-authority/00HY,Wiltshire Council,19/12/2012,5106229290,2191.20,Barchester Healthcare Ltd (Milford ,111597,SP1 ,Community Services,OP North Locality,Adult Care Nursing Placements- Spot Purchase,Third Party Payments,REVENUE
http://statistics.data.gov.uk/id/local-authority/00HY,Wiltshire Council,19/12/2012,5106229291,434.80,Barchester Healthcare Ltd (Milford ,111597,SP1 ,Community Services,OP North FNC,Adult Care Funded Nursing Care - Loal Auth Clients,Third Party Payments,REVENUE
http://statistics.data.gov.uk/id/local-authority/00HY,Wiltshire Council,19/12/2012,5106230049,3365.20,Barchester Healthcare Ltd (Milford ,111597,SP1 ,Community Services,OP South Locality,Adult Care Nursing Placements- Spot Purchase,Third Party Payments,REVENUE
http://statistics.data.gov.uk/id/local-authority/00HY,Wiltshire Council,19/12/2012,5106230052,434.80,Barchester Healthcare Ltd (Milford ,111597,SP1 ,Community Services,OP South FNC,Adult Care Funded Nursing Care - Loal Auth Clients,Third Party Payments,REVENUE
http://statistics.data.gov.uk/id/local-authority/00HY,Wiltshire Council,19/12/2012,5106230186,2285.20,Barchester Healthcare Ltd (Milford ,111597,SP1 ,Community Services,OP South Locality,Adult Care Nursing Placements- Spot Purchase,Third Party Payments,REVENUE
http://statistics.data.gov.uk/id/local-authority/00HY,Wiltshire Council,19/12/2012,5106230187,434.80,Barchester Healthcare Ltd (Milford ,111597,SP1 ,Community Services,OP South FNC,Adult Care Funded Nursing Care - Loal Auth Clients,Third Party Payments,REVENUE
http://statistics.data.gov.uk/id/local-authority/00HY,Wiltshire Council,19/12/2012,5106230210,2365.20,Barchester Healthcare Ltd (Milford ,111597,SP1 ,Community Services,OP South Locality,Adult Care Nursing Placements- Spot Purchase,Third Party Payments,REVENUE
http://statistics.data.gov.uk/id/local-authority/00HY,Wiltshire Council,19/12/2012,5106230211,434.80,Barchester Healthcare Ltd (Milford ,111597,SP1 ,Community Services,OP South FNC,Adult Care Funded Nursing Care - Loal Auth Clients,Third Party Payments,REVENUE
http://statistics.data.gov.uk/id/local-authority/00HY,Wiltshire Council,19/12/2012,5106231020,2965.20,Barchester Healthcare Ltd (Milford ,111597,SP1 ,Community Services,Home Loans,Adult Care - Home Loan Costs,Capital charges and Expenditure,REVENUE
http://statistics.data.gov.uk/id/local-authority/00HY,Wiltshire Council,19/12/2012,5106231022,2165.20,Barchester Healthcare Ltd (Milford ,111597,SP1 ,Community Services,Home Loans,Adult Care - Home Loan Costs,Capital charges and Expenditure,REVENUE
http://statistics.data.gov.uk/id/local-authority/00HY,Wiltshire Council,19/12/2012,5106231024,3165.20,Barchester Healthcare Ltd (Milford ,111597,SP1 ,Community Services,Home Loans,Adult Care - Home Loan Costs,Capital charges and Expenditure,REVENUE
http://statistics.data.gov.uk/id/local-authority/00HY,Wiltshire Council,19/12/2012,5106227184,2595.20,Barchester Healthcare Ltd- The Wing ,121969,BA14,Community Services,OP West Locality,Adult Care Nursing Placements- Spot Purchase,Third Party Payments,REVENUE
http://statistics.data.gov.uk/id/local-authority/00HY,Wiltshire Council,19/12/2012,5106227185,434.80,Barchester Healthcare Ltd- The Wing ,121969,BA14,Community Services,OP West FNC,Adult Care Funded Nursing Care - Loal Auth Clients,Third Party Payments,REVENUE
http://statistics.data.gov.uk/id/local-authority/00HY,Wiltshire Council,19/12/2012,5106228535,2494.20,Barchester Healthcare Ltd- The Wing ,121969,BA14,Community Services,OP West Locality,Adult Care Nursing Placements- Spot Purchase,Third Party Payments,REVENUE
http://statistics.data.gov.uk/id/local-authority/00HY,Wiltshire Council,19/12/2012,5106228536,434.80,Barchester Healthcare Ltd- The Wing ,121969,BA14,Community Services,OP West FNC,Adult Care Funded Nursing Care - Loal Auth Clients,Third Party Payments,REVENUE
http://statistics.data.gov.uk/id/local-authority/00HY,Wiltshire Council,19/12/2012,5106228538,1997.20,Barchester Healthcare Ltd- The Wing ,121969,BA14,Community Services,OP West Locality,Adult Care Nursing Placements- Spot Purchase,Third Party Payments,REVENUE
http://statistics.data.gov.uk/id/local-authority/00HY,Wiltshire Council,19/12/2012,5106228539,434.80,Barchester Healthcare Ltd- The Wing ,121969,BA14,Community Services,OP West FNC,Adult Care Funded Nursing Care - Loal Auth Clients,Third Party Payments,REVENUE
http://statistics.data.gov.uk/id/local-authority/00HY,Wiltshire Council,19/12/2012,5106228541,2494.20,Barchester Healthcare Ltd- The Wing ,121969,BA14,Community Services,MH OP West Locality,Adult Care Nursing Placements- Spot Purchase,Third Party Payments,REVENUE
http://statistics.data.gov.uk/id/local-authority/00HY,Wiltshire Council,19/12/2012,5106228542,434.80,Barchester Healthcare Ltd- The Wing ,121969,BA14,Community Services,MH OA West FNC,Adult Care Funded Nursing Care - Loal Auth Clients,Third Party Payments,REVENUE
http://statistics.data.gov.uk/id/local-authority/00HY,Wiltshire Council,19/12/2012,5106228544,2494.20,Barchester Healthcare Ltd- The Wing ,121969,BA14,Community Services,OP West Locality,Adult Care Nursing Placements- Spot Purchase,Third Party Payments,REVENUE
http://statistics.data.gov.uk/id/local-authority/00HY,Wiltshire Council,19/12/2012,5106228545,434.80,Barchester Healthcare Ltd- The Wing ,121969,BA14,Community Services,OP West FNC,Adult Care Funded Nursing Care - Loal Auth Clients,Third Party Payments,REVENUE
http://statistics.data.gov.uk/id/local-authority/00HY,Wiltshire Council,19/12/2012,5106228547,3002.28,Barchester Healthcare Ltd- The Wing ,121969,BA14,Community Services,MH OP South Locality,Adult Care Nursing Placements- Spot Purchase,Third Party Payments,REVENUE
